Publisher Label,Publisher URI,"Directorate code","Directorate","Service code","Service","Revenue or capital code","Revenue capital","Cost centre","Cost centre description","Bvsub Category","Bvsub description","Bvsum code","Bvsum description","Account code","Account description","Transaction No","Period","Transaction Date","Amount","Classification code","Classification description","Supplier ID","Supplier description","Company registration number","Company registration number Uri","VAT registration number"
"London Borough of Redbridge","http://opendatacommunities.org/doc/london-borough-council/redbridge","4BTRAFMGT&RS","Traffic Management & Road Safety","4CPUBLICTRAN","Public Transport","REV","Revenue","R5810","Concessionary Travel","06-TRANSFER","Transfer Payments","06D","Housing Benefits","7100","Concessionary Fares","60325881","201708",08/11/2016 00:00:00,2254955,"48583","Local Government","REDACTED DATA","TRANSPORT TRADING LIMITED","3914810","http://opencorporates.com/companies/gb/3914810",""
"London Borough of Redbridge","http://opendatacommunities.org/doc/london-borough-council/redbridge","9BNONBVO","Outside the BVACOP Objective Structure","9CNONBVO","Outside the BVACOP Objective Structure","CAP","Capital","C4282","Woodford County High School","99-NONBV","Capital, Balance Sheet and Control","50E","Capital - Contract Payments","9163","Main Building / structure","60329952","201709",12/12/2016 00:00:00,757200,"21555","Construction Contractors - General","REDACTED DATA","KIER CONSTRUCTION LTD T/AS KIER CONSTRUCTION LONDON","2099533","http://opencorporates.com/companies/gb/2099533","882852191"
"London Borough of Redbridge","http://opendatacommunities.org/doc/london-borough-council/redbridge","9BNONBVO","Outside the BVACOP Objective Structure","9CNONBVO","Outside the BVACOP Objective Structure","REV","Revenue","R0026","Collection Fund","05-THIRD","Third Party Payments","05I","Other agencies","6958","Business Rate Retention payable to GLA","60328019","201708",01/12/2016 00:00:00,883228,"48583","Local Government","REDACTED DATA","GREATER LONDON AUTHORITY","",,""
"London Borough of Redbridge","http://opendatacommunities.org/doc/london-borough-council/redbridge","9BNONBVO","Outside the BVACOP Objective Structure","9CNONBVO","Outside the BVACOP Objective Structure","BAL","Balance Sheet","B0132","Better Care Fund","99-NONBV","Capital, Balance Sheet and Control","50Q","Other Balances & Reserves","9912","Personal Account - Creditor","60328445","201709",02/12/2016 00:00:00,803536,"42200","Health Authorities","REDACTED DATA","REDBRIDGE CLINICAL COMMISSIONING GROUP","",,"654446033"
"London Borough of Redbridge","http://opendatacommunities.org/doc/london-borough-council/redbridge","9BNONBVO","Outside the BVACOP Objective Structure","9CNONBVO","Outside the BVACOP Objective Structure","CAP","Capital","C4320","Al-Noor Primary School","99-NONBV","Capital, Balance Sheet and Control","50E","Capital - Contract Payments","9163","Main Building / structure","60328819","201709",06/12/2016 00:00:00,595400,"21555","Construction Contractors - General","REDACTED DATA","KIER CONSTRUCTION LTD T/AS KIER CONSTRUCTION LONDON","2099533","http://opencorporates.com/companies/gb/2099533","882852191"
"London Borough of Redbridge","http://opendatacommunities.org/doc/london-borough-council/redbridge","6BSOCIALSERV","Social Services","6CCHILCOMSNG","Children's Services - Commissioning & Social Work","REV","Revenue","R2186","F&A - Leaving Care Team","05-THIRD","Third Party Payments","05A","Independent units within the council","6513","Agency & Contracted Services","60327919","201708",01/12/2016 00:00:00,545355.75,"17020","Charities and Voluntary Organisations","REDACTED DATA","BARNARDOS (TANNERS LANE)","1227919","http://opencorporates.com/companies/gb/1227919","507477337"
"London Borough of Redbridge","http://opendatacommunities.org/doc/london-borough-council/redbridge","9BNONBVO","Outside the BVACOP Objective Structure","9CNONBVO","Outside the BVACOP Objective Structure","CAP","Capital","C4281","Ilford County High School","99-NONBV","Capital, Balance Sheet and Control","50E","Capital - Contract Payments","9163","Main Building / structure","60329379","201709",09/12/2016 00:00:00,453800,"21555","Construction Contractors - General","REDACTED DATA","KIER CONSTRUCTION LTD T/AS KIER CONSTRUCTION LONDON","2099533","http://opencorporates.com/companies/gb/2099533","882852191"
"London Borough of Redbridge","http://opendatacommunities.org/doc/london-borough-council/redbridge","1BCENTRALPUB","Central Services to the Public","1CLOCALTAXCO","Local Tax Collection","REV","Revenue","R5760","Local Tax Collection","01-EMPLOYEES","Employees","01A","Direct employee expenses","4","Agency Staff - Pay","3455812","201709",20/12/2016 00:00:00,855.36,"31230","Employment and Recruitment Agencies","REDACTED DATA","ADECCO UK LIMITED","593232","http://opencorporates.com/companies/gb/593232","232347975"
"London Borough of Redbridge","http://opendatacommunities.org/doc/london-borough-council/redbridge","1BCENTRALPUB","Central Services to the Public","1CLOCALTAXCO","Local Tax Collection","REV","Revenue","R5760","Local Tax Collection","01-EMPLOYEES","Employees","01A","Direct employee expenses","4","Agency Staff - Pay","3455812","201709",20/12/2016 00:00:00,846.56,"31230","Employment and Recruitment Agencies","REDACTED DATA","ADECCO UK LIMITED","593232","http://opencorporates.com/companies/gb/593232","232347975"
"London Borough of Redbridge","http://opendatacommunities.org/doc/london-borough-council/redbridge","1BCENTRALPUB","Central Services to the Public","1CLOCALTAXCO","Local Tax Collection","REV","Revenue","R5760","Local Tax Collection","01-EMPLOYEES","Employees","01A","Direct employee expenses","4","Agency Staff - Pay","3455812","201709",20/12/2016 00:00:00,845.64,"31230","Employment and Recruitment Agencies","REDACTED DATA","ADECCO UK LIMITED","593232","http://opencorporates.com/companies/gb/593232","232347975"
"London Borough of Redbridge","http://opendatacommunities.org/doc/london-borough-council/redbridge","1BCENTRALPUB","Central Services to the Public","1CLOCALTAXCO","Local Tax Collection","REV","Revenue","R5760","Local Tax Collection","01-EMPLOYEES","Employees","01A","Direct employee expenses","4","Agency Staff - Pay","3455812","201709",20/12/2016 00:00:00,303.14,"31230","Employment and Recruitment Agencies","REDACTED DATA","ADECCO UK LIMITED","593232","http://opencorporates.com/companies/gb/593232","232347975"
"London Borough of Redbridge","http://opendatacommunities.org/doc/london-borough-council/redbridge","1BCENTRALPUB","Central Services to the Public","1CLOCALTAXCO","Local Tax Collection","REV","Revenue","R5760","Local Tax Collection","01-EMPLOYEES","Employees","01A","Direct employee expenses","4","Agency Staff - Pay","3455812","201709",20/12/2016 00:00:00,309.6,"31230","Employment and Recruitment Agencies","REDACTED DATA","ADECCO UK LIMITED","593232","http://opencorporates.com/companies/gb/593232","232347975"
"London Borough of Redbridge","http://opendatacommunities.org/doc/london-borough-council/redbridge","1BCENTRALPUB","Central Services to the Public","1CLOCALTAXCO","Local Tax Collection","REV","Revenue","R5760","Local Tax Collection","01-EMPLOYEES","Employees","01A","Direct employee expenses","4","Agency Staff - Pay","3455812","201709",20/12/2016 00:00:00,845.64,"31230","Employment and Recruitment Agencies","REDACTED DATA","ADECCO UK LIMITED","593232","http://opencorporates.com/companies/gb/593232","232347975"
"London Borough of Redbridge","http://opendatacommunities.org/doc/london-borough-council/redbridge","1BCENTRALPUB","Central Services to the Public","1CLOCALTAXCO","Local Tax Collection","REV","Revenue","R5760","Local Tax Collection","01-EMPLOYEES","Employees","01A","Direct employee expenses","4","Agency Staff - Pay","3455812","201709",20/12/2016 00:00:00,419.18,"31230","Employment and Recruitment Agencies","REDACTED DATA","ADECCO UK LIMITED","593232","http://opencorporates.com/companies/gb/593232","232347975"
"London Borough of Redbridge","http://opendatacommunities.org/doc/london-borough-council/redbridge","1BCENTRALPUB","Central Services to the Public","1CLOCALTAXCO","Local Tax Collection","REV","Revenue","R5760","Local Tax Collection","01-EMPLOYEES","Employees","01A","Direct employee expenses","4","Agency Staff - Pay","3455812","201709",20/12/2016 00:00:00,837.54,"31230","Employment and Recruitment Agencies","REDACTED DATA","ADECCO UK LIMITED","593232","http://opencorporates.com/companies/gb/593232","232347975"
"London Borough of Redbridge","http://opendatacommunities.org/doc/london-borough-council/redbridge","1BCENTRALPUB","Central Services to the Public","1CTRADSURDEF","Trading Account Surpluses & Deficits","REV","Revenue","R5753","Cashiers","01-EMPLOYEES","Employees","01A","Direct employee expenses","4","Agency Staff - Pay","3455812","201709",20/12/2016 00:00:00,460.13,"31230","Employment and Recruitment Agencies","REDACTED DATA","ADECCO UK LIMITED","593232","http://opencorporates.com/companies/gb/593232","232347975"
"London Borough of Redbridge","http://opendatacommunities.org/doc/london-borough-council/redbridge","1BCENTRALPUB","Central Services to the Public","1CTRADSURDEF","Trading Account Surpluses & Deficits","REV","Revenue","R5753","Cashiers","01-EMPLOYEES","Employees","01A","Direct employee expenses","4","Agency Staff - Pay","3455812","201709",20/12/2016 00:00:00,507.75,"31230","Employment and Recruitment Agencies","REDACTED DATA","ADECCO UK LIMITED","593232","http://opencorporates.com/companies/gb/593232","232347975"
"London Borough of Redbridge","http://opendatacommunities.org/doc/london-borough-council/redbridge","1BCENTRALPUB","Central Services to the Public","1CTRADSURDEF","Trading Account Surpluses & Deficits","REV","Revenue","R5753","Cashiers","01-EMPLOYEES","Employees","01A","Direct employee expenses","4","Agency Staff - Pay","3455812","201709",20/12/2016 00:00:00,507.75,"31230","Employment and Recruitment Agencies","REDACTED DATA","ADECCO UK LIMITED","593232","http://opencorporates.com/companies/gb/593232","232347975"
"London Borough of Redbridge","http://opendatacommunities.org/doc/london-borough-council/redbridge","1BCENTRALPUB","Central Services to the Public","1CTRADSURDEF","Trading Account Surpluses & Deficits","REV","Revenue","R5754","Income","01-EMPLOYEES","Employees","01A","Direct employee expenses","4","Agency Staff - Pay","3455812","201709",20/12/2016 00:00:00,198.56,"31230","Employment and Recruitment Agencies","REDACTED DATA","ADECCO UK LIMITED","593232","http://opencorporates.com/companies/gb/593232","232347975"
"London Borough of Redbridge","http://opendatacommunities.org/doc/london-borough-council/redbridge","1BCENTRALPUB","Central Services to the Public","1CTRADSURDEF","Trading Account Surpluses & Deficits","REV","Revenue","R5754","Income","01-EMPLOYEES","Employees","01A","Direct employee expenses","4","Agency Staff - Pay","3455812","201709",20/12/2016 00:00:00,335.07,"31230","Employment and Recruitment Agencies","REDACTED DATA","ADECCO UK LIMITED","593232","http://opencorporates.com/companies/gb/593232","232347975"
"London Borough of Redbridge","http://opendatacommunities.org/doc/london-borough-council/redbridge","1BCENTRALPUB","Central Services to the Public","1CTRADSURDEF","Trading Account Surpluses & Deficits","REV","Revenue","R5770","Income Assessment","01-EMPLOYEES","Employees","01A","Direct employee expenses","4","Agency Staff - Pay","3455812","201709",20/12/2016 00:00:00,559.65,"31230","Employment and Recruitment Agencies","REDACTED DATA","ADECCO UK LIMITED","593232","http://opencorporates.com/companies/gb/593232","232347975"
"London Borough of Redbridge","http://opendatacommunities.org/doc/london-borough-council/redbridge","1BCENTRALPUB","Central Services to the Public","1CTRADSURDEF","Trading Account Surpluses & Deficits","REV","Revenue","R5820","Customer Services Team","01-EMPLOYEES","Employees","01A","Direct employee expenses","4","Agency Staff - Pay","3455812","201709",20/12/2016 00:00:00,668.63,"31230","Employment and Recruitment Agencies","REDACTED DATA","ADECCO UK LIMITED","593232","http://opencorporates.com/companies/gb/593232","232347975"
"London Borough of Redbridge","http://opendatacommunities.org/doc/london-borough-council/redbridge","1BCENTRALPUB","Central Services to the Public","1CTRADSURDEF","Trading Account Surpluses & Deficits","REV","Revenue","R5824","P and B Telephone Team","01-EMPLOYEES","Employees","01A","Direct employee expenses","4","Agency Staff - Pay","3455812","201709",20/12/2016 00:00:00,725.25,"31230","Employment and Recruitment Agencies","REDACTED DATA","ADECCO UK LIMITED","593232","http://opencorporates.com/companies/gb/593232","232347975"
"London Borough of Redbridge","http://opendatacommunities.org/doc/london-borough-council/redbridge","1BCENTRALPUB","Central Services to the Public","1CTRADSURDEF","Trading Account Surpluses & Deficits","REV","Revenue","R5824","P and B Telephone Team","01-EMPLOYEES","Employees","01A","Direct employee expenses","4","Agency Staff - Pay","3455812","201709",20/12/2016 00:00:00,737.63,"31230","Employment and Recruitment Agencies","REDACTED DATA","ADECCO UK LIMITED","593232","http://opencorporates.com/companies/gb/593232","232347975"
"London Borough of Redbridge","http://opendatacommunities.org/doc/london-borough-council/redbridge","1BCENTRALPUB","Central Services to the Public","1CTRADSURDEF","Trading Account Surpluses & Deficits","REV","Revenue","R5824","P and B Telephone Team","01-EMPLOYEES","Employees","01A","Direct employee expenses","4","Agency Staff - Pay","3455812","201709",20/12/2016 00:00:00,650.25,"31230","Employment and Recruitment Agencies","REDACTED DATA","ADECCO UK LIMITED","593232","http://opencorporates.com/companies/gb/593232","232347975"
"London Borough of Redbridge","http://opendatacommunities.org/doc/london-borough-council/redbridge","1BCENTRALPUB","Central Services to the Public","1CTRADSURDEF","Trading Account Surpluses & Deficits","REV","Revenue","R5824","P and B Telephone Team","01-EMPLOYEES","Employees","01A","Direct employee expenses","4","Agency Staff - Pay","3455812","201709",20/12/2016 00:00:00,648.45,"31230","Employment and Recruitment Agencies","REDACTED DATA","ADECCO UK LIMITED","593232","http://opencorporates.com/companies/gb/593232","232347975"
"London Borough of Redbridge","http://opendatacommunities.org/doc/london-borough-council/redbridge","1BCENTRALPUB","Central Services to the Public","1CTRADSURDEF","Trading Account Surpluses & Deficits","REV","Revenue","R5824","P and B Telephone Team","01-EMPLOYEES","Employees","01A","Direct employee expenses","4","Agency Staff - Pay","3455812","201709",20/12/2016 00:00:00,607.5,"31230","Employment and Recruitment Agencies","REDACTED DATA","ADECCO UK LIMITED","593232","http://opencorporates.com/companies/gb/593232","232347975"
"London Borough of Redbridge","http://opendatacommunities.org/doc/london-borough-council/redbridge","1BOTHEROPI&E","Other Operating Income & Expenditure","1CELECTIONS","Elections","REV","Revenue","R9362","Electoral Registration","01-EMPLOYEES","Employees","01A","Direct employee expenses","4","Agency Staff - Pay","3455812","201709",20/12/2016 00:00:00,358.81,"31230","Employment and Recruitment Agencies","REDACTED DATA","ADECCO UK LIMITED","593232","http://opencorporates.com/companies/gb/593232","232347975"
"London Borough of Redbridge","http://opendatacommunities.org/doc/london-borough-council/redbridge","1BOTHEROPI&E","Other Operating Income & Expenditure","1CELECTIONS","Elections","REV","Revenue","R9362","Electoral Registration","01-EMPLOYEES","Employees","01A","Direct employee expenses","4","Agency Staff - Pay","3455812","201709",20/12/2016 00:00:00,511.14,"31230","Employment and Recruitment Agencies","REDACTED DATA","ADECCO UK LIMITED","593232","http://opencorporates.com/companies/gb/593232","232347975"
"London Borough of Redbridge","http://opendatacommunities.org/doc/london-borough-council/redbridge","1BOTHEROPI&E","Other Operating Income & Expenditure","1CELECTIONS","Elections","REV","Revenue","R9362","Electoral Registration","01-EMPLOYEES","Employees","01A","Direct employee expenses","4","Agency Staff - Pay","3455812","201709",20/12/2016 00:00:00,473.9,"31230","Employment and Recruitment Agencies","REDACTED DATA","ADECCO UK LIMITED","593232","http://opencorporates.com/companies/gb/593232","232347975"
"London Borough of Redbridge","http://opendatacommunities.org/doc/london-borough-council/redbridge","1BOTHEROPI&E","Other Operating Income & Expenditure","1CTRADSURDEF","Trading Account Surpluses & Deficits","REV","Revenue","R7207","Building Services","01-EMPLOYEES","Employees","01A","Direct employee expenses","4","Agency Staff - Pay","3455812","201709",20/12/2016 00:00:00,712.08,"31230","Employment and Recruitment Agencies","REDACTED DATA","ADECCO UK LIMITED","593232","http://opencorporates.com/companies/gb/593232","232347975"
"London Borough of Redbridge","http://opendatacommunities.org/doc/london-borough-council/redbridge","1BOTHEROPI&E","Other Operating Income & Expenditure","1CTRADSURDEF","Trading Account Surpluses & Deficits","REV","Revenue","R7207","Building Services","01-EMPLOYEES","Employees","01A","Direct employee expenses","4","Agency Staff - Pay","3455812","201709",20/12/2016 00:00:00,817,"31230","Employment and Recruitment Agencies","REDACTED DATA","ADECCO UK LIMITED","593232","http://opencorporates.com/companies/gb/593232","232347975"
"London Borough of Redbridge","http://opendatacommunities.org/doc/london-borough-council/redbridge","1BOTHEROPI&E","Other Operating Income & Expenditure","1CTRADSURDEF","Trading Account Surpluses & Deficits","REV","Revenue","R8514","Transformation BSA/MSA","01-EMPLOYEES","Employees","01A","Direct employee expenses","4","Agency Staff - Pay","3455812","201709",20/12/2016 00:00:00,1335.36,"31230","Employment and Recruitment Agencies","REDACTED DATA","ADECCO UK LIMITED","593232","http://opencorporates.com/companies/gb/593232","232347975"
"London Borough of Redbridge","http://opendatacommunities.org/doc/london-borough-council/redbridge","1BOTHEROPI&E","Other Operating Income & Expenditure","1CTRADSURDEF","Trading Account Surpluses & Deficits","REV","Revenue","R8514","Transformation BSA/MSA","01-EMPLOYEES","Employees","01A","Direct employee expenses","4","Agency Staff - Pay","3455812","201709",20/12/2016 00:00:00,0,"31230","Employment and Recruitment Agencies","REDACTED DATA","ADECCO UK LIMITED","593232","http://opencorporates.com/companies/gb/593232","232347975"
"London Borough of Redbridge","http://opendatacommunities.org/doc/london-borough-council/redbridge","1BOTHEROPI&E","Other Operating Income & Expenditure","1CTRADSURDEF","Trading Account Surpluses & Deficits","REV","Revenue","R8514","Transformation BSA/MSA","01-EMPLOYEES","Employees","01A","Direct employee expenses","4","Agency Staff - Pay","3455812","201709",20/12/2016 00:00:00,0,"31230","Employment and Recruitment Agencies","REDACTED DATA","ADECCO UK LIMITED","593232","http://opencorporates.com/companies/gb/593232","232347975"
"London Borough of Redbridge","http://opendatacommunities.org/doc/london-borough-council/redbridge","1BOTHEROPI&E","Other Operating Income & Expenditure","1CTRADSURDEF","Trading Account Surpluses & Deficits","REV","Revenue","R9152","Financial Services","01-EMPLOYEES","Employees","01A","Direct employee expenses","4","Agency Staff - Pay","3455812","201709",20/12/2016 00:00:00,714.47,"31230","Employment and Recruitment Agencies","REDACTED DATA","ADECCO UK LIMITED","593232","http://opencorporates.com/companies/gb/593232","232347975"
"London Borough of Redbridge","http://opendatacommunities.org/doc/london-borough-council/redbridge","1BOTHEROPI&E","Other Operating Income & Expenditure","1CTRADSURDEF","Trading Account Surpluses & Deficits","REV","Revenue","R9152","Financial Services","01-EMPLOYEES","Employees","01A","Direct employee expenses","4","Agency Staff - Pay","3455812","201709",20/12/2016 00:00:00,527.09,"31230","Employment and Recruitment Agencies","REDACTED DATA","ADECCO UK LIMITED","593232","http://opencorporates.com/companies/gb/593232","232347975"
"London Borough of Redbridge","http://opendatacommunities.org/doc/london-borough-council/redbridge","1BOTHEROPI&E","Other Operating Income & Expenditure","1CTRADSURDEF","Trading Account Surpluses & Deficits","REV","Revenue","R9152","Financial Services","01-EMPLOYEES","Employees","01A","Direct employee expenses","4","Agency Staff - Pay","3455812","201709",20/12/2016 00:00:00,1204.45,"31230","Employment and Recruitment Agencies","REDACTED DATA","ADECCO UK LIMITED","593232","http://opencorporates.com/companies/gb/593232","232347975"
"London Borough of Redbridge","http://opendatacommunities.org/doc/london-borough-council/redbridge","1BOTHEROPI&E","Other Operating Income & Expenditure","1CTRADSURDEF","Trading Account Surpluses & Deficits","REV","Revenue","R9152","Financial Services","01-EMPLOYEES","Employees","01A","Direct employee expenses","4","Agency Staff - Pay","3455812","201709",20/12/2016 00:00:00,1324.04,"31230","Employment and Recruitment Agencies","REDACTED DATA","ADECCO UK LIMITED","593232","http://opencorporates.com/companies/gb/593232","232347975"
"London Borough of Redbridge","http://opendatacommunities.org/doc/london-borough-council/redbridge","1BOTHEROPI&E","Other Operating Income & Expenditure","1CTRADSURDEF","Trading Account Surpluses & Deficits","REV","Revenue","R9152","Financial Services","01-EMPLOYEES","Employees","01A","Direct employee expenses","4","Agency Staff - Pay","3455812","201709",20/12/2016 00:00:00,2269.2,"31230","Employment and Recruitment Agencies","REDACTED DATA","ADECCO UK LIMITED","593232","http://opencorporates.com/companies/gb/593232","232347975"
"London Borough of Redbridge","http://opendatacommunities.org/doc/london-borough-council/redbridge","1BOTHEROPI&E","Other Operating Income & Expenditure","1CTRADSURDEF","Trading Account Surpluses & Deficits","REV","Revenue","R9152","Financial Services","01-EMPLOYEES","Employees","01A","Direct employee expenses","4","Agency Staff - Pay","3455812","201709",20/12/2016 00:00:00,2181.51,"31230","Employment and Recruitment Agencies","REDACTED DATA","ADECCO UK LIMITED","593232","http://opencorporates.com/companies/gb/593232","232347975"
"London Borough of Redbridge","http://opendatacommunities.org/doc/london-borough-council/redbridge","1BOTHEROPI&E","Other Operating Income & Expenditure","1CTRADSURDEF","Trading Account Surpluses & Deficits","REV","Revenue","R9152","Financial Services","01-EMPLOYEES","Employees","01A","Direct employee expenses","4","Agency Staff - Pay","3455812","201709",20/12/2016 00:00:00,993.03,"31230","Employment and Recruitment Agencies","REDACTED DATA","ADECCO UK LIMITED","593232","http://opencorporates.com/companies/gb/593232","232347975"
"London Borough of Redbridge","http://opendatacommunities.org/doc/london-borough-council/redbridge","1BOTHEROPI&E","Other Operating Income & Expenditure","1CTRADSURDEF","Trading Account Surpluses & Deficits","REV","Revenue","R9152","Financial Services","01-EMPLOYEES","Employees","01A","Direct employee expenses","4","Agency Staff - Pay","3455812","201709",20/12/2016 00:00:00,2092.55,"31230","Employment and Recruitment Agencies","REDACTED DATA","ADECCO UK LIMITED","593232","http://opencorporates.com/companies/gb/593232","232347975"
"London Borough of Redbridge","http://opendatacommunities.org/doc/london-borough-council/redbridge","6BSOCIALSERV","Social Services","6CCHILCOMSNG","Children's Services - Commissioning & Social Work","REV","Revenue","R2121","Core - CSWLAC","01-EMPLOYEES","Employees","01A","Direct employee expenses","4","Agency Staff - Pay","60321236","201709",26/08/2016 00:00:00,650,"31230","Employment and Recruitment Agencies","REDACTED DATA","REMEDY RECRUITMENT GROUP LTD","4651426","http://opencorporates.com/companies/gb/4651426","820791924"
"London Borough of Redbridge","http://opendatacommunities.org/doc/london-borough-council/redbridge","9BNONBVO","Outside the BVACOP Objective Structure","9CNONBVO","Outside the BVACOP Objective Structure","REV","Revenue","R5213","Area Housing Team","04-SUPPLIES","Supplies And Services","04A","Equipment, furniture and materials","5502","Equipment Purchase","60328313","201709",05/12/2016 00:00:00,650,"64550","Removals - Business and Industrial","REDACTED DATA","SONNY WHITE","",,"887526960"
"London Borough of Redbridge","http://opendatacommunities.org/doc/london-borough-council/redbridge","3BLEACENTFND","LEA Centrally Held School Funds","3CASSURACCES","Assuring Access to Schools","REV","Revenue","R3358","VISION Glasbury Non Delegated","02-PREMISES","Premises","02I","Grounds maintenance costs","4750","Grounds Maintenance","60326732","201708",15/11/2016 00:00:00,650,"47051","Landscape Contractors and Gardening Services","REDACTED DATA","HIGHGROUND MAINTENANCE LTD","5916855","http://opencorporates.com/companies/gb/5916855","752 8296 04"
"London Borough of Redbridge","http://opendatacommunities.org/doc/london-borough-council/redbridge","3BLEACENTFND","LEA Centrally Held School Funds","3CNONSCH","Non Schools","REV","Revenue","R2010","Spec Transport LEA","03-TRANSPORT","Transport","03A","Direct - transport costs","5207","School Support - Contractors (Children Services)","60327866","201708",28/11/2016 00:00:00,650,"51180","Mini Buses - Hire and Leasing","REDACTED DATA","DILSHAN TRANSPORT GROUP LIMITED","5880601","http://opencorporates.com/companies/gb/5880601","888080679"
"London Borough of Redbridge","http://opendatacommunities.org/doc/london-borough-council/redbridge","3BNONSCHFUND","Non-School Funding","3CNONSCH","Non Schools","REV","Revenue","R3945","Childrens Centre Central","04-SUPPLIES","Supplies And Services","04K","Miscellaneous expenses","6227","Furniture Removal & Storage","60327886","201708",14/09/2016 00:00:00,650,"64550","Removals - Business and Industrial","REDACTED DATA","SONNY WHITE","",,"887526960"
"London Borough of Redbridge","http://opendatacommunities.org/doc/london-borough-council/redbridge","3BOPTIONHLDG","Optional Holding Accounts","3CADULT","Adult Education","REV","Revenue","R3489","RIAE   Continuous Professional Development   CPD","04-SUPPLIES","Supplies And Services","04A","Equipment, furniture and materials","5502","Equipment Purchase","3453568","201708",22/11/2016 00:00:00,650,"29360","Educational Services","REDACTED DATA","SERVICE BIRMINGHAM LTD","5660977","http://opencorporates.com/companies/gb/5660977","618184140"
"London Borough of Redbridge","http://opendatacommunities.org/doc/london-borough-council/redbridge","3BINDSCHFUND","Individual School Funds","3CDELPRIMARY","Delegated Individual Primary School Budgets","REV","Revenue","S2714","Winston : ICT","04-SUPPLIES","Supplies And Services","04F","Communications and computing","5869","IT Consumable toners, bulbs etc","60328576","201709",17/11/2016 00:00:00,649.46,"53770","Office Stationery Supplies","REDACTED DATA","DAY 2 DAY STATIONARY LLP","OC384238","http://opencorporates.com/companies/gb/OC384238","867239486"
"London Borough of Redbridge","http://opendatacommunities.org/doc/london-borough-council/redbridge","6BADULTSOCIA","Adult Social Care","6CSUPPSERMGT","Support Service & Management Costs","REV","Revenue","R4476","Appointeeships and Court of Protection","04-SUPPLIES","Supplies And Services","04H","Grants and subscriptions","5955","Fees","60329535","201709",26/10/2016 00:00:00,713.36,"60230","Post Office Services","REDACTED DATA","POST OFFICE LTD","2154540","http://opencorporates.com/companies/gb/2154540","172670502"
"London Borough of Redbridge","http://opendatacommunities.org/doc/london-borough-council/redbridge","4BMANGT&SUPP","Management & Support Services","4CHIGHRDROUT","Highways/Roads (Routine)","REV","Revenue","R7075","Drainage","05-THIRD","Third Party Payments","05H","Private contractors","6915","Contractor Payments","3455826","201709",21/12/2016 00:00:00,649.29,"18632","Civil Engineers","REDACTED DATA","KENSON CONTRACTORS BENINGTON LTD","1314691","http://opencorporates.com/companies/gb/1314691","301629589"
"London Borough of Redbridge","http://opendatacommunities.org/doc/london-borough-council/redbridge","4BMANGT&SUPP","Management & Support Services","4CHIGHRDSTR","Highways/Roads (Structural)","REV","Revenue","R7092","Footway Crossing Works","05-THIRD","Third Party Payments","05H","Private contractors","6915","Contractor Payments","3455930","201709",20/12/2016 00:00:00,648,"18632","Civil Engineers","REDACTED DATA","KENSON CONTRACTORS BENINGTON LTD","1314691","http://opencorporates.com/companies/gb/1314691","301629589"
"London Borough of Redbridge","http://opendatacommunities.org/doc/london-borough-council/redbridge","6BADULTSOCIA","Adult Social Care","6CADMENHLTH","Adults Under 65 with Mental Health Needs","REV","Revenue","R4219","MH - Supported Living","06-TRANSFER","Transfer Payments","06B","Social Services Clients","7066","Supportive Lodgings (Transfer Payments)","90803554","201709",01/12/2016 00:00:00,777.47,"53350","Nursing Homes","REDACTED DATA","OUTLOOK CARE","",,""
"London Borough of Redbridge","http://opendatacommunities.org/doc/london-borough-council/redbridge","3BINDSCHFUND","Individual School Funds","3CDELSECOND","Delegated Individual Secondary School Budgets","REV","Revenue","S3186","MAYFIELD - Long Term Supply (maternity)","01-EMPLOYEES","Employees","01A","Direct employee expenses","4","Agency Staff - Pay","60328285","201709",30/11/2016 00:00:00,645,"31230","Employment and Recruitment Agencies","REDACTED DATA","PROTOCOL EDUCATION LTD","2926583","http://opencorporates.com/companies/gb/2926583","779994039"
"London Borough of Redbridge","http://opendatacommunities.org/doc/london-borough-council/redbridge","3BINDSCHFUND","Individual School Funds","3CDELSECOND","Delegated Individual Secondary School Budgets","REV","Revenue","S3584","KING SOLOMON -  Agency Cover","01-EMPLOYEES","Employees","01A","Direct employee expenses","409","Agency Staff Pay","60329857","201709",11/11/2016 00:00:00,645,"31230","Employment and Recruitment Agencies","REDACTED DATA","REMEDY RECRUITMENT GROUP LTD","4651426","http://opencorporates.com/companies/gb/4651426","820791924"
"London Borough of Redbridge","http://opendatacommunities.org/doc/london-borough-council/redbridge","3BINDSCHFUND","Individual School Funds","3CDELSECOND","Delegated Individual Secondary School Budgets","REV","Revenue","S3584","KING SOLOMON -  Agency Cover","01-EMPLOYEES","Employees","01A","Direct employee expenses","409","Agency Staff Pay","60327820","201709",28/10/2016 00:00:00,645,"31230","Employment and Recruitment Agencies","REDACTED DATA","REMEDY RECRUITMENT GROUP LTD","4651426","http://opencorporates.com/companies/gb/4651426","820791924"
"London Borough of Redbridge","http://opendatacommunities.org/doc/london-borough-council/redbridge","6BSOCIALSERV","Social Services","6CCHILLOOKED","Children Looked After","REV","Revenue","R2177","Public Law Outline","04-SUPPLIES","Supplies And Services","04H","Grants and subscriptions","5954","Professional Fees","60328077","201709",30/11/2016 00:00:00,644,"6700","Barristers","REDACTED DATA","KATHERINE COUPER","1476573345","http://opencorporates.com/companies/gb/1476573345",""
"London Borough of Redbridge","http://opendatacommunities.org/doc/london-borough-council/redbridge","9BNONBVO","Outside the BVACOP Objective Structure","9CNONBVO","Outside the BVACOP Objective Structure","REV","Revenue","R7710","Insurance Repair Costs","04-SUPPLIES","Supplies And Services","04A","Equipment, furniture and materials","5510","Materials","658365","201709",14/12/2016 00:00:00,168.9,"13330","Car Body Repairs","REDACTED DATA","BARKING PANELCRAFT","",,""
"London Borough of Redbridge","http://opendatacommunities.org/doc/london-borough-council/redbridge","9BNONBVO","Outside the BVACOP Objective Structure","9CNONBVO","Outside the BVACOP Objective Structure","REV","Revenue","R7710","Insurance Repair Costs","04-SUPPLIES","Supplies And Services","04A","Equipment, furniture and materials","5510","Materials","658365","201709",14/12/2016 00:00:00,474.5,"13330","Car Body Repairs","REDACTED DATA","BARKING PANELCRAFT","",,""
"London Borough of Redbridge","http://opendatacommunities.org/doc/london-borough-council/redbridge","4BMANGT&SUPP","Management & Support Services","4CHIGHRDROUT","Highways/Roads (Routine)","REV","Revenue","R7058","Highways Improvements","05-THIRD","Third Party Payments","05H","Private contractors","6915","Contractor Payments","3455817","201709",21/12/2016 00:00:00,640.36,"18632","Civil Engineers","REDACTED DATA","KENSON CONTRACTORS BENINGTON LTD","1314691","http://opencorporates.com/companies/gb/1314691","301629589"
"London Borough of Redbridge","http://opendatacommunities.org/doc/london-borough-council/redbridge","3BLEACENTFND","LEA Centrally Held School Funds","3CNONSCH","Non Schools","REV","Revenue","R2010","Spec Transport LEA","01-EMPLOYEES","Employees","01A","Direct employee expenses","4","Agency Staff - Pay","60327444","201709",30/09/2016 00:00:00,768.36,"31230","Employment and Recruitment Agencies","REDACTED DATA","HOPE SUPER JOBS LTD","5081894","http://opencorporates.com/companies/gb/5081894","872555205"
"London Borough of Redbridge","http://opendatacommunities.org/doc/london-borough-council/redbridge","4BMANGT&SUPP","Management & Support Services","4CHIGHRDROUT","Highways/Roads (Routine)","REV","Revenue","R7066","Vehicle Activated Signs","05-THIRD","Third Party Payments","05H","Private contractors","6915","Contractor Payments","3454502","201708",22/11/2016 00:00:00,640.16,"21555","Construction Contractors - General","REDACTED DATA","SKANSKA CONSTRUCTION UK LTD","191408","http://opencorporates.com/companies/gb/191408","378403142"
"London Borough of Redbridge","http://opendatacommunities.org/doc/london-borough-council/redbridge","5BGFHOUSING","General Fund Housing","5CHOMELESS","Homelessness","REV","Revenue","R5644","Canterbury","04-SUPPLIES","Supplies And Services","04K","Miscellaneous expenses","6227","Furniture Removal & Storage","60328914","201709",30/11/2016 00:00:00,640,"64620","Removals and Storage - Household","REDACTED DATA","CROWN PROMOTIONS & REMOVALS LIMITED","4002589","http://opencorporates.com/companies/gb/4002589","506837339"
"London Borough of Redbridge","http://opendatacommunities.org/doc/london-borough-council/redbridge","4BMANGT&SUPP","Management & Support Services","4CHIGHRDSTR","Highways/Roads (Structural)","REV","Revenue","R7092","Footway Crossing Works","05-THIRD","Third Party Payments","05H","Private contractors","6915","Contractor Payments","3455911","201709",20/12/2016 00:00:00,639.45,"18632","Civil Engineers","REDACTED DATA","KENSON CONTRACTORS BENINGTON LTD","1314691","http://opencorporates.com/companies/gb/1314691","301629589"
"London Borough of Redbridge","http://opendatacommunities.org/doc/london-borough-council/redbridge","4BMANGT&SUPP","Management & Support Services","4CHIGHRDSTR","Highways/Roads (Structural)","REV","Revenue","R7092","Footway Crossing Works","05-THIRD","Third Party Payments","05H","Private contractors","6915","Contractor Payments","3455916","201709",20/12/2016 00:00:00,639.45,"18632","Civil Engineers","REDACTED DATA","KENSON CONTRACTORS BENINGTON LTD","1314691","http://opencorporates.com/companies/gb/1314691","301629589"
"London Borough of Redbridge","http://opendatacommunities.org/doc/london-borough-council/redbridge","4BMANGT&SUPP","Management & Support Services","4CHIGHRDSTR","Highways/Roads (Structural)","REV","Revenue","R7092","Footway Crossing Works","05-THIRD","Third Party Payments","05H","Private contractors","6915","Contractor Payments","3454360","201708",22/11/2016 00:00:00,639.45,"18632","Civil Engineers","REDACTED DATA","KENSON CONTRACTORS BENINGTON LTD","1314691","http://opencorporates.com/companies/gb/1314691","301629589"
"London Borough of Redbridge","http://opendatacommunities.org/doc/london-borough-council/redbridge","5BGFHOUSING","General Fund Housing","5CHOMELESS","Homelessness","REV","Revenue","R5622","The Foyer","04-SUPPLIES","Supplies And Services","04A","Equipment, furniture and materials","5502","Equipment Purchase","60327203","201708",15/11/2016 00:00:00,638.5,"64550","Removals - Business and Industrial","REDACTED DATA","OCN CONTRACT SERVICES","",,"726127250"
"London Borough of Redbridge","http://opendatacommunities.org/doc/london-borough-council/redbridge","6BADULTSOCIA","Adult Social Care","6COLDINCMENT","Older People (65 or over) incl. Older Mentally Ill","REV","Revenue","R4020","Carers Older People Direct Payments","06-TRANSFER","Transfer Payments","06B","Social Services Clients","7053","Direct Payments","3455341","201709",12/12/2016 00:00:00,765.6,"90005","Home Care Services DP","REDACTED DATA","REDACTED DATA","",,""
"London Borough of Redbridge","http://opendatacommunities.org/doc/london-borough-council/redbridge","6BADULTSOCIA","Adult Social Care","6CADLEARNDIS","Adults Under 65 with Learning Disabilities","REV","Revenue","R4394","LD - Homecare","05-THIRD","Third Party Payments","05A","Independent units within the council","6502","Agency Homecare (Payments To Independent Units)","90804354","201709",16/12/2016 00:00:00,765.36,"79980","Training Services","REDACTED DATA","ASK CARE LTD","5656634","http://opencorporates.com/companies/gb/5656634",""
"London Borough of Redbridge","http://opendatacommunities.org/doc/london-borough-council/redbridge","3BINDSCHFUND","Individual School Funds","3CDELPRIMARY","Delegated Individual Primary School Budgets","REV","Revenue","S2740","Winston : BUILDING MAINTENANCE","02-PREMISES","Premises","02H","Cleaning and domestic supplies","4622","Cleaning Equipment & Materials","60325910","201708",08/11/2016 00:00:00,635.92,"53770","Office Stationery Supplies","REDACTED DATA","THE CONSORTIUM","3100039","http://opencorporates.com/companies/gb/3100039","639788763"
"London Borough of Redbridge","http://opendatacommunities.org/doc/london-borough-council/redbridge","6BSOCIALSERV","Social Services","6CCHILLOOKED","Children Looked After","REV","Revenue","R2117","SEN and CD Care and Support Packages Social Care","06-TRANSFER","Transfer Payments","06B","Social Services Clients","7050","Agency Homecare","60328119","201709",01/12/2016 00:00:00,763,"31230","Employment and Recruitment Agencies","REDACTED DATA","HOPE SUPER JOBS LTD","5081894","http://opencorporates.com/companies/gb/5081894","872555205"
"London Borough of Redbridge","http://opendatacommunities.org/doc/london-borough-council/redbridge","6BADULTSOCIA","Adult Social Care","6COTHADSERV","Other Adult Services","REV","Revenue","R4389","CCG Older Person Home Care","05-THIRD","Third Party Payments","05A","Independent units within the council","6502","Agency Homecare (Payments To Independent Units)","90803044","201709",01/12/2016 00:00:00,762.81,"43419","Home Care Services","REDACTED DATA","HAVEN CARE LTD","6762521","http://opencorporates.com/companies/gb/6762521",""
"London Borough of Redbridge","http://opendatacommunities.org/doc/london-borough-council/redbridge","4BMANGT&SUPP","Management & Support Services","4CHIGHRDROUT","Highways/Roads (Routine)","REV","Revenue","R7068","Signs - Schedule 2","05-THIRD","Third Party Payments","05H","Private contractors","6915","Contractor Payments","3455716","201709",13/12/2016 00:00:00,635.18,"21555","Construction Contractors - General","REDACTED DATA","SKANSKA CONSTRUCTION UK LTD","191408","http://opencorporates.com/companies/gb/191408","378403142"
"London Borough of Redbridge","http://opendatacommunities.org/doc/london-borough-council/redbridge","4BMANGT&SUPP","Management & Support Services","4CHIGHRDSTR","Highways/Roads (Structural)","REV","Revenue","R7092","Footway Crossing Works","05-THIRD","Third Party Payments","05H","Private contractors","6915","Contractor Payments","3454415","201708",22/11/2016 00:00:00,633.15,"18632","Civil Engineers","REDACTED DATA","KENSON CONTRACTORS BENINGTON LTD","1314691","http://opencorporates.com/companies/gb/1314691","301629589"
"London Borough of Redbridge","http://opendatacommunities.org/doc/london-borough-council/redbridge","7BCDC","Corporate & Democratic Core","7CCORPMGT","Corporate Management","REV","Revenue","R8505","Transformation Holding Account","01-EMPLOYEES","Employees","01A","Direct employee expenses","4","Agency Staff - Pay","60326831","201708",15/11/2016 00:00:00,630.89,"31230","Employment and Recruitment Agencies","REDACTED DATA","ALLEN LANE LIMITED","5115229","http://opencorporates.com/companies/gb/5115229","835970985"
"London Borough of Redbridge","http://opendatacommunities.org/doc/london-borough-council/redbridge","6BADULTSOCIA","Adult Social Care","6CADLEARNDIS","Adults Under 65 with Learning Disabilities","REV","Revenue","R4241","CCG � LD Continuing Care","05-THIRD","Third Party Payments","05H","Private contractors","6904","Day Centres","90803276","201709",05/12/2016 00:00:00,756.52,"17020","Charities and Voluntary Organisations","REDACTED DATA","SENSE","1825301","http://opencorporates.com/companies/gb/1825301",""
"London Borough of Redbridge","http://opendatacommunities.org/doc/london-borough-council/redbridge","5BGFHOUSING","General Fund Housing","5CHOMELESS","Homelessness","REV","Revenue","R5630","HAC Temporary Accomodation","05-THIRD","Third Party Payments","05H","Private contractors","6912","Bed & Breakfast Charges","70091162","201709",27/11/2016 00:00:00,630,"44100","Hotels","REDACTED DATA","THE COURTNEY HOTEL LONDON LTD","6874974","http://opencorporates.com/companies/gb/6874974","719040943"
"London Borough of Redbridge","http://opendatacommunities.org/doc/london-borough-council/redbridge","5BGFHOUSING","General Fund Housing","5CHOMELESS","Homelessness","REV","Revenue","R5630","HAC Temporary Accomodation","05-THIRD","Third Party Payments","05H","Private contractors","6912","Bed & Breakfast Charges","70090811","201709",20/11/2016 00:00:00,630,"44100","Hotels","REDACTED DATA","THE COURTNEY HOTEL LONDON LTD","6874974","http://opencorporates.com/companies/gb/6874974","719040943"
"London Borough of Redbridge","http://opendatacommunities.org/doc/london-borough-council/redbridge","6BPUBHEALTH","Public Health","6CSUBSTANCEM","Substance Misuse","REV","Revenue","R4815","Drug Misuse - Adults","05-THIRD","Third Party Payments","05G","Other establishments","6856","Pharmacies","3455537","201709",14/11/2016 00:00:00,756,"17440","Chemists - Dispensing","REDACTED DATA","STRANDHAVEN LTD - PHARMARAM","1413692","http://opencorporates.com/companies/gb/1413692","250007515"
"London Borough of Redbridge","http://opendatacommunities.org/doc/london-borough-council/redbridge","2BENVIRONMEN","Environmental Services","2CCONSPROT","Consumer Protection","REV","Revenue","R6771","Trading Standards","01-EMPLOYEES","Employees","01A","Direct employee expenses","4","Agency Staff - Pay","60329636","201709",15/12/2016 00:00:00,628.35,"31230","Employment and Recruitment Agencies","REDACTED DATA","KENYON BLOCK CONSULTANTS LTD","4991130","http://opencorporates.com/companies/gb/4991130","833075440"
"London Borough of Redbridge","http://opendatacommunities.org/doc/london-borough-council/redbridge","6BSOCIALSERV","Social Services","6CCHILLOOKED","Children Looked After","REV","Revenue","R2117","SEN and CD Care and Support Packages Social Care","06-TRANSFER","Transfer Payments","06B","Social Services Clients","7053","Direct Payments","3456576","201709",30/12/2016 00:00:00,754,"56800","Payroll Services","REDACTED DATA","DAVID HOWARD FUNDING ACCOUNT","3345093","http://opencorporates.com/companies/gb/3345093","788554956"
"London Borough of Redbridge","http://opendatacommunities.org/doc/london-borough-council/redbridge","6BSOCIALSERV","Social Services","6CCHILLOOKED","Children Looked After","REV","Revenue","R2117","SEN and CD Care and Support Packages Social Care","06-TRANSFER","Transfer Payments","06B","Social Services Clients","7053","Direct Payments","3453543","201708",01/12/2016 00:00:00,754,"90005","Home Care Services DP","REDACTED DATA","REDACTED DATA","",,""
"London Borough of Redbridge","http://opendatacommunities.org/doc/london-borough-council/redbridge","4BMANGT&SUPP","Management & Support Services","4CHIGHRDROUT","Highways/Roads (Routine)","REV","Revenue","R7070","Reactive Maintenance","05-THIRD","Third Party Payments","05H","Private contractors","6915","Contractor Payments","3455073","201709",06/12/2016 00:00:00,628.32,"18632","Civil Engineers","REDACTED DATA","KENSON CONTRACTORS BENINGTON LTD","1314691","http://opencorporates.com/companies/gb/1314691","301629589"
"London Borough of Redbridge","http://opendatacommunities.org/doc/london-borough-council/redbridge","2BENVIRONMEN","Environmental Services","2CCONSPROT","Consumer Protection","REV","Revenue","R6771","Trading Standards","01-EMPLOYEES","Employees","01A","Direct employee expenses","4","Agency Staff - Pay","60329746","201709",15/12/2016 00:00:00,627.9,"31230","Employment and Recruitment Agencies","REDACTED DATA","KENYON BLOCK CONSULTANTS LTD","4991130","http://opencorporates.com/companies/gb/4991130","833075440"
"London Borough of Redbridge","http://opendatacommunities.org/doc/london-borough-council/redbridge","4BMANGT&SUPP","Management & Support Services","4CHIGHRDSTR","Highways/Roads (Structural)","REV","Revenue","R7092","Footway Crossing Works","05-THIRD","Third Party Payments","05H","Private contractors","6915","Contractor Payments","3454438","201708",22/11/2016 00:00:00,627.75,"18632","Civil Engineers","REDACTED DATA","KENSON CONTRACTORS BENINGTON LTD","1314691","http://opencorporates.com/companies/gb/1314691","301629589"
"London Borough of Redbridge","http://opendatacommunities.org/doc/london-borough-council/redbridge","2BENVIRONMEN","Environmental Services","2CCONSPROT","Consumer Protection","REV","Revenue","R6771","Trading Standards","01-EMPLOYEES","Employees","01A","Direct employee expenses","4","Agency Staff - Pay","60327579","201708",24/11/2016 00:00:00,627,"31230","Employment and Recruitment Agencies","REDACTED DATA","KENYON BLOCK CONSULTANTS LTD","4991130","http://opencorporates.com/companies/gb/4991130","833075440"
"London Borough of Redbridge","http://opendatacommunities.org/doc/london-borough-council/redbridge","2BENVIRONMEN","Environmental Services","2CCOMSAFCRIM","Community Safety (Crime Reduction)","REV","Revenue","R6753","CCTV","05-THIRD","Third Party Payments","05H","Private contractors","6915","Contractor Payments","60330264","201709",31/10/2016 00:00:00,625,"11700","Burglar and Intruder Alarm Systems","REDACTED DATA","OPENVIEW SECURITY SOLUTIONS LTD","3376202","http://opencorporates.com/companies/gb/3376202","696815967"
"London Borough of Redbridge","http://opendatacommunities.org/doc/london-borough-council/redbridge","3BLEACENTFND","LEA Centrally Held School Funds","3CFACILIMPRO","Facilitating School Improvement","REV","Revenue","R3240","Advisers/Inspectors","04-SUPPLIES","Supplies And Services","04E","Services","5959","Raising Standards in Schools","60328783","201709",01/12/2016 00:00:00,750,"12100","Business and Management Consultants","REDACTED DATA","EVE PARMITER","3601968315","http://opencorporates.com/companies/gb/3601968315",""
"London Borough of Redbridge","http://opendatacommunities.org/doc/london-borough-council/redbridge","6BADULTSOCIA","Adult Social Care","6CADLEARNDIS","Adults Under 65 with Learning Disabilities","REV","Revenue","R4383","LD - External Day Care","05-THIRD","Third Party Payments","05H","Private contractors","6904","Day Centres","90808335","201709",30/12/2016 00:00:00,750,"25820","Disability and Special Needs - Services","REDACTED DATA","BR3AK FREE LTD","6274766","http://opencorporates.com/companies/gb/6274766",""
"London Borough of Redbridge","http://opendatacommunities.org/doc/london-borough-council/redbridge","6BSOCIALSERV","Social Services","6CCHILLOOKED","Children Looked After","REV","Revenue","R2117","SEN and CD Care and Support Packages Social Care","06-TRANSFER","Transfer Payments","06B","Social Services Clients","7050","Agency Homecare","60328157","201709",01/12/2016 00:00:00,750,"31230","Employment and Recruitment Agencies","REDACTED DATA","HOPE SUPER JOBS LTD","5081894","http://opencorporates.com/companies/gb/5081894","872555205"
"London Borough of Redbridge","http://opendatacommunities.org/doc/london-borough-council/redbridge","9BNONBVO","Outside the BVACOP Objective Structure","9CNONBVO","Outside the BVACOP Objective Structure","CAP","Capital","C4324","Nightingale - Reception Intake 2016","99-NONBV","Capital, Balance Sheet and Control","50B","Capital - Contracted Works","9055","External - Consultants Fees","60327970","201709",30/11/2016 00:00:00,625,"12100","Business and Management Consultants","REDACTED DATA","MLM CONSULTING ENGINEERS LTD","3057104","http://opencorporates.com/companies/gb/3057104","665811125"
"London Borough of Redbridge","http://opendatacommunities.org/doc/london-borough-council/redbridge","3BLEACENTFND","LEA Centrally Held School Funds","3CFACILIMPRO","Facilitating School Improvement","REV","Revenue","R3830","Network Learning Community","04-SUPPLIES","Supplies And Services","04G","Expenses","5901","Conference Expenses","60328976","201709",20/10/2016 00:00:00,748.46,"29380","Educational Training Providers","REDACTED DATA","SPRINGBOARD FOR CHILDREN","6251103","http://opencorporates.com/companies/gb/6251103",""
"London Borough of Redbridge","http://opendatacommunities.org/doc/london-borough-council/redbridge","9BNONBVO","Outside the BVACOP Objective Structure","9CNONBVO","Outside the BVACOP Objective Structure","REV","Revenue","R5132","Repairs and Maintenance - Other","02-PREMISES","Premises","02A","Repairs, alteration and maintenance of buildings","3038","Service Repairs","60327357","201708",17/11/2016 00:00:00,623.53,"1230","Access Equipment","REDACTED DATA","INTROLAND LTD","1569740","http://opencorporates.com/companies/gb/1569740","358393419"
"London Borough of Redbridge","http://opendatacommunities.org/doc/london-borough-council/redbridge","6BADULTSOCIA","Adult Social Care","6CADLEARNDIS","Adults Under 65 with Learning Disabilities","REV","Revenue","R4394","LD - Homecare","05-THIRD","Third Party Payments","05A","Independent units within the council","6502","Agency Homecare (Payments To Independent Units)","90805580","201709",14/12/2016 00:00:00,748.17,"31230","Employment and Recruitment Agencies","REDACTED DATA","HOPE SUPER JOBS LTD","5081894","http://opencorporates.com/companies/gb/5081894","872555205"
"London Borough of Redbridge","http://opendatacommunities.org/doc/london-borough-council/redbridge","6BADULTSOCIA","Adult Social Care","6CADLEARNDIS","Adults Under 65 with Learning Disabilities","REV","Revenue","R4394","LD - Homecare","05-THIRD","Third Party Payments","05A","Independent units within the council","6502","Agency Homecare (Payments To Independent Units)","90802686","201709",06/12/2016 00:00:00,748.17,"31230","Employment and Recruitment Agencies","REDACTED DATA","HOPE SUPER JOBS LTD","5081894","http://opencorporates.com/companies/gb/5081894","872555205"
"London Borough of Redbridge","http://opendatacommunities.org/doc/london-borough-council/redbridge","6BADULTSOCIA","Adult Social Care","6CADLEARNDIS","Adults Under 65 with Learning Disabilities","REV","Revenue","R4394","LD - Homecare","05-THIRD","Third Party Payments","05A","Independent units within the council","6502","Agency Homecare (Payments To Independent Units)","90805546","201709",14/12/2016 00:00:00,748.17,"31230","Employment and Recruitment Agencies","REDACTED DATA","HOPE SUPER JOBS LTD","5081894","http://opencorporates.com/companies/gb/5081894","872555205"
"London Borough of Redbridge","http://opendatacommunities.org/doc/london-borough-council/redbridge","2BENVIRONMEN","Environmental Services","2CCONSPROT","Consumer Protection","REV","Revenue","R6771","Trading Standards","01-EMPLOYEES","Employees","01A","Direct employee expenses","4","Agency Staff - Pay","60329635","201709",15/12/2016 00:00:00,622.5,"31230","Employment and Recruitment Agencies","REDACTED DATA","KENYON BLOCK CONSULTANTS LTD","4991130","http://opencorporates.com/companies/gb/4991130","833075440"
"London Borough of Redbridge","http://opendatacommunities.org/doc/london-borough-council/redbridge","4BMANGT&SUPP","Management & Support Services","4CHIGHRDSTR","Highways/Roads (Structural)","REV","Revenue","R7092","Footway Crossing Works","05-THIRD","Third Party Payments","05H","Private contractors","6915","Contractor Payments","3454367","201708",22/11/2016 00:00:00,622.09,"18632","Civil Engineers","REDACTED DATA","KENSON CONTRACTORS BENINGTON LTD","1314691","http://opencorporates.com/companies/gb/1314691","301629589"
"London Borough of Redbridge","http://opendatacommunities.org/doc/london-borough-council/redbridge","4BMANGT&SUPP","Management & Support Services","4CHIGHRDSTR","Highways/Roads (Structural)","REV","Revenue","R7092","Footway Crossing Works","05-THIRD","Third Party Payments","05H","Private contractors","6915","Contractor Payments","3454383","201708",22/11/2016 00:00:00,621,"18632","Civil Engineers","REDACTED DATA","KENSON CONTRACTORS BENINGTON LTD","1314691","http://opencorporates.com/companies/gb/1314691","301629589"
"London Borough of Redbridge","http://opendatacommunities.org/doc/london-borough-council/redbridge","9BNONBVO","Outside the BVACOP Objective Structure","9CNONBVO","Outside the BVACOP Objective Structure","REV","Revenue","R5213","Area Housing Team","04-SUPPLIES","Supplies And Services","04K","Miscellaneous expenses","6271","Residents Training","60330576","201709",29/12/2016 00:00:00,620.74,"79980","Training Services","REDACTED DATA","WHY NOT CONSULTANCY SERVICES LTD","8467290","http://opencorporates.com/companies/gb/8467290","163046821"
"London Borough of Redbridge","http://opendatacommunities.org/doc/london-borough-council/redbridge","9BNONBVO","Outside the BVACOP Objective Structure","9CNONBVO","Outside the BVACOP Objective Structure","REV","Revenue","R7702","Vehicle Workshop","04-SUPPLIES","Supplies And Services","04A","Equipment, furniture and materials","5510","Materials","658312","201709",12/12/2016 00:00:00,109.6,"13240","Car Accessories and Parts","REDACTED DATA","SPARSHATTS OF KENT LTD","1196089","http://opencorporates.com/companies/gb/1196089","204538975"
"London Borough of Redbridge","http://opendatacommunities.org/doc/london-borough-council/redbridge","9BNONBVO","Outside the BVACOP Objective Structure","9CNONBVO","Outside the BVACOP Objective Structure","REV","Revenue","R7702","Vehicle Workshop","04-SUPPLIES","Supplies And Services","04A","Equipment, furniture and materials","5510","Materials","658312","201709",12/12/2016 00:00:00,72.25,"13240","Car Accessories and Parts","REDACTED DATA","SPARSHATTS OF KENT LTD","1196089","http://opencorporates.com/companies/gb/1196089","204538975"
"London Borough of Redbridge","http://opendatacommunities.org/doc/london-borough-council/redbridge","9BNONBVO","Outside the BVACOP Objective Structure","9CNONBVO","Outside the BVACOP Objective Structure","REV","Revenue","R7702","Vehicle Workshop","04-SUPPLIES","Supplies And Services","04A","Equipment, furniture and materials","5510","Materials","658312","201709",12/12/2016 00:00:00,213.6,"13240","Car Accessories and Parts","REDACTED DATA","SPARSHATTS OF KENT LTD","1196089","http://opencorporates.com/companies/gb/1196089","204538975"
"London Borough of Redbridge","http://opendatacommunities.org/doc/london-borough-council/redbridge","9BNONBVO","Outside the BVACOP Objective Structure","9CNONBVO","Outside the BVACOP Objective Structure","REV","Revenue","R7702","Vehicle Workshop","04-SUPPLIES","Supplies And Services","04A","Equipment, furniture and materials","5510","Materials","658312","201709",12/12/2016 00:00:00,212,"13240","Car Accessories and Parts","REDACTED DATA","SPARSHATTS OF KENT LTD","1196089","http://opencorporates.com/companies/gb/1196089","204538975"
"London Borough of Redbridge","http://opendatacommunities.org/doc/london-borough-council/redbridge","9BNONBVO","Outside the BVACOP Objective Structure","9CNONBVO","Outside the BVACOP Objective Structure","REV","Revenue","R7702","Vehicle Workshop","04-SUPPLIES","Supplies And Services","04A","Equipment, furniture and materials","5510","Materials","658312","201709",12/12/2016 00:00:00,3.76,"13240","Car Accessories and Parts","REDACTED DATA","SPARSHATTS OF KENT LTD","1196089","http://opencorporates.com/companies/gb/1196089","204538975"
"London Borough of Redbridge","http://opendatacommunities.org/doc/london-borough-council/redbridge","9BNONBVO","Outside the BVACOP Objective Structure","9CNONBVO","Outside the BVACOP Objective Structure","REV","Revenue","R7702","Vehicle Workshop","04-SUPPLIES","Supplies And Services","04A","Equipment, furniture and materials","5510","Materials","658312","201709",12/12/2016 00:00:00,9.37,"13240","Car Accessories and Parts","REDACTED DATA","SPARSHATTS OF KENT LTD","1196089","http://opencorporates.com/companies/gb/1196089","204538975"
"London Borough of Redbridge","http://opendatacommunities.org/doc/london-borough-council/redbridge","4BMANGT&SUPP","Management & Support Services","4CHIGHRDSTR","Highways/Roads (Structural)","REV","Revenue","R7092","Footway Crossing Works","05-THIRD","Third Party Payments","05H","Private contractors","6915","Contractor Payments","3454434","201708",22/11/2016 00:00:00,620.1,"18632","Civil Engineers","REDACTED DATA","KENSON CONTRACTORS BENINGTON LTD","1314691","http://opencorporates.com/companies/gb/1314691","301629589"
"London Borough of Redbridge","http://opendatacommunities.org/doc/london-borough-council/redbridge","6BSOCIALSERV","Social Services","6CCHILLOOKED","Children Looked After","REV","Revenue","R2177","Public Law Outline","04-SUPPLIES","Supplies And Services","04H","Grants and subscriptions","5954","Professional Fees","60328722","201709",30/11/2016 00:00:00,620,"72460","Solicitors","REDACTED DATA","KYRIACOS LEFTERI","",,"930739321"
"London Borough of Redbridge","http://opendatacommunities.org/doc/london-borough-council/redbridge","6BSOCIALSERV","Social Services","6CCHILLOOKED","Children Looked After","REV","Revenue","R2177","Public Law Outline","04-SUPPLIES","Supplies And Services","04H","Grants and subscriptions","5954","Professional Fees","60328723","201709",30/11/2016 00:00:00,620,"6700","Barristers","REDACTED DATA","SAM WALLACE","",,""
"London Borough of Redbridge","http://opendatacommunities.org/doc/london-borough-council/redbridge","6BSOCIALSERV","Social Services","6CCHILLOOKED","Children Looked After","REV","Revenue","R2165","Post Office Payment","04-SUPPLIES","Supplies And Services","04K","Miscellaneous expenses","6216","Contract","60330443","201709",18/11/2016 00:00:00,631.1,"60230","Post Office Services","REDACTED DATA","POST OFFICE LTD","2154540","http://opencorporates.com/companies/gb/2154540","172670502"
"London Borough of Redbridge","http://opendatacommunities.org/doc/london-borough-council/redbridge","9BNONBVO","Outside the BVACOP Objective Structure","9CNONBVO","Outside the BVACOP Objective Structure","REV","Revenue","R7702","Vehicle Workshop","04-SUPPLIES","Supplies And Services","04A","Equipment, furniture and materials","5510","Materials","657816","201708",09/11/2016 00:00:00,619.84,"20390","Commercial Vehicle Servicing, Repairs, Parts and Accessories","REDACTED DATA","TRUST FIRST PARTS","191595","http://opencorporates.com/companies/gb/191595","833053650"
"London Borough of Redbridge","http://opendatacommunities.org/doc/london-borough-council/redbridge","4BMANGT&SUPP","Management & Support Services","4CHIGHRDSTR","Highways/Roads (Structural)","REV","Revenue","R7092","Footway Crossing Works","05-THIRD","Third Party Payments","05H","Private contractors","6915","Contractor Payments","3455937","201709",20/12/2016 00:00:00,619.65,"18632","Civil Engineers","REDACTED DATA","KENSON CONTRACTORS BENINGTON LTD","1314691","http://opencorporates.com/companies/gb/1314691","301629589"
"London Borough of Redbridge","http://opendatacommunities.org/doc/london-borough-council/redbridge","4BMANGT&SUPP","Management & Support Services","4CHIGHRDSTR","Highways/Roads (Structural)","REV","Revenue","R7092","Footway Crossing Works","05-THIRD","Third Party Payments","05H","Private contractors","6915","Contractor Payments","3455888","201709",20/12/2016 00:00:00,619.39,"18632","Civil Engineers","REDACTED DATA","KENSON CONTRACTORS BENINGTON LTD","1314691","http://opencorporates.com/companies/gb/1314691","301629589"
"London Borough of Redbridge","http://opendatacommunities.org/doc/london-borough-council/redbridge","6BPUBHEALTH","Public Health","6CSUBSTANCEM","Substance Misuse","REV","Revenue","R4815","Drug Misuse - Adults","05-THIRD","Third Party Payments","05G","Other establishments","6856","Pharmacies","3455748","201709",16/12/2016 00:00:00,742,"17440","Chemists - Dispensing","REDACTED DATA","STRANDHAVEN LTD - PHARMARAM","1413692","http://opencorporates.com/companies/gb/1413692","250007515"
"London Borough of Redbridge","http://opendatacommunities.org/doc/london-borough-council/redbridge","3BINDSCHFUND","Individual School Funds","3CDELSECOND","Delegated Individual Secondary School Budgets","REV","Revenue","S3032","MAYFIELD -  CPD HEALTH & SAFETY","01-EMPLOYEES","Employees","01B","Indirect employee expenses","2403","External Training","60329457","201709",13/12/2016 00:00:00,740,"35890","First Aid Training","REDACTED DATA","CRUSADER FIRST AID TRAINING","",,""
"London Borough of Redbridge","http://opendatacommunities.org/doc/london-borough-council/redbridge","6BADULTSOCIA","Adult Social Care","6CADLEARNDIS","Adults Under 65 with Learning Disabilities","REV","Revenue","R4383","LD - External Day Care","05-THIRD","Third Party Payments","05H","Private contractors","6904","Day Centres","90805870","201709",05/12/2016 00:00:00,739.5,"25820","Disability and Special Needs - Services","REDACTED DATA","BR3AK FREE LTD","6274766","http://opencorporates.com/companies/gb/6274766",""
"London Borough of Redbridge","http://opendatacommunities.org/doc/london-borough-council/redbridge","6BADULTSOCIA","Adult Social Care","6CADLEARNDIS","Adults Under 65 with Learning Disabilities","REV","Revenue","R4383","LD - External Day Care","05-THIRD","Third Party Payments","05H","Private contractors","6904","Day Centres","90803223","201709",02/12/2016 00:00:00,739.5,"25820","Disability and Special Needs - Services","REDACTED DATA","BR3AK FREE LTD","6274766","http://opencorporates.com/companies/gb/6274766",""
"London Borough of Redbridge","http://opendatacommunities.org/doc/london-borough-council/redbridge","6BADULTSOCIA","Adult Social Care","6CADLEARNDIS","Adults Under 65 with Learning Disabilities","REV","Revenue","R4383","LD - External Day Care","05-THIRD","Third Party Payments","05H","Private contractors","6904","Day Centres","90803230","201709",05/12/2016 00:00:00,739.5,"25820","Disability and Special Needs - Services","REDACTED DATA","BR3AK FREE LTD","6274766","http://opencorporates.com/companies/gb/6274766",""
"London Borough of Redbridge","http://opendatacommunities.org/doc/london-borough-council/redbridge","6BADULTSOCIA","Adult Social Care","6CADLEARNDIS","Adults Under 65 with Learning Disabilities","REV","Revenue","R4383","LD - External Day Care","05-THIRD","Third Party Payments","05H","Private contractors","6904","Day Centres","90808325","201709",28/12/2016 00:00:00,739.5,"25820","Disability and Special Needs - Services","REDACTED DATA","BR3AK FREE LTD","6274766","http://opencorporates.com/companies/gb/6274766",""
"London Borough of Redbridge","http://opendatacommunities.org/doc/london-borough-council/redbridge","4BMANGT&SUPP","Management & Support Services","4CHIGHRDSTR","Highways/Roads (Structural)","REV","Revenue","R7092","Footway Crossing Works","05-THIRD","Third Party Payments","05H","Private contractors","6915","Contractor Payments","3454366","201708",22/11/2016 00:00:00,615.6,"18632","Civil Engineers","REDACTED DATA","KENSON CONTRACTORS BENINGTON LTD","1314691","http://opencorporates.com/companies/gb/1314691","301629589"
"London Borough of Redbridge","http://opendatacommunities.org/doc/london-borough-council/redbridge","9BNONBVO","Outside the BVACOP Objective Structure","9CNONBVO","Outside the BVACOP Objective Structure","REV","Revenue","R7702","Vehicle Workshop","04-SUPPLIES","Supplies And Services","04A","Equipment, furniture and materials","5510","Materials","658371","201709",14/12/2016 00:00:00,614.91,"13330","Car Body Repairs","REDACTED DATA","BARKING PANELCRAFT","",,""
"London Borough of Redbridge","http://opendatacommunities.org/doc/london-borough-council/redbridge","4BMANGT&SUPP","Management & Support Services","4CHIGHRDSTR","Highways/Roads (Structural)","REV","Revenue","R7092","Footway Crossing Works","05-THIRD","Third Party Payments","05H","Private contractors","6915","Contractor Payments","3454417","201708",22/11/2016 00:00:00,614.25,"18632","Civil Engineers","REDACTED DATA","KENSON CONTRACTORS BENINGTON LTD","1314691","http://opencorporates.com/companies/gb/1314691","301629589"
"London Borough of Redbridge","http://opendatacommunities.org/doc/london-borough-council/redbridge","4BMANGT&SUPP","Management & Support Services","4CHIGHRDSTR","Highways/Roads (Structural)","REV","Revenue","R7092","Footway Crossing Works","05-THIRD","Third Party Payments","05H","Private contractors","6915","Contractor Payments","3454437","201708",22/11/2016 00:00:00,614.25,"18632","Civil Engineers","REDACTED DATA","KENSON CONTRACTORS BENINGTON LTD","1314691","http://opencorporates.com/companies/gb/1314691","301629589"
"London Borough of Redbridge","http://opendatacommunities.org/doc/london-borough-council/redbridge","6BADULTSOCIA","Adult Social Care","6CADLEARNDIS","Adults Under 65 with Learning Disabilities","REV","Revenue","R4394","LD - Homecare","05-THIRD","Third Party Payments","05A","Independent units within the council","6502","Agency Homecare (Payments To Independent Units)","90808091","201709",30/12/2016 00:00:00,736.96,"53350","Nursing Homes","REDACTED DATA","ELEANOR NURSING & SOCIALCARE LTD","4393038","http://opencorporates.com/companies/gb/4393038",""
"London Borough of Redbridge","http://opendatacommunities.org/doc/london-borough-council/redbridge","6BADULTSOCIA","Adult Social Care","6CADLEARNDIS","Adults Under 65 with Learning Disabilities","REV","Revenue","R4394","LD - Homecare","05-THIRD","Third Party Payments","05A","Independent units within the council","6502","Agency Homecare (Payments To Independent Units)","90808090","201709",30/12/2016 00:00:00,736.96,"53350","Nursing Homes","REDACTED DATA","ELEANOR NURSING & SOCIALCARE LTD","4393038","http://opencorporates.com/companies/gb/4393038",""
"London Borough of Redbridge","http://opendatacommunities.org/doc/london-borough-council/redbridge","4BMANGT&SUPP","Management & Support Services","4CHIGHRDSTR","Highways/Roads (Structural)","REV","Revenue","R7092","Footway Crossing Works","05-THIRD","Third Party Payments","05H","Private contractors","6915","Contractor Payments","3455901","201709",20/12/2016 00:00:00,612.9,"18632","Civil Engineers","REDACTED DATA","KENSON CONTRACTORS BENINGTON LTD","1314691","http://opencorporates.com/companies/gb/1314691","301629589"
"London Borough of Redbridge","http://opendatacommunities.org/doc/london-borough-council/redbridge","3BOPTIONHLDG","Optional Holding Accounts","3CADULT","Adult Education","REV","Revenue","R3483","RIAE   Exams","04-SUPPLIES","Supplies And Services","04H","Grants and subscriptions","5955","Fees","3454810","201709",07/11/2016 00:00:00,735,"17020","Charities and Voluntary Organisations","REDACTED DATA","GATEWAY QUALIFICATIONS","",,""
"London Borough of Redbridge","http://opendatacommunities.org/doc/london-borough-council/redbridge","4BMANGT&SUPP","Management & Support Services","4CHIGHRDSTR","Highways/Roads (Structural)","REV","Revenue","R7092","Footway Crossing Works","05-THIRD","Third Party Payments","05H","Private contractors","6915","Contractor Payments","3454362","201708",22/11/2016 00:00:00,612.45,"18632","Civil Engineers","REDACTED DATA","KENSON CONTRACTORS BENINGTON LTD","1314691","http://opencorporates.com/companies/gb/1314691","301629589"
"London Borough of Redbridge","http://opendatacommunities.org/doc/london-borough-council/redbridge","4BMANGT&SUPP","Management & Support Services","4CHIGHRDSTR","Highways/Roads (Structural)","REV","Revenue","R7092","Footway Crossing Works","05-THIRD","Third Party Payments","05H","Private contractors","6915","Contractor Payments","3455941","201709",20/12/2016 00:00:00,612.36,"18632","Civil Engineers","REDACTED DATA","KENSON CONTRACTORS BENINGTON LTD","1314691","http://opencorporates.com/companies/gb/1314691","301629589"
"London Borough of Redbridge","http://opendatacommunities.org/doc/london-borough-council/redbridge","6BADULTSOCIA","Adult Social Care","6CADLEARNDIS","Adults Under 65 with Learning Disabilities","REV","Revenue","R4394","LD - Homecare","05-THIRD","Third Party Payments","05A","Independent units within the council","6502","Agency Homecare (Payments To Independent Units)","90802661","201709",06/12/2016 00:00:00,733.5,"31230","Employment and Recruitment Agencies","REDACTED DATA","HOPE SUPER JOBS LTD","5081894","http://opencorporates.com/companies/gb/5081894","872555205"
"London Borough of Redbridge","http://opendatacommunities.org/doc/london-borough-council/redbridge","6BSOCIALSERV","Social Services","6COTHC&FSERV","Other Children's & Families' Services","REV","Revenue","R2169","Emergency Duty Team (EDT)","04-SUPPLIES","Supplies And Services","04A","Equipment, furniture and materials","5502","Equipment Purchase","60329601","201709",17/04/2015 00:00:00,609.84,"89564","Electrical Goods - Mnfrs and Wholesalers","REDACTED DATA","DSG RETAIL LTD(PC WORLD BUSINESS)","504877","http://opencorporates.com/companies/gb/504877","226659933"
"London Borough of Redbridge","http://opendatacommunities.org/doc/london-borough-council/redbridge","4BMANGT&SUPP","Management & Support Services","4CHIGHRDROUT","Highways/Roads (Routine)","REV","Revenue","R7070","Reactive Maintenance","05-THIRD","Third Party Payments","05H","Private contractors","6915","Contractor Payments","3453885","201708",22/11/2016 00:00:00,609.3,"18632","Civil Engineers","REDACTED DATA","KENSON CONTRACTORS BENINGTON LTD","1314691","http://opencorporates.com/companies/gb/1314691","301629589"
"London Borough of Redbridge","http://opendatacommunities.org/doc/london-borough-council/redbridge","3BINDSCHFUND","Individual School Funds","3CDELSECOND","Delegated Individual Secondary School Budgets","REV","Revenue","S3130","MAYFIELD -  Long Term supply (vacancies)","01-EMPLOYEES","Employees","01A","Direct employee expenses","4","Agency Staff - Pay","60328977","201709",05/12/2016 00:00:00,609,"29360","Educational Services","REDACTED DATA","RED (RECRUITMENT FOR EDUCATION) TEACHERS","6267283","http://opencorporates.com/companies/gb/6267283","923260840"
"London Borough of Redbridge","http://opendatacommunities.org/doc/london-borough-council/redbridge","3BNONSCHFUND","Non-School Funding","6CCHILLOOKED","Children Looked After","REV","Revenue","R2238","Looked After Children Placements LA","05-THIRD","Third Party Payments","05H","Private contractors","6917","Fostering Costs - Agency","60328688","201709",07/12/2016 00:00:00,730,"68200","Schools - Special","REDACTED DATA","THE ST CHRISTOPHER SCHOOL ACADEMY TRUST","",,"352173473"
"London Borough of Redbridge","http://opendatacommunities.org/doc/london-borough-council/redbridge","6BADULTSOCIA","Adult Social Care","6CADLEARNDIS","Adults Under 65 with Learning Disabilities","REV","Revenue","R4394","LD - Homecare","05-THIRD","Third Party Payments","05A","Independent units within the council","6502","Agency Homecare (Payments To Independent Units)","90806367","201709",29/12/2016 00:00:00,729.6,"31230","Employment and Recruitment Agencies","REDACTED DATA","SHARED CARE SERVICES LTD","4704680","http://opencorporates.com/companies/gb/4704680",""
"London Borough of Redbridge","http://opendatacommunities.org/doc/london-borough-council/redbridge","6BADULTSOCIA","Adult Social Care","6CADLEARNDIS","Adults Under 65 with Learning Disabilities","REV","Revenue","R4394","LD - Homecare","05-THIRD","Third Party Payments","05A","Independent units within the council","6502","Agency Homecare (Payments To Independent Units)","90797949","201709",09/12/2016 00:00:00,729.6,"31230","Employment and Recruitment Agencies","REDACTED DATA","SHARED CARE SERVICES LTD","4704680","http://opencorporates.com/companies/gb/4704680",""
"London Borough of Redbridge","http://opendatacommunities.org/doc/london-borough-council/redbridge","6BADULTSOCIA","Adult Social Care","6CADLEARNDIS","Adults Under 65 with Learning Disabilities","REV","Revenue","R4394","LD - Homecare","05-THIRD","Third Party Payments","05A","Independent units within the council","6502","Agency Homecare (Payments To Independent Units)","90798285","201709",09/12/2016 00:00:00,729.6,"31230","Employment and Recruitment Agencies","REDACTED DATA","SHARED CARE SERVICES LTD","4704680","http://opencorporates.com/companies/gb/4704680",""
"London Borough of Redbridge","http://opendatacommunities.org/doc/london-borough-council/redbridge","6BADULTSOCIA","Adult Social Care","6CADLEARNDIS","Adults Under 65 with Learning Disabilities","REV","Revenue","R4394","LD - Homecare","05-THIRD","Third Party Payments","05A","Independent units within the council","6502","Agency Homecare (Payments To Independent Units)","90798286","201709",09/12/2016 00:00:00,729.6,"31230","Employment and Recruitment Agencies","REDACTED DATA","SHARED CARE SERVICES LTD","4704680","http://opencorporates.com/companies/gb/4704680",""
"London Borough of Redbridge","http://opendatacommunities.org/doc/london-borough-council/redbridge","6BADULTSOCIA","Adult Social Care","6CADLEARNDIS","Adults Under 65 with Learning Disabilities","REV","Revenue","R4394","LD - Homecare","05-THIRD","Third Party Payments","05A","Independent units within the council","6502","Agency Homecare (Payments To Independent Units)","90798284","201709",09/12/2016 00:00:00,729.6,"31230","Employment and Recruitment Agencies","REDACTED DATA","SHARED CARE SERVICES LTD","4704680","http://opencorporates.com/companies/gb/4704680",""
"London Borough of Redbridge","http://opendatacommunities.org/doc/london-borough-council/redbridge","6BADULTSOCIA","Adult Social Care","6CADLEARNDIS","Adults Under 65 with Learning Disabilities","REV","Revenue","R4383","LD - External Day Care","05-THIRD","Third Party Payments","05H","Private contractors","6904","Day Centres","90803299","201709",06/12/2016 00:00:00,728.35,"24200","Day Centres","REDACTED DATA","EASTWAY CARE LTD","",,""
"London Borough of Redbridge","http://opendatacommunities.org/doc/london-borough-council/redbridge","1BOTHEROPI&E","Other Operating Income & Expenditure","1CTRADSURDEF","Trading Account Surpluses & Deficits","REV","Revenue","R9152","Financial Services","01-EMPLOYEES","Employees","01A","Direct employee expenses","4","Agency Staff - Pay","3455812","201709",20/12/2016 00:00:00,2778.45,"31230","Employment and Recruitment Agencies","REDACTED DATA","ADECCO UK LIMITED","593232","http://opencorporates.com/companies/gb/593232","232347975"
"London Borough of Redbridge","http://opendatacommunities.org/doc/london-borough-council/redbridge","1BOTHEROPI&E","Other Operating Income & Expenditure","1CTRADSURDEF","Trading Account Surpluses & Deficits","REV","Revenue","R9152","Financial Services","01-EMPLOYEES","Employees","01A","Direct employee expenses","4","Agency Staff - Pay","3455812","201709",20/12/2016 00:00:00,2269.2,"31230","Employment and Recruitment Agencies","REDACTED DATA","ADECCO UK LIMITED","593232","http://opencorporates.com/companies/gb/593232","232347975"
"London Borough of Redbridge","http://opendatacommunities.org/doc/london-borough-council/redbridge","1BOTHEROPI&E","Other Operating Income & Expenditure","1CTRADSURDEF","Trading Account Surpluses & Deficits","REV","Revenue","R9152","Financial Services","01-EMPLOYEES","Employees","01A","Direct employee expenses","4","Agency Staff - Pay","3455812","201709",20/12/2016 00:00:00,522,"31230","Employment and Recruitment Agencies","REDACTED DATA","ADECCO UK LIMITED","593232","http://opencorporates.com/companies/gb/593232","232347975"
"London Borough of Redbridge","http://opendatacommunities.org/doc/london-borough-council/redbridge","1BOTHEROPI&E","Other Operating Income & Expenditure","1CTRADSURDEF","Trading Account Surpluses & Deficits","REV","Revenue","R9152","Financial Services","01-EMPLOYEES","Employees","01A","Direct employee expenses","4","Agency Staff - Pay","3455812","201709",20/12/2016 00:00:00,1024.5,"31230","Employment and Recruitment Agencies","REDACTED DATA","ADECCO UK LIMITED","593232","http://opencorporates.com/companies/gb/593232","232347975"
"London Borough of Redbridge","http://opendatacommunities.org/doc/london-borough-council/redbridge","1BOTHEROPI&E","Other Operating Income & Expenditure","1CTRADSURDEF","Trading Account Surpluses & Deficits","REV","Revenue","R9252","IT Services","01-EMPLOYEES","Employees","01A","Direct employee expenses","4","Agency Staff - Pay","3455812","201709",20/12/2016 00:00:00,2880.05,"31230","Employment and Recruitment Agencies","REDACTED DATA","ADECCO UK LIMITED","593232","http://opencorporates.com/companies/gb/593232","232347975"
"London Borough of Redbridge","http://opendatacommunities.org/doc/london-borough-council/redbridge","1BOTHEROPI&E","Other Operating Income & Expenditure","1CTRADSURDEF","Trading Account Surpluses & Deficits","REV","Revenue","R9252","IT Services","01-EMPLOYEES","Employees","01A","Direct employee expenses","4","Agency Staff - Pay","3455812","201709",20/12/2016 00:00:00,2033.19,"31230","Employment and Recruitment Agencies","REDACTED DATA","ADECCO UK LIMITED","593232","http://opencorporates.com/companies/gb/593232","232347975"
"London Borough of Redbridge","http://opendatacommunities.org/doc/london-borough-council/redbridge","1BOTHEROPI&E","Other Operating Income & Expenditure","1CTRADSURDEF","Trading Account Surpluses & Deficits","REV","Revenue","R9252","IT Services","01-EMPLOYEES","Employees","01A","Direct employee expenses","4","Agency Staff - Pay","3455812","201709",20/12/2016 00:00:00,2304.04,"31230","Employment and Recruitment Agencies","REDACTED DATA","ADECCO UK LIMITED","593232","http://opencorporates.com/companies/gb/593232","232347975"
"London Borough of Redbridge","http://opendatacommunities.org/doc/london-borough-council/redbridge","1BOTHEROPI&E","Other Operating Income & Expenditure","1CTRADSURDEF","Trading Account Surpluses & Deficits","REV","Revenue","R9252","IT Services","01-EMPLOYEES","Employees","01A","Direct employee expenses","4","Agency Staff - Pay","3455812","201709",20/12/2016 00:00:00,2880.05,"31230","Employment and Recruitment Agencies","REDACTED DATA","ADECCO UK LIMITED","593232","http://opencorporates.com/companies/gb/593232","232347975"
"London Borough of Redbridge","http://opendatacommunities.org/doc/london-borough-council/redbridge","1BOTHEROPI&E","Other Operating Income & Expenditure","1CTRADSURDEF","Trading Account Surpluses & Deficits","REV","Revenue","R9252","IT Services","01-EMPLOYEES","Employees","01A","Direct employee expenses","4","Agency Staff - Pay","3455812","201709",20/12/2016 00:00:00,1661.52,"31230","Employment and Recruitment Agencies","REDACTED DATA","ADECCO UK LIMITED","593232","http://opencorporates.com/companies/gb/593232","232347975"
"London Borough of Redbridge","http://opendatacommunities.org/doc/london-borough-council/redbridge","1BOTHEROPI&E","Other Operating Income & Expenditure","1CTRADSURDEF","Trading Account Surpluses & Deficits","REV","Revenue","R9252","IT Services","01-EMPLOYEES","Employees","01A","Direct employee expenses","4","Agency Staff - Pay","3455812","201709",20/12/2016 00:00:00,2608.68,"31230","Employment and Recruitment Agencies","REDACTED DATA","ADECCO UK LIMITED","593232","http://opencorporates.com/companies/gb/593232","232347975"
"London Borough of Redbridge","http://opendatacommunities.org/doc/london-borough-council/redbridge","1BOTHEROPI&E","Other Operating Income & Expenditure","1CTRADSURDEF","Trading Account Surpluses & Deficits","REV","Revenue","R9252","IT Services","01-EMPLOYEES","Employees","01A","Direct employee expenses","4","Agency Staff - Pay","3455812","201709",20/12/2016 00:00:00,1102.88,"31230","Employment and Recruitment Agencies","REDACTED DATA","ADECCO UK LIMITED","593232","http://opencorporates.com/companies/gb/593232","232347975"
"London Borough of Redbridge","http://opendatacommunities.org/doc/london-borough-council/redbridge","4BMANGT&SUPP","Management & Support Services","4CHIGHRDSTR","Highways/Roads (Structural)","REV","Revenue","R7092","Footway Crossing Works","05-THIRD","Third Party Payments","05H","Private contractors","6915","Contractor Payments","3455902","201709",20/12/2016 00:00:00,606.6,"18632","Civil Engineers","REDACTED DATA","KENSON CONTRACTORS BENINGTON LTD","1314691","http://opencorporates.com/companies/gb/1314691","301629589"
"London Borough of Redbridge","http://opendatacommunities.org/doc/london-borough-council/redbridge","4BMANGT&SUPP","Management & Support Services","4CHIGHRDSTR","Highways/Roads (Structural)","REV","Revenue","R7092","Footway Crossing Works","05-THIRD","Third Party Payments","05H","Private contractors","6915","Contractor Payments","3454358","201708",22/11/2016 00:00:00,604.8,"18632","Civil Engineers","REDACTED DATA","KENSON CONTRACTORS BENINGTON LTD","1314691","http://opencorporates.com/companies/gb/1314691","301629589"
"London Borough of Redbridge","http://opendatacommunities.org/doc/london-borough-council/redbridge","9BNONBVO","Outside the BVACOP Objective Structure","9CNONBVO","Outside the BVACOP Objective Structure","REV","Revenue","R7702","Vehicle Workshop","04-SUPPLIES","Supplies And Services","04A","Equipment, furniture and materials","5510","Materials","658051","201709",22/11/2016 00:00:00,496.62,"20375","Commercial Vehicle Mnfrs","REDACTED DATA","JOHNSTON SWEEPERS LTD","",,""
"London Borough of Redbridge","http://opendatacommunities.org/doc/london-borough-council/redbridge","9BNONBVO","Outside the BVACOP Objective Structure","9CNONBVO","Outside the BVACOP Objective Structure","REV","Revenue","R7702","Vehicle Workshop","04-SUPPLIES","Supplies And Services","04A","Equipment, furniture and materials","5510","Materials","658051","201709",22/11/2016 00:00:00,0.28,"20375","Commercial Vehicle Mnfrs","REDACTED DATA","JOHNSTON SWEEPERS LTD","",,""
"London Borough of Redbridge","http://opendatacommunities.org/doc/london-borough-council/redbridge","9BNONBVO","Outside the BVACOP Objective Structure","9CNONBVO","Outside the BVACOP Objective Structure","REV","Revenue","R7702","Vehicle Workshop","04-SUPPLIES","Supplies And Services","04A","Equipment, furniture and materials","5510","Materials","658051","201709",22/11/2016 00:00:00,3.46,"20375","Commercial Vehicle Mnfrs","REDACTED DATA","JOHNSTON SWEEPERS LTD","",,""
"London Borough of Redbridge","http://opendatacommunities.org/doc/london-borough-council/redbridge","9BNONBVO","Outside the BVACOP Objective Structure","9CNONBVO","Outside the BVACOP Objective Structure","REV","Revenue","R7702","Vehicle Workshop","04-SUPPLIES","Supplies And Services","04A","Equipment, furniture and materials","5510","Materials","658051","201709",22/11/2016 00:00:00,1.01,"20375","Commercial Vehicle Mnfrs","REDACTED DATA","JOHNSTON SWEEPERS LTD","",,""
"London Borough of Redbridge","http://opendatacommunities.org/doc/london-borough-council/redbridge","9BNONBVO","Outside the BVACOP Objective Structure","9CNONBVO","Outside the BVACOP Objective Structure","REV","Revenue","R7702","Vehicle Workshop","04-SUPPLIES","Supplies And Services","04A","Equipment, furniture and materials","5510","Materials","658051","201709",22/11/2016 00:00:00,6.41,"20375","Commercial Vehicle Mnfrs","REDACTED DATA","JOHNSTON SWEEPERS LTD","",,""
"London Borough of Redbridge","http://opendatacommunities.org/doc/london-borough-council/redbridge","9BNONBVO","Outside the BVACOP Objective Structure","9CNONBVO","Outside the BVACOP Objective Structure","REV","Revenue","R7702","Vehicle Workshop","04-SUPPLIES","Supplies And Services","04A","Equipment, furniture and materials","5510","Materials","658051","201709",22/11/2016 00:00:00,40.64,"20375","Commercial Vehicle Mnfrs","REDACTED DATA","JOHNSTON SWEEPERS LTD","",,""
"London Borough of Redbridge","http://opendatacommunities.org/doc/london-borough-council/redbridge","9BNONBVO","Outside the BVACOP Objective Structure","9CNONBVO","Outside the BVACOP Objective Structure","REV","Revenue","R7702","Vehicle Workshop","04-SUPPLIES","Supplies And Services","04A","Equipment, furniture and materials","5510","Materials","658051","201709",22/11/2016 00:00:00,6.81,"20375","Commercial Vehicle Mnfrs","REDACTED DATA","JOHNSTON SWEEPERS LTD","",,""
"London Borough of Redbridge","http://opendatacommunities.org/doc/london-borough-council/redbridge","9BNONBVO","Outside the BVACOP Objective Structure","9CNONBVO","Outside the BVACOP Objective Structure","REV","Revenue","R7702","Vehicle Workshop","04-SUPPLIES","Supplies And Services","04A","Equipment, furniture and materials","5510","Materials","658051","201709",22/11/2016 00:00:00,3.95,"20375","Commercial Vehicle Mnfrs","REDACTED DATA","JOHNSTON SWEEPERS LTD","",,""
"London Borough of Redbridge","http://opendatacommunities.org/doc/london-borough-council/redbridge","9BNONBVO","Outside the BVACOP Objective Structure","9CNONBVO","Outside the BVACOP Objective Structure","REV","Revenue","R7702","Vehicle Workshop","04-SUPPLIES","Supplies And Services","04A","Equipment, furniture and materials","5510","Materials","658051","201709",22/11/2016 00:00:00,0.52,"20375","Commercial Vehicle Mnfrs","REDACTED DATA","JOHNSTON SWEEPERS LTD","",,""
"London Borough of Redbridge","http://opendatacommunities.org/doc/london-borough-council/redbridge","1BOTHEROPI&E","Other Operating Income & Expenditure","1CTRADSURDEF","Trading Account Surpluses & Deficits","REV","Revenue","R9252","IT Services","01-EMPLOYEES","Employees","01A","Direct employee expenses","4","Agency Staff - Pay","3455812","201709",20/12/2016 00:00:00,1000.81,"31230","Employment and Recruitment Agencies","REDACTED DATA","ADECCO UK LIMITED","593232","http://opencorporates.com/companies/gb/593232","232347975"
"London Borough of Redbridge","http://opendatacommunities.org/doc/london-borough-council/redbridge","1BOTHEROPI&E","Other Operating Income & Expenditure","1CTRADSURDEF","Trading Account Surpluses & Deficits","REV","Revenue","R9252","IT Services","01-EMPLOYEES","Employees","01A","Direct employee expenses","4","Agency Staff - Pay","3455812","201709",20/12/2016 00:00:00,665.76,"31230","Employment and Recruitment Agencies","REDACTED DATA","ADECCO UK LIMITED","593232","http://opencorporates.com/companies/gb/593232","232347975"
"London Borough of Redbridge","http://opendatacommunities.org/doc/london-borough-council/redbridge","1BOTHEROPI&E","Other Operating Income & Expenditure","1CTRADSURDEF","Trading Account Surpluses & Deficits","REV","Revenue","R9252","IT Services","01-EMPLOYEES","Employees","01A","Direct employee expenses","4","Agency Staff - Pay","3455812","201709",20/12/2016 00:00:00,3167.55,"31230","Employment and Recruitment Agencies","REDACTED DATA","ADECCO UK LIMITED","593232","http://opencorporates.com/companies/gb/593232","232347975"
"London Borough of Redbridge","http://opendatacommunities.org/doc/london-borough-council/redbridge","1BOTHEROPI&E","Other Operating Income & Expenditure","1CTRADSURDEF","Trading Account Surpluses & Deficits","REV","Revenue","R9252","IT Services","01-EMPLOYEES","Employees","01A","Direct employee expenses","4","Agency Staff - Pay","3455812","201709",20/12/2016 00:00:00,936.4,"31230","Employment and Recruitment Agencies","REDACTED DATA","ADECCO UK LIMITED","593232","http://opencorporates.com/companies/gb/593232","232347975"
"London Borough of Redbridge","http://opendatacommunities.org/doc/london-borough-council/redbridge","1BOTHEROPI&E","Other Operating Income & Expenditure","1CTRADSURDEF","Trading Account Surpluses & Deficits","REV","Revenue","R9252","IT Services","01-EMPLOYEES","Employees","01A","Direct employee expenses","4","Agency Staff - Pay","3455812","201709",20/12/2016 00:00:00,887.68,"31230","Employment and Recruitment Agencies","REDACTED DATA","ADECCO UK LIMITED","593232","http://opencorporates.com/companies/gb/593232","232347975"
"London Borough of Redbridge","http://opendatacommunities.org/doc/london-borough-council/redbridge","1BOTHEROPI&E","Other Operating Income & Expenditure","1CTRADSURDEF","Trading Account Surpluses & Deficits","REV","Revenue","R9252","IT Services","01-EMPLOYEES","Employees","01A","Direct employee expenses","4","Agency Staff - Pay","3455812","201709",20/12/2016 00:00:00,936.4,"31230","Employment and Recruitment Agencies","REDACTED DATA","ADECCO UK LIMITED","593232","http://opencorporates.com/companies/gb/593232","232347975"
"London Borough of Redbridge","http://opendatacommunities.org/doc/london-borough-council/redbridge","1BOTHEROPI&E","Other Operating Income & Expenditure","1CTRADSURDEF","Trading Account Surpluses & Deficits","REV","Revenue","R9252","IT Services","01-EMPLOYEES","Employees","01A","Direct employee expenses","4","Agency Staff - Pay","3455812","201709",20/12/2016 00:00:00,1455.8,"31230","Employment and Recruitment Agencies","REDACTED DATA","ADECCO UK LIMITED","593232","http://opencorporates.com/companies/gb/593232","232347975"
"London Borough of Redbridge","http://opendatacommunities.org/doc/london-borough-council/redbridge","1BOTHEROPI&E","Other Operating Income & Expenditure","1CTRADSURDEF","Trading Account Surpluses & Deficits","REV","Revenue","R9252","IT Services","01-EMPLOYEES","Employees","01A","Direct employee expenses","4","Agency Staff - Pay","3455812","201709",20/12/2016 00:00:00,2073.9,"31230","Employment and Recruitment Agencies","REDACTED DATA","ADECCO UK LIMITED","593232","http://opencorporates.com/companies/gb/593232","232347975"
"London Borough of Redbridge","http://opendatacommunities.org/doc/london-borough-council/redbridge","1BOTHEROPI&E","Other Operating Income & Expenditure","1CTRADSURDEF","Trading Account Surpluses & Deficits","REV","Revenue","R9252","IT Services","01-EMPLOYEES","Employees","01A","Direct employee expenses","4","Agency Staff - Pay","3455812","201709",20/12/2016 00:00:00,2880.05,"31230","Employment and Recruitment Agencies","REDACTED DATA","ADECCO UK LIMITED","593232","http://opencorporates.com/companies/gb/593232","232347975"
"London Borough of Redbridge","http://opendatacommunities.org/doc/london-borough-council/redbridge","1BOTHEROPI&E","Other Operating Income & Expenditure","1CTRADSURDEF","Trading Account Surpluses & Deficits","REV","Revenue","R9256","Redbridge-i Development","01-EMPLOYEES","Employees","01A","Direct employee expenses","4","Agency Staff - Pay","3455812","201709",20/12/2016 00:00:00,2333.3,"31230","Employment and Recruitment Agencies","REDACTED DATA","ADECCO UK LIMITED","593232","http://opencorporates.com/companies/gb/593232","232347975"
"London Borough of Redbridge","http://opendatacommunities.org/doc/london-borough-council/redbridge","1BOTHEROPI&E","Other Operating Income & Expenditure","1CTRADSURDEF","Trading Account Surpluses & Deficits","REV","Revenue","R9256","Redbridge-i Development","01-EMPLOYEES","Employees","01A","Direct employee expenses","4","Agency Staff - Pay","3455812","201709",20/12/2016 00:00:00,2555.05,"31230","Employment and Recruitment Agencies","REDACTED DATA","ADECCO UK LIMITED","593232","http://opencorporates.com/companies/gb/593232","232347975"
"London Borough of Redbridge","http://opendatacommunities.org/doc/london-borough-council/redbridge","9BNONBVO","Outside the BVACOP Objective Structure","9CNONBVO","Outside the BVACOP Objective Structure","REV","Revenue","R7702","Vehicle Workshop","04-SUPPLIES","Supplies And Services","04A","Equipment, furniture and materials","5510","Materials","658051","201709",22/11/2016 00:00:00,0.52,"20375","Commercial Vehicle Mnfrs","REDACTED DATA","JOHNSTON SWEEPERS LTD","",,""
"London Borough of Redbridge","http://opendatacommunities.org/doc/london-borough-council/redbridge","9BNONBVO","Outside the BVACOP Objective Structure","9CNONBVO","Outside the BVACOP Objective Structure","REV","Revenue","R7702","Vehicle Workshop","04-SUPPLIES","Supplies And Services","04A","Equipment, furniture and materials","5510","Materials","658051","201709",22/11/2016 00:00:00,0.79,"20375","Commercial Vehicle Mnfrs","REDACTED DATA","JOHNSTON SWEEPERS LTD","",,""
"London Borough of Redbridge","http://opendatacommunities.org/doc/london-borough-council/redbridge","9BNONBVO","Outside the BVACOP Objective Structure","9CNONBVO","Outside the BVACOP Objective Structure","REV","Revenue","R7702","Vehicle Workshop","04-SUPPLIES","Supplies And Services","04A","Equipment, furniture and materials","5510","Materials","658051","201709",22/11/2016 00:00:00,42.22,"20375","Commercial Vehicle Mnfrs","REDACTED DATA","JOHNSTON SWEEPERS LTD","",,""
"London Borough of Redbridge","http://opendatacommunities.org/doc/london-borough-council/redbridge","9BNONBVO","Outside the BVACOP Objective Structure","9CNONBVO","Outside the BVACOP Objective Structure","BAL","Balance Sheet","B0006","Mech Engineerng Store","99-NONBV","Capital, Balance Sheet and Control","50K","Current Assets","9407","Variation A/C - Payments","658322","201709",30/11/2016 00:00:00,-500,"81240","Tyre Mnfrs and Distributors","REDACTED DATA","ATS EUROMASTER LIMITED","4303731","http://opencorporates.com/companies/gb/4303731","813051180"
"London Borough of Redbridge","http://opendatacommunities.org/doc/london-borough-council/redbridge","9BNONBVO","Outside the BVACOP Objective Structure","9CNONBVO","Outside the BVACOP Objective Structure","REV","Revenue","R7702","Vehicle Workshop","04-SUPPLIES","Supplies And Services","04A","Equipment, furniture and materials","5510","Materials","658322","201709",30/11/2016 00:00:00,179.08,"81240","Tyre Mnfrs and Distributors","REDACTED DATA","ATS EUROMASTER LIMITED","4303731","http://opencorporates.com/companies/gb/4303731","813051180"
"London Borough of Redbridge","http://opendatacommunities.org/doc/london-borough-council/redbridge","9BNONBVO","Outside the BVACOP Objective Structure","9CNONBVO","Outside the BVACOP Objective Structure","REV","Revenue","R7702","Vehicle Workshop","04-SUPPLIES","Supplies And Services","04A","Equipment, furniture and materials","5510","Materials","658322","201709",30/11/2016 00:00:00,358.16,"81240","Tyre Mnfrs and Distributors","REDACTED DATA","ATS EUROMASTER LIMITED","4303731","http://opencorporates.com/companies/gb/4303731","813051180"
"London Borough of Redbridge","http://opendatacommunities.org/doc/london-borough-council/redbridge","9BNONBVO","Outside the BVACOP Objective Structure","9CNONBVO","Outside the BVACOP Objective Structure","REV","Revenue","R7702","Vehicle Workshop","04-SUPPLIES","Supplies And Services","04A","Equipment, furniture and materials","5510","Materials","658322","201709",30/11/2016 00:00:00,422.93,"81240","Tyre Mnfrs and Distributors","REDACTED DATA","ATS EUROMASTER LIMITED","4303731","http://opencorporates.com/companies/gb/4303731","813051180"
"London Borough of Redbridge","http://opendatacommunities.org/doc/london-borough-council/redbridge","9BNONBVO","Outside the BVACOP Objective Structure","9CNONBVO","Outside the BVACOP Objective Structure","REV","Revenue","R7702","Vehicle Workshop","04-SUPPLIES","Supplies And Services","04A","Equipment, furniture and materials","5510","Materials","658322","201709",30/11/2016 00:00:00,142.97,"81240","Tyre Mnfrs and Distributors","REDACTED DATA","ATS EUROMASTER LIMITED","4303731","http://opencorporates.com/companies/gb/4303731","813051180"
"London Borough of Redbridge","http://opendatacommunities.org/doc/london-borough-council/redbridge","5BGFHOUSING","General Fund Housing","5CHOMELESS","Homelessness","REV","Revenue","R5630","HAC Temporary Accomodation","05-THIRD","Third Party Payments","05H","Private contractors","6912","Bed & Breakfast Charges","3455758","201709",28/08/2016 00:00:00,602,"47846","Letting Agents","REDACTED DATA","SEYMOUR PROPERTY SERVICES","",,""
"London Borough of Redbridge","http://opendatacommunities.org/doc/london-borough-council/redbridge","4BMANGT&SUPP","Management & Support Services","4CHIGHRDSTR","Highways/Roads (Structural)","REV","Revenue","R7092","Footway Crossing Works","05-THIRD","Third Party Payments","05H","Private contractors","6915","Contractor Payments","3454411","201708",22/11/2016 00:00:00,601.2,"18632","Civil Engineers","REDACTED DATA","KENSON CONTRACTORS BENINGTON LTD","1314691","http://opencorporates.com/companies/gb/1314691","301629589"
"London Borough of Redbridge","http://opendatacommunities.org/doc/london-borough-council/redbridge","5BGFHOUSING","General Fund Housing","5CHOMELESS","Homelessness","REV","Revenue","R5645","Storage and Removals","04-SUPPLIES","Supplies And Services","04K","Miscellaneous expenses","6227","Furniture Removal & Storage","60328851","201709",30/11/2016 00:00:00,600,"64620","Removals and Storage - Household","REDACTED DATA","CROWN PROMOTIONS & REMOVALS LIMITED","4002589","http://opencorporates.com/companies/gb/4002589","506837339"
"London Borough of Redbridge","http://opendatacommunities.org/doc/london-borough-council/redbridge","6BSOCIALSERV","Social Services","6CCHILLOOKED","Children Looked After","REV","Revenue","R2117","SEN and CD Care and Support Packages Social Care","06-TRANSFER","Transfer Payments","06B","Social Services Clients","7050","Agency Homecare","60326190","201709",10/11/2016 00:00:00,720,"79980","Training Services","REDACTED DATA","ASK CARE LTD","5656634","http://opencorporates.com/companies/gb/5656634",""
"London Borough of Redbridge","http://opendatacommunities.org/doc/london-borough-council/redbridge","1BOTHEROPI&E","Other Operating Income & Expenditure","1CTRADSURDEF","Trading Account Surpluses & Deficits","REV","Revenue","R9148","Contracts Holding Account","02-PREMISES","Premises","02I","Grounds maintenance costs","4753","Trees / Recreational","60327930","201708",06/09/2016 00:00:00,600,"91569","Nurserymen - Trees, Shrubs and Bonsai","REDACTED DATA","PRINCIPAL TREES LTD","7035737","http://opencorporates.com/companies/gb/7035737","980080328"
"London Borough of Redbridge","http://opendatacommunities.org/doc/london-borough-council/redbridge","4BMANGT&SUPP","Management & Support Services","4CHIGHRDSTR","Highways/Roads (Structural)","REV","Revenue","R7092","Footway Crossing Works","05-THIRD","Third Party Payments","05H","Private contractors","6915","Contractor Payments","3454421","201708",22/11/2016 00:00:00,599.85,"18632","Civil Engineers","REDACTED DATA","KENSON CONTRACTORS BENINGTON LTD","1314691","http://opencorporates.com/companies/gb/1314691","301629589"
"London Borough of Redbridge","http://opendatacommunities.org/doc/london-borough-council/redbridge","6BADULTSOCIA","Adult Social Care","6COLDINCMENT","Older People (65 or over) incl. Older Mentally Ill","REV","Revenue","R4391","OP Home Care","05-THIRD","Third Party Payments","05A","Independent units within the council","6502","Agency Homecare (Payments To Independent Units)","90802677","201709",06/12/2016 00:00:00,719.04,"31230","Employment and Recruitment Agencies","REDACTED DATA","HOPE SUPER JOBS LTD","5081894","http://opencorporates.com/companies/gb/5081894","872555205"
"London Borough of Redbridge","http://opendatacommunities.org/doc/london-borough-council/redbridge","6BADULTSOCIA","Adult Social Care","6COLDINCMENT","Older People (65 or over) incl. Older Mentally Ill","REV","Revenue","R4391","OP Home Care","05-THIRD","Third Party Payments","05A","Independent units within the council","6502","Agency Homecare (Payments To Independent Units)","90805537","201709",14/12/2016 00:00:00,719.04,"31230","Employment and Recruitment Agencies","REDACTED DATA","HOPE SUPER JOBS LTD","5081894","http://opencorporates.com/companies/gb/5081894","872555205"
"London Borough of Redbridge","http://opendatacommunities.org/doc/london-borough-council/redbridge","6BADULTSOCIA","Adult Social Care","6COLDINCMENT","Older People (65 or over) incl. Older Mentally Ill","REV","Revenue","R4391","OP Home Care","05-THIRD","Third Party Payments","05A","Independent units within the council","6502","Agency Homecare (Payments To Independent Units)","90805572","201709",14/12/2016 00:00:00,719.04,"31230","Employment and Recruitment Agencies","REDACTED DATA","HOPE SUPER JOBS LTD","5081894","http://opencorporates.com/companies/gb/5081894","872555205"
"London Borough of Redbridge","http://opendatacommunities.org/doc/london-borough-council/redbridge","6BADULTSOCIA","Adult Social Care","6COLDINCMENT","Older People (65 or over) incl. Older Mentally Ill","REV","Revenue","R4391","OP Home Care","05-THIRD","Third Party Payments","05A","Independent units within the council","6502","Agency Homecare (Payments To Independent Units)","90805551","201709",14/12/2016 00:00:00,718.9,"31230","Employment and Recruitment Agencies","REDACTED DATA","HOPE SUPER JOBS LTD","5081894","http://opencorporates.com/companies/gb/5081894","872555205"
"London Borough of Redbridge","http://opendatacommunities.org/doc/london-borough-council/redbridge","6BADULTSOCIA","Adult Social Care","6COLDINCMENT","Older People (65 or over) incl. Older Mentally Ill","REV","Revenue","R4391","OP Home Care","05-THIRD","Third Party Payments","05A","Independent units within the council","6502","Agency Homecare (Payments To Independent Units)","90805582","201709",14/12/2016 00:00:00,718.9,"31230","Employment and Recruitment Agencies","REDACTED DATA","HOPE SUPER JOBS LTD","5081894","http://opencorporates.com/companies/gb/5081894","872555205"
"London Borough of Redbridge","http://opendatacommunities.org/doc/london-borough-council/redbridge","4BMANGT&SUPP","Management & Support Services","4CHIGHRDROUT","Highways/Roads (Routine)","REV","Revenue","R7068","Signs - Schedule 2","05-THIRD","Third Party Payments","05H","Private contractors","6915","Contractor Payments","3453827","201708",30/11/2016 00:00:00,598.85,"21555","Construction Contractors - General","REDACTED DATA","SKANSKA CONSTRUCTION UK LTD","191408","http://opencorporates.com/companies/gb/191408","378403142"
"London Borough of Redbridge","http://opendatacommunities.org/doc/london-borough-council/redbridge","4BMANGT&SUPP","Management & Support Services","4CHIGHRDROUT","Highways/Roads (Routine)","REV","Revenue","R7070","Reactive Maintenance","05-THIRD","Third Party Payments","05H","Private contractors","6915","Contractor Payments","3455013","201709",06/12/2016 00:00:00,598.64,"18632","Civil Engineers","REDACTED DATA","KENSON CONTRACTORS BENINGTON LTD","1314691","http://opencorporates.com/companies/gb/1314691","301629589"
"London Borough of Redbridge","http://opendatacommunities.org/doc/london-borough-council/redbridge","3BINDSCHFUND","Individual School Funds","3CDELSECOND","Delegated Individual Secondary School Budgets","REV","Revenue","S3587","KING SOLOMON -  Personnel Support","07-SUPPORT","Support Services","07B","IT","7170","Support Services - IT","60328338","201709",18/11/2016 00:00:00,596.45,"20703","Computer Systems and Software","REDACTED DATA","TUCASI LIMITED","",,"854682104"
"London Borough of Redbridge","http://opendatacommunities.org/doc/london-borough-council/redbridge","9BNONBVO","Outside the BVACOP Objective Structure","9CNONBVO","Outside the BVACOP Objective Structure","REV","Revenue","R7702","Vehicle Workshop","04-SUPPLIES","Supplies And Services","04A","Equipment, furniture and materials","5510","Materials","658026","201708",24/11/2016 00:00:00,65.31,"13240","Car Accessories and Parts","REDACTED DATA","J TOOMEY MOTORS LTD","335325","http://opencorporates.com/companies/gb/335325","312701800"
"London Borough of Redbridge","http://opendatacommunities.org/doc/london-borough-council/redbridge","9BNONBVO","Outside the BVACOP Objective Structure","9CNONBVO","Outside the BVACOP Objective Structure","REV","Revenue","R7702","Vehicle Workshop","04-SUPPLIES","Supplies And Services","04A","Equipment, furniture and materials","5510","Materials","658026","201708",24/11/2016 00:00:00,65.34,"13240","Car Accessories and Parts","REDACTED DATA","J TOOMEY MOTORS LTD","335325","http://opencorporates.com/companies/gb/335325","312701800"
"London Borough of Redbridge","http://opendatacommunities.org/doc/london-borough-council/redbridge","9BNONBVO","Outside the BVACOP Objective Structure","9CNONBVO","Outside the BVACOP Objective Structure","REV","Revenue","R7702","Vehicle Workshop","04-SUPPLIES","Supplies And Services","04A","Equipment, furniture and materials","5510","Materials","658026","201708",24/11/2016 00:00:00,11.98,"13240","Car Accessories and Parts","REDACTED DATA","J TOOMEY MOTORS LTD","335325","http://opencorporates.com/companies/gb/335325","312701800"
"London Borough of Redbridge","http://opendatacommunities.org/doc/london-borough-council/redbridge","9BNONBVO","Outside the BVACOP Objective Structure","9CNONBVO","Outside the BVACOP Objective Structure","REV","Revenue","R7702","Vehicle Workshop","04-SUPPLIES","Supplies And Services","04A","Equipment, furniture and materials","5510","Materials","658026","201708",24/11/2016 00:00:00,225.81,"13240","Car Accessories and Parts","REDACTED DATA","J TOOMEY MOTORS LTD","335325","http://opencorporates.com/companies/gb/335325","312701800"
"London Borough of Redbridge","http://opendatacommunities.org/doc/london-borough-council/redbridge","9BNONBVO","Outside the BVACOP Objective Structure","9CNONBVO","Outside the BVACOP Objective Structure","REV","Revenue","R7702","Vehicle Workshop","04-SUPPLIES","Supplies And Services","04A","Equipment, furniture and materials","5510","Materials","658026","201708",24/11/2016 00:00:00,66.49,"13240","Car Accessories and Parts","REDACTED DATA","J TOOMEY MOTORS LTD","335325","http://opencorporates.com/companies/gb/335325","312701800"
"London Borough of Redbridge","http://opendatacommunities.org/doc/london-borough-council/redbridge","9BNONBVO","Outside the BVACOP Objective Structure","9CNONBVO","Outside the BVACOP Objective Structure","REV","Revenue","R7702","Vehicle Workshop","04-SUPPLIES","Supplies And Services","04A","Equipment, furniture and materials","5510","Materials","658026","201708",24/11/2016 00:00:00,33.03,"13240","Car Accessories and Parts","REDACTED DATA","J TOOMEY MOTORS LTD","335325","http://opencorporates.com/companies/gb/335325","312701800"
"London Borough of Redbridge","http://opendatacommunities.org/doc/london-borough-council/redbridge","9BNONBVO","Outside the BVACOP Objective Structure","9CNONBVO","Outside the BVACOP Objective Structure","REV","Revenue","R7702","Vehicle Workshop","04-SUPPLIES","Supplies And Services","04A","Equipment, furniture and materials","5510","Materials","658026","201708",24/11/2016 00:00:00,4.81,"13240","Car Accessories and Parts","REDACTED DATA","J TOOMEY MOTORS LTD","335325","http://opencorporates.com/companies/gb/335325","312701800"
"London Borough of Redbridge","http://opendatacommunities.org/doc/london-borough-council/redbridge","9BNONBVO","Outside the BVACOP Objective Structure","9CNONBVO","Outside the BVACOP Objective Structure","REV","Revenue","R7702","Vehicle Workshop","04-SUPPLIES","Supplies And Services","04A","Equipment, furniture and materials","5510","Materials","658026","201708",24/11/2016 00:00:00,8,"13240","Car Accessories and Parts","REDACTED DATA","J TOOMEY MOTORS LTD","335325","http://opencorporates.com/companies/gb/335325","312701800"
"London Borough of Redbridge","http://opendatacommunities.org/doc/london-borough-council/redbridge","9BNONBVO","Outside the BVACOP Objective Structure","9CNONBVO","Outside the BVACOP Objective Structure","REV","Revenue","R7702","Vehicle Workshop","04-SUPPLIES","Supplies And Services","04A","Equipment, furniture and materials","5510","Materials","658026","201708",24/11/2016 00:00:00,1.41,"13240","Car Accessories and Parts","REDACTED DATA","J TOOMEY MOTORS LTD","335325","http://opencorporates.com/companies/gb/335325","312701800"
"London Borough of Redbridge","http://opendatacommunities.org/doc/london-borough-council/redbridge","9BNONBVO","Outside the BVACOP Objective Structure","9CNONBVO","Outside the BVACOP Objective Structure","REV","Revenue","R7702","Vehicle Workshop","04-SUPPLIES","Supplies And Services","04A","Equipment, furniture and materials","5510","Materials","658026","201708",24/11/2016 00:00:00,48.39,"13240","Car Accessories and Parts","REDACTED DATA","J TOOMEY MOTORS LTD","335325","http://opencorporates.com/companies/gb/335325","312701800"
"London Borough of Redbridge","http://opendatacommunities.org/doc/london-borough-council/redbridge","9BNONBVO","Outside the BVACOP Objective Structure","9CNONBVO","Outside the BVACOP Objective Structure","REV","Revenue","R7702","Vehicle Workshop","04-SUPPLIES","Supplies And Services","04A","Equipment, furniture and materials","5510","Materials","658026","201708",24/11/2016 00:00:00,65.42,"13240","Car Accessories and Parts","REDACTED DATA","J TOOMEY MOTORS LTD","335325","http://opencorporates.com/companies/gb/335325","312701800"
"London Borough of Redbridge","http://opendatacommunities.org/doc/london-borough-council/redbridge","9BNONBVO","Outside the BVACOP Objective Structure","9CNONBVO","Outside the BVACOP Objective Structure","REV","Revenue","R5132","Repairs and Maintenance - Other","02-PREMISES","Premises","02A","Repairs, alteration and maintenance of buildings","3027","Miscellaneous Maintenance","60328748","201709",08/11/2016 00:00:00,595,"9321","Boilers - Servicing, Replacements and Repairs","REDACTED DATA","GRAYSTONE BUILDING SERVICES LTD","4490869","http://opencorporates.com/companies/gb/4490869","798566253"
"London Borough of Redbridge","http://opendatacommunities.org/doc/london-borough-council/redbridge","4BMANGT&SUPP","Management & Support Services","4CHIGHRDROUT","Highways/Roads (Routine)","REV","Revenue","R7070","Reactive Maintenance","05-THIRD","Third Party Payments","05H","Private contractors","6915","Contractor Payments","3454904","201709",06/12/2016 00:00:00,594.34,"18632","Civil Engineers","REDACTED DATA","KENSON CONTRACTORS BENINGTON LTD","1314691","http://opencorporates.com/companies/gb/1314691","301629589"
"London Borough of Redbridge","http://opendatacommunities.org/doc/london-borough-council/redbridge","4BMANGT&SUPP","Management & Support Services","4CHIGHRDSTR","Highways/Roads (Structural)","REV","Revenue","R7092","Footway Crossing Works","05-THIRD","Third Party Payments","05H","Private contractors","6915","Contractor Payments","3454332","201708",22/11/2016 00:00:00,593.1,"18632","Civil Engineers","REDACTED DATA","KENSON CONTRACTORS BENINGTON LTD","1314691","http://opencorporates.com/companies/gb/1314691","301629589"
"London Borough of Redbridge","http://opendatacommunities.org/doc/london-borough-council/redbridge","6BADULTSOCIA","Adult Social Care","6COLDINCMENT","Older People (65 or over) incl. Older Mentally Ill","REV","Revenue","R4391","OP Home Care","05-THIRD","Third Party Payments","05A","Independent units within the council","6502","Agency Homecare (Payments To Independent Units)","90802690","201709",06/12/2016 00:00:00,711.56,"31230","Employment and Recruitment Agencies","REDACTED DATA","HOPE SUPER JOBS LTD","5081894","http://opencorporates.com/companies/gb/5081894","872555205"
"London Borough of Redbridge","http://opendatacommunities.org/doc/london-borough-council/redbridge","9BNONBVO","Outside the BVACOP Objective Structure","9CNONBVO","Outside the BVACOP Objective Structure","REV","Revenue","R5212","HRA Central Budgets","01-EMPLOYEES","Employees","01B","Indirect employee expenses","2403","External Training","60329362","201709",08/12/2016 00:00:00,708.5,"79948","Training Centres","REDACTED DATA","SKILLS TRAINING CENTRE LTD","5308344","http://opencorporates.com/companies/gb/5308344","853728402"
"London Borough of Redbridge","http://opendatacommunities.org/doc/london-borough-council/redbridge","6BSOCIALSERV","Social Services","6CCHILLOOKED","Children Looked After","REV","Revenue","R2117","SEN and CD Care and Support Packages Social Care","06-TRANSFER","Transfer Payments","06B","Social Services Clients","7050","Agency Homecare","60329074","201709",06/12/2016 00:00:00,710.5,"43419","Home Care Services","REDACTED DATA","CARE AVENUES LIMITED","",,""
"London Borough of Redbridge","http://opendatacommunities.org/doc/london-borough-council/redbridge","4BMANGT&SUPP","Management & Support Services","4CHIGHRDROUT","Highways/Roads (Routine)","REV","Revenue","R7070","Reactive Maintenance","05-THIRD","Third Party Payments","05H","Private contractors","6915","Contractor Payments","3455842","201709",20/12/2016 00:00:00,590.4,"18632","Civil Engineers","REDACTED DATA","KENSON CONTRACTORS BENINGTON LTD","1314691","http://opencorporates.com/companies/gb/1314691","301629589"
"London Borough of Redbridge","http://opendatacommunities.org/doc/london-borough-council/redbridge","6BADULTSOCIA","Adult Social Care","6CADLEARNDIS","Adults Under 65 with Learning Disabilities","REV","Revenue","R4394","LD - Homecare","05-THIRD","Third Party Payments","05A","Independent units within the council","6502","Agency Homecare (Payments To Independent Units)","90807431","201709",10/11/2016 00:00:00,708.4,"53350","Nursing Homes","REDACTED DATA","ELEANOR NURSING & SOCIALCARE LTD","4393038","http://opencorporates.com/companies/gb/4393038",""
"London Borough of Redbridge","http://opendatacommunities.org/doc/london-borough-council/redbridge","6BADULTSOCIA","Adult Social Care","6COTHADSERV","Other Adult Services","REV","Revenue","R4390","CCG HIV Home Care","05-THIRD","Third Party Payments","05A","Independent units within the council","6502","Agency Homecare (Payments To Independent Units)","90807433","201709",22/11/2016 00:00:00,708.4,"53350","Nursing Homes","REDACTED DATA","ELEANOR NURSING & SOCIALCARE LTD","4393038","http://opencorporates.com/companies/gb/4393038",""
"London Borough of Redbridge","http://opendatacommunities.org/doc/london-borough-council/redbridge","6BADULTSOCIA","Adult Social Care","6COLDINCMENT","Older People (65 or over) incl. Older Mentally Ill","REV","Revenue","R4211","Older People Direct Payments","06-TRANSFER","Transfer Payments","06B","Social Services Clients","7053","Direct Payments","3455343","201709",12/12/2016 00:00:00,200,"90005","Home Care Services DP","REDACTED DATA","REDACTED DATA","",,""
"London Borough of Redbridge","http://opendatacommunities.org/doc/london-borough-council/redbridge","6BADULTSOCIA","Adult Social Care","6COLDINCMENT","Older People (65 or over) incl. Older Mentally Ill","REV","Revenue","R4211","Older People Direct Payments","06-TRANSFER","Transfer Payments","06B","Social Services Clients","7053","Direct Payments","3455343","201709",12/12/2016 00:00:00,852.6,"90005","Home Care Services DP","REDACTED DATA","REDACTED DATA","",,""
"London Borough of Redbridge","http://opendatacommunities.org/doc/london-borough-council/redbridge","6BADULTSOCIA","Adult Social Care","6COLDINCMENT","Older People (65 or over) incl. Older Mentally Ill","REV","Revenue","R4211","Older People Direct Payments","09-INCOME","Income","09C","Customer and Client Receipts","8545","Direct Payments Income","3455343","201709",12/12/2016 00:00:00,-345.73,"90005","Home Care Services DP","REDACTED DATA","REDACTED DATA","",,""
"London Borough of Redbridge","http://opendatacommunities.org/doc/london-borough-council/redbridge","9BNONBVO","Outside the BVACOP Objective Structure","9CNONBVO","Outside the BVACOP Objective Structure","REV","Revenue","R5132","Repairs and Maintenance - Other","02-PREMISES","Premises","02A","Repairs, alteration and maintenance of buildings","3003","Decoration","60329096","201709",30/11/2016 00:00:00,587.65,"24300","Decorators' Merchants","REDACTED DATA","J P MCDOUGALL & CO LTD T/A DULUX DECORATOR CENTRE","254941","http://opencorporates.com/companies/gb/254941","238458241"
"London Borough of Redbridge","http://opendatacommunities.org/doc/london-borough-council/redbridge","6BADULTSOCIA","Adult Social Care","6COLDINCMENT","Older People (65 or over) incl. Older Mentally Ill","REV","Revenue","R4391","OP Home Care","05-THIRD","Third Party Payments","05A","Independent units within the council","6502","Agency Homecare (Payments To Independent Units)","90802652","201709",06/12/2016 00:00:00,704.36,"31230","Employment and Recruitment Agencies","REDACTED DATA","HOPE SUPER JOBS LTD","5081894","http://opencorporates.com/companies/gb/5081894","872555205"
"London Borough of Redbridge","http://opendatacommunities.org/doc/london-borough-council/redbridge","4BMANGT&SUPP","Management & Support Services","4CHIGHRDROUT","Highways/Roads (Routine)","REV","Revenue","R7075","Drainage","05-THIRD","Third Party Payments","05H","Private contractors","6915","Contractor Payments","3455983","201709",21/12/2016 00:00:00,586.8,"18632","Civil Engineers","REDACTED DATA","KENSON CONTRACTORS BENINGTON LTD","1314691","http://opencorporates.com/companies/gb/1314691","301629589"
"London Borough of Redbridge","http://opendatacommunities.org/doc/london-borough-council/redbridge","4BMANGT&SUPP","Management & Support Services","4CHIGHRDSTR","Highways/Roads (Structural)","REV","Revenue","R7092","Footway Crossing Works","05-THIRD","Third Party Payments","05H","Private contractors","6915","Contractor Payments","3455949","201709",20/12/2016 00:00:00,585.9,"18632","Civil Engineers","REDACTED DATA","KENSON CONTRACTORS BENINGTON LTD","1314691","http://opencorporates.com/companies/gb/1314691","301629589"
"London Borough of Redbridge","http://opendatacommunities.org/doc/london-borough-council/redbridge","4BMANGT&SUPP","Management & Support Services","4CHIGHRDSTR","Highways/Roads (Structural)","REV","Revenue","R7092","Footway Crossing Works","05-THIRD","Third Party Payments","05H","Private contractors","6915","Contractor Payments","3455964","201709",20/12/2016 00:00:00,585.9,"18632","Civil Engineers","REDACTED DATA","KENSON CONTRACTORS BENINGTON LTD","1314691","http://opencorporates.com/companies/gb/1314691","301629589"
"London Borough of Redbridge","http://opendatacommunities.org/doc/london-borough-council/redbridge","3BOPTIONHLDG","Optional Holding Accounts","3CADULT","Adult Education","REV","Revenue","R3490","RIAE   Home Cost Centre","02-PREMISES","Premises","02A","Repairs, alteration and maintenance of buildings","3037","Service Contracts","70090640","201708",27/11/2016 00:00:00,585.36,"79180","Towel Supply and Washroom Services","REDACTED DATA","PHS GROUP PLC","3805412","http://opencorporates.com/companies/gb/3805412","542951438"
"London Borough of Redbridge","http://opendatacommunities.org/doc/london-borough-council/redbridge","5BGFHOUSING","General Fund Housing","5CHOMELESS","Homelessness","REV","Revenue","R5630","HAC Temporary Accomodation","05-THIRD","Third Party Payments","05H","Private contractors","6900","Nightly Let Plus Charges","70091189","201709",30/11/2016 00:00:00,585,"32695","Estate Agents and Property Buyers","REDACTED DATA","KURTIS PROPERTY SERVICES (GAD UK LTD)","3566037","http://opencorporates.com/companies/gb/3566037",""
"London Borough of Redbridge","http://opendatacommunities.org/doc/london-borough-council/redbridge","9BNONBVO","Outside the BVACOP Objective Structure","9CNONBVO","Outside the BVACOP Objective Structure","REV","Revenue","R7551","Public Conveniences DSO","05-THIRD","Third Party Payments","05H","Private contractors","6915","Contractor Payments","60330307","201709",19/12/2016 00:00:00,584.67,"31230","Employment and Recruitment Agencies","REDACTED DATA","AMBITIONS EMPLOYMENT AGENCY","6683811","http://opencorporates.com/companies/gb/6683811","542142969"
"London Borough of Redbridge","http://opendatacommunities.org/doc/london-borough-council/redbridge","9BNONBVO","Outside the BVACOP Objective Structure","9CNONBVO","Outside the BVACOP Objective Structure","REV","Revenue","R7551","Public Conveniences DSO","05-THIRD","Third Party Payments","05H","Private contractors","6915","Contractor Payments","60328063","201709",28/11/2016 00:00:00,584.67,"31230","Employment and Recruitment Agencies","REDACTED DATA","AMBITIONS EMPLOYMENT AGENCY","6683811","http://opencorporates.com/companies/gb/6683811","542142969"
"London Borough of Redbridge","http://opendatacommunities.org/doc/london-borough-council/redbridge","9BNONBVO","Outside the BVACOP Objective Structure","9CNONBVO","Outside the BVACOP Objective Structure","REV","Revenue","R7551","Public Conveniences DSO","05-THIRD","Third Party Payments","05H","Private contractors","6915","Contractor Payments","60329423","201709",12/12/2016 00:00:00,584.67,"31230","Employment and Recruitment Agencies","REDACTED DATA","AMBITIONS EMPLOYMENT AGENCY","6683811","http://opencorporates.com/companies/gb/6683811","542142969"
"London Borough of Redbridge","http://opendatacommunities.org/doc/london-borough-council/redbridge","6BSOCIALSERV","Social Services","6COTHC&FSERV","Other Children's & Families' Services","REV","Revenue","R2168","NRtPF","06-TRANSFER","Transfer Payments","06B","Social Services Clients","7055","Habitual Residents","60327868","201708",30/11/2016 00:00:00,700,"47846","Letting Agents","REDACTED DATA","LETTING INTERNATIONAL LTD","3425414","http://opencorporates.com/companies/gb/3425414","710849440"
"London Borough of Redbridge","http://opendatacommunities.org/doc/london-borough-council/redbridge","4BMANGT&SUPP","Management & Support Services","4CHIGHRDSTR","Highways/Roads (Structural)","REV","Revenue","R7092","Footway Crossing Works","05-THIRD","Third Party Payments","05H","Private contractors","6915","Contractor Payments","3455919","201709",20/12/2016 00:00:00,583.2,"18632","Civil Engineers","REDACTED DATA","KENSON CONTRACTORS BENINGTON LTD","1314691","http://opencorporates.com/companies/gb/1314691","301629589"
"London Borough of Redbridge","http://opendatacommunities.org/doc/london-borough-council/redbridge","4BMANGT&SUPP","Management & Support Services","4CHIGHRDSTR","Highways/Roads (Structural)","REV","Revenue","R7092","Footway Crossing Works","05-THIRD","Third Party Payments","05H","Private contractors","6915","Contractor Payments","3454413","201708",22/11/2016 00:00:00,583.2,"18632","Civil Engineers","REDACTED DATA","KENSON CONTRACTORS BENINGTON LTD","1314691","http://opencorporates.com/companies/gb/1314691","301629589"
"London Borough of Redbridge","http://opendatacommunities.org/doc/london-borough-council/redbridge","6BADULTSOCIA","Adult Social Care","6CADLEARNDIS","Adults Under 65 with Learning Disabilities","REV","Revenue","R4383","LD - External Day Care","05-THIRD","Third Party Payments","05H","Private contractors","6904","Day Centres","90808307","201709",16/11/2016 00:00:00,699.5,"17020","Charities and Voluntary Organisations","REDACTED DATA","VIBRANCE","7094318","http://opencorporates.com/companies/gb/7094318",""
"London Borough of Redbridge","http://opendatacommunities.org/doc/london-borough-council/redbridge","6BADULTSOCIA","Adult Social Care","6CADLEARNDIS","Adults Under 65 with Learning Disabilities","REV","Revenue","R4383","LD - External Day Care","05-THIRD","Third Party Payments","05H","Private contractors","6904","Day Centres","90808319","201709",16/11/2016 00:00:00,699.5,"17020","Charities and Voluntary Organisations","REDACTED DATA","VIBRANCE","7094318","http://opencorporates.com/companies/gb/7094318",""
"London Borough of Redbridge","http://opendatacommunities.org/doc/london-borough-council/redbridge","6BADULTSOCIA","Adult Social Care","6CADLEARNDIS","Adults Under 65 with Learning Disabilities","REV","Revenue","R4383","LD - External Day Care","05-THIRD","Third Party Payments","05H","Private contractors","6904","Day Centres","90805783","201709",16/11/2016 00:00:00,699.5,"17020","Charities and Voluntary Organisations","REDACTED DATA","VIBRANCE","7094318","http://opencorporates.com/companies/gb/7094318",""
"London Borough of Redbridge","http://opendatacommunities.org/doc/london-borough-council/redbridge","6BADULTSOCIA","Adult Social Care","6CADLEARNDIS","Adults Under 65 with Learning Disabilities","REV","Revenue","R4383","LD - External Day Care","05-THIRD","Third Party Payments","05H","Private contractors","6904","Day Centres","90805795","201709",16/11/2016 00:00:00,699.5,"17020","Charities and Voluntary Organisations","REDACTED DATA","VIBRANCE","7094318","http://opencorporates.com/companies/gb/7094318",""
"London Borough of Redbridge","http://opendatacommunities.org/doc/london-borough-council/redbridge","6BADULTSOCIA","Adult Social Care","6CADLEARNDIS","Adults Under 65 with Learning Disabilities","REV","Revenue","R4383","LD - External Day Care","05-THIRD","Third Party Payments","05H","Private contractors","6904","Day Centres","90805811","201709",16/11/2016 00:00:00,699.5,"17020","Charities and Voluntary Organisations","REDACTED DATA","VIBRANCE","7094318","http://opencorporates.com/companies/gb/7094318",""
"London Borough of Redbridge","http://opendatacommunities.org/doc/london-borough-council/redbridge","6BADULTSOCIA","Adult Social Care","6CADLEARNDIS","Adults Under 65 with Learning Disabilities","REV","Revenue","R4383","LD - External Day Care","05-THIRD","Third Party Payments","05H","Private contractors","6904","Day Centres","90805767","201709",16/11/2016 00:00:00,699.5,"17020","Charities and Voluntary Organisations","REDACTED DATA","VIBRANCE","7094318","http://opencorporates.com/companies/gb/7094318",""
"London Borough of Redbridge","http://opendatacommunities.org/doc/london-borough-council/redbridge","6BADULTSOCIA","Adult Social Care","6CADLEARNDIS","Adults Under 65 with Learning Disabilities","REV","Revenue","R4383","LD - External Day Care","05-THIRD","Third Party Payments","05H","Private contractors","6904","Day Centres","90805779","201709",16/11/2016 00:00:00,699.5,"17020","Charities and Voluntary Organisations","REDACTED DATA","VIBRANCE","7094318","http://opencorporates.com/companies/gb/7094318",""
"London Borough of Redbridge","http://opendatacommunities.org/doc/london-borough-council/redbridge","9BNONBVO","Outside the BVACOP Objective Structure","9CNONBVO","Outside the BVACOP Objective Structure","REV","Revenue","R5132","Repairs and Maintenance - Other","02-PREMISES","Premises","02A","Repairs, alteration and maintenance of buildings","3038","Service Repairs","60327375","201708",17/11/2016 00:00:00,582.88,"1230","Access Equipment","REDACTED DATA","INTROLAND LTD","1569740","http://opencorporates.com/companies/gb/1569740","358393419"
"London Borough of Redbridge","http://opendatacommunities.org/doc/london-borough-council/redbridge","9BNONBVO","Outside the BVACOP Objective Structure","9CNONBVO","Outside the BVACOP Objective Structure","REV","Revenue","R5222","Home Ownership Team","04-SUPPLIES","Supplies And Services","04H","Grants and subscriptions","5954","Professional Fees","60329049","201709",30/11/2016 00:00:00,601,"47830","Legal Services","REDACTED DATA","BATCHELORS SOLICITORS","",,"238505069"
"London Borough of Redbridge","http://opendatacommunities.org/doc/london-borough-council/redbridge","9BNONBVO","Outside the BVACOP Objective Structure","9CNONBVO","Outside the BVACOP Objective Structure","BAL","Balance Sheet","B0006","Mech Engineerng Store","99-NONBV","Capital, Balance Sheet and Control","50K","Current Assets","9407","Variation A/C - Payments","658237","201709",06/12/2016 00:00:00,62.4,"20390","Commercial Vehicle Servicing, Repairs, Parts and Accessories","REDACTED DATA","S & B  COMMERCIALS PLC","1635078","http://opencorporates.com/companies/gb/1635078",""
"London Borough of Redbridge","http://opendatacommunities.org/doc/london-borough-council/redbridge","9BNONBVO","Outside the BVACOP Objective Structure","9CNONBVO","Outside the BVACOP Objective Structure","BAL","Balance Sheet","B0006","Mech Engineerng Store","99-NONBV","Capital, Balance Sheet and Control","50K","Current Assets","9407","Variation A/C - Payments","658237","201709",06/12/2016 00:00:00,58.68,"20390","Commercial Vehicle Servicing, Repairs, Parts and Accessories","REDACTED DATA","S & B  COMMERCIALS PLC","1635078","http://opencorporates.com/companies/gb/1635078",""
"London Borough of Redbridge","http://opendatacommunities.org/doc/london-borough-council/redbridge","9BNONBVO","Outside the BVACOP Objective Structure","9CNONBVO","Outside the BVACOP Objective Structure","BAL","Balance Sheet","B0006","Mech Engineerng Store","99-NONBV","Capital, Balance Sheet and Control","50K","Current Assets","9407","Variation A/C - Payments","658237","201709",06/12/2016 00:00:00,33.83,"20390","Commercial Vehicle Servicing, Repairs, Parts and Accessories","REDACTED DATA","S & B  COMMERCIALS PLC","1635078","http://opencorporates.com/companies/gb/1635078",""
"London Borough of Redbridge","http://opendatacommunities.org/doc/london-borough-council/redbridge","9BNONBVO","Outside the BVACOP Objective Structure","9CNONBVO","Outside the BVACOP Objective Structure","BAL","Balance Sheet","B0006","Mech Engineerng Store","99-NONBV","Capital, Balance Sheet and Control","50K","Current Assets","9407","Variation A/C - Payments","658237","201709",06/12/2016 00:00:00,4.46,"20390","Commercial Vehicle Servicing, Repairs, Parts and Accessories","REDACTED DATA","S & B  COMMERCIALS PLC","1635078","http://opencorporates.com/companies/gb/1635078",""
"London Borough of Redbridge","http://opendatacommunities.org/doc/london-borough-council/redbridge","9BNONBVO","Outside the BVACOP Objective Structure","9CNONBVO","Outside the BVACOP Objective Structure","BAL","Balance Sheet","B0006","Mech Engineerng Store","99-NONBV","Capital, Balance Sheet and Control","50K","Current Assets","9407","Variation A/C - Payments","658237","201709",06/12/2016 00:00:00,4.48,"20390","Commercial Vehicle Servicing, Repairs, Parts and Accessories","REDACTED DATA","S & B  COMMERCIALS PLC","1635078","http://opencorporates.com/companies/gb/1635078",""
"London Borough of Redbridge","http://opendatacommunities.org/doc/london-borough-council/redbridge","9BNONBVO","Outside the BVACOP Objective Structure","9CNONBVO","Outside the BVACOP Objective Structure","BAL","Balance Sheet","B0006","Mech Engineerng Store","99-NONBV","Capital, Balance Sheet and Control","50K","Current Assets","9407","Variation A/C - Payments","658237","201709",06/12/2016 00:00:00,7.68,"20390","Commercial Vehicle Servicing, Repairs, Parts and Accessories","REDACTED DATA","S & B  COMMERCIALS PLC","1635078","http://opencorporates.com/companies/gb/1635078",""
"London Borough of Redbridge","http://opendatacommunities.org/doc/london-borough-council/redbridge","9BNONBVO","Outside the BVACOP Objective Structure","9CNONBVO","Outside the BVACOP Objective Structure","BAL","Balance Sheet","B0006","Mech Engineerng Store","99-NONBV","Capital, Balance Sheet and Control","50K","Current Assets","9407","Variation A/C - Payments","658237","201709",06/12/2016 00:00:00,20.3,"20390","Commercial Vehicle Servicing, Repairs, Parts and Accessories","REDACTED DATA","S & B  COMMERCIALS PLC","1635078","http://opencorporates.com/companies/gb/1635078",""
"London Borough of Redbridge","http://opendatacommunities.org/doc/london-borough-council/redbridge","9BNONBVO","Outside the BVACOP Objective Structure","9CNONBVO","Outside the BVACOP Objective Structure","BAL","Balance Sheet","B0006","Mech Engineerng Store","99-NONBV","Capital, Balance Sheet and Control","50K","Current Assets","9407","Variation A/C - Payments","658237","201709",06/12/2016 00:00:00,7.02,"20390","Commercial Vehicle Servicing, Repairs, Parts and Accessories","REDACTED DATA","S & B  COMMERCIALS PLC","1635078","http://opencorporates.com/companies/gb/1635078",""
"London Borough of Redbridge","http://opendatacommunities.org/doc/london-borough-council/redbridge","9BNONBVO","Outside the BVACOP Objective Structure","9CNONBVO","Outside the BVACOP Objective Structure","BAL","Balance Sheet","B0006","Mech Engineerng Store","99-NONBV","Capital, Balance Sheet and Control","50K","Current Assets","9407","Variation A/C - Payments","658237","201709",06/12/2016 00:00:00,5.04,"20390","Commercial Vehicle Servicing, Repairs, Parts and Accessories","REDACTED DATA","S & B  COMMERCIALS PLC","1635078","http://opencorporates.com/companies/gb/1635078",""
"London Borough of Redbridge","http://opendatacommunities.org/doc/london-borough-council/redbridge","9BNONBVO","Outside the BVACOP Objective Structure","9CNONBVO","Outside the BVACOP Objective Structure","BAL","Balance Sheet","B0006","Mech Engineerng Store","99-NONBV","Capital, Balance Sheet and Control","50K","Current Assets","9407","Variation A/C - Payments","658237","201709",06/12/2016 00:00:00,18.4,"20390","Commercial Vehicle Servicing, Repairs, Parts and Accessories","REDACTED DATA","S & B  COMMERCIALS PLC","1635078","http://opencorporates.com/companies/gb/1635078",""
"London Borough of Redbridge","http://opendatacommunities.org/doc/london-borough-council/redbridge","9BNONBVO","Outside the BVACOP Objective Structure","9CNONBVO","Outside the BVACOP Objective Structure","BAL","Balance Sheet","B0006","Mech Engineerng Store","99-NONBV","Capital, Balance Sheet and Control","50K","Current Assets","9407","Variation A/C - Payments","658237","201709",06/12/2016 00:00:00,12.3,"20390","Commercial Vehicle Servicing, Repairs, Parts and Accessories","REDACTED DATA","S & B  COMMERCIALS PLC","1635078","http://opencorporates.com/companies/gb/1635078",""
"London Borough of Redbridge","http://opendatacommunities.org/doc/london-borough-council/redbridge","9BNONBVO","Outside the BVACOP Objective Structure","9CNONBVO","Outside the BVACOP Objective Structure","BAL","Balance Sheet","B0006","Mech Engineerng Store","99-NONBV","Capital, Balance Sheet and Control","50K","Current Assets","9407","Variation A/C - Payments","658237","201709",06/12/2016 00:00:00,19.76,"20390","Commercial Vehicle Servicing, Repairs, Parts and Accessories","REDACTED DATA","S & B  COMMERCIALS PLC","1635078","http://opencorporates.com/companies/gb/1635078",""
"London Borough of Redbridge","http://opendatacommunities.org/doc/london-borough-council/redbridge","9BNONBVO","Outside the BVACOP Objective Structure","9CNONBVO","Outside the BVACOP Objective Structure","BAL","Balance Sheet","B0006","Mech Engineerng Store","99-NONBV","Capital, Balance Sheet and Control","50K","Current Assets","9407","Variation A/C - Payments","658237","201709",06/12/2016 00:00:00,3.68,"20390","Commercial Vehicle Servicing, Repairs, Parts and Accessories","REDACTED DATA","S & B  COMMERCIALS PLC","1635078","http://opencorporates.com/companies/gb/1635078",""
"London Borough of Redbridge","http://opendatacommunities.org/doc/london-borough-council/redbridge","9BNONBVO","Outside the BVACOP Objective Structure","9CNONBVO","Outside the BVACOP Objective Structure","BAL","Balance Sheet","B0006","Mech Engineerng Store","99-NONBV","Capital, Balance Sheet and Control","50K","Current Assets","9407","Variation A/C - Payments","658237","201709",06/12/2016 00:00:00,144.38,"20390","Commercial Vehicle Servicing, Repairs, Parts and Accessories","REDACTED DATA","S & B  COMMERCIALS PLC","1635078","http://opencorporates.com/companies/gb/1635078",""
"London Borough of Redbridge","http://opendatacommunities.org/doc/london-borough-council/redbridge","9BNONBVO","Outside the BVACOP Objective Structure","9CNONBVO","Outside the BVACOP Objective Structure","BAL","Balance Sheet","B0006","Mech Engineerng Store","99-NONBV","Capital, Balance Sheet and Control","50K","Current Assets","9407","Variation A/C - Payments","658237","201709",06/12/2016 00:00:00,17,"20390","Commercial Vehicle Servicing, Repairs, Parts and Accessories","REDACTED DATA","S & B  COMMERCIALS PLC","1635078","http://opencorporates.com/companies/gb/1635078",""
"London Borough of Redbridge","http://opendatacommunities.org/doc/london-borough-council/redbridge","9BNONBVO","Outside the BVACOP Objective Structure","9CNONBVO","Outside the BVACOP Objective Structure","BAL","Balance Sheet","B0006","Mech Engineerng Store","99-NONBV","Capital, Balance Sheet and Control","50K","Current Assets","9407","Variation A/C - Payments","658237","201709",06/12/2016 00:00:00,39.6,"20390","Commercial Vehicle Servicing, Repairs, Parts and Accessories","REDACTED DATA","S & B  COMMERCIALS PLC","1635078","http://opencorporates.com/companies/gb/1635078",""
"London Borough of Redbridge","http://opendatacommunities.org/doc/london-borough-council/redbridge","9BNONBVO","Outside the BVACOP Objective Structure","9CNONBVO","Outside the BVACOP Objective Structure","BAL","Balance Sheet","B0006","Mech Engineerng Store","99-NONBV","Capital, Balance Sheet and Control","50K","Current Assets","9407","Variation A/C - Payments","658237","201709",06/12/2016 00:00:00,73.6,"20390","Commercial Vehicle Servicing, Repairs, Parts and Accessories","REDACTED DATA","S & B  COMMERCIALS PLC","1635078","http://opencorporates.com/companies/gb/1635078",""
"London Borough of Redbridge","http://opendatacommunities.org/doc/london-borough-council/redbridge","9BNONBVO","Outside the BVACOP Objective Structure","9CNONBVO","Outside the BVACOP Objective Structure","BAL","Balance Sheet","B0006","Mech Engineerng Store","99-NONBV","Capital, Balance Sheet and Control","50K","Current Assets","9407","Variation A/C - Payments","658237","201709",06/12/2016 00:00:00,15.68,"20390","Commercial Vehicle Servicing, Repairs, Parts and Accessories","REDACTED DATA","S & B  COMMERCIALS PLC","1635078","http://opencorporates.com/companies/gb/1635078",""
"London Borough of Redbridge","http://opendatacommunities.org/doc/london-borough-council/redbridge","9BNONBVO","Outside the BVACOP Objective Structure","9CNONBVO","Outside the BVACOP Objective Structure","BAL","Balance Sheet","B0006","Mech Engineerng Store","99-NONBV","Capital, Balance Sheet and Control","50K","Current Assets","9407","Variation A/C - Payments","658237","201709",06/12/2016 00:00:00,33.17,"20390","Commercial Vehicle Servicing, Repairs, Parts and Accessories","REDACTED DATA","S & B  COMMERCIALS PLC","1635078","http://opencorporates.com/companies/gb/1635078",""
"London Borough of Redbridge","http://opendatacommunities.org/doc/london-borough-council/redbridge","4BMANGT&SUPP","Management & Support Services","4CHIGHRDSTR","Highways/Roads (Structural)","REV","Revenue","R7092","Footway Crossing Works","05-THIRD","Third Party Payments","05H","Private contractors","6915","Contractor Payments","3454412","201708",22/11/2016 00:00:00,581.4,"18632","Civil Engineers","REDACTED DATA","KENSON CONTRACTORS BENINGTON LTD","1314691","http://opencorporates.com/companies/gb/1314691","301629589"
"London Borough of Redbridge","http://opendatacommunities.org/doc/london-borough-council/redbridge","6BSOCIALSERV","Social Services","6CCHILLOOKED","Children Looked After","REV","Revenue","R2117","SEN and CD Care and Support Packages Social Care","06-TRANSFER","Transfer Payments","06B","Social Services Clients","7050","Agency Homecare","60327246","201709",14/11/2016 00:00:00,697.5,"43419","Home Care Services","REDACTED DATA","DE VERE CARE","6573333","http://opencorporates.com/companies/gb/6573333",""
"London Borough of Redbridge","http://opendatacommunities.org/doc/london-borough-council/redbridge","1BCENTRALPUB","Central Services to the Public","1CLOCALTAXCO","Local Tax Collection","REV","Revenue","R5760","Local Tax Collection","04-SUPPLIES","Supplies And Services","04H","Grants and subscriptions","5957","Bailiff Fees","70090913","201709",26/11/2016 00:00:00,260,"24230","Debt Collection Agencies","REDACTED DATA","EQUITA LIMITED","",,""
"London Borough of Redbridge","http://opendatacommunities.org/doc/london-borough-council/redbridge","1BCENTRALPUB","Central Services to the Public","1CLOCALTAXCO","Local Tax Collection","REV","Revenue","R5760","Local Tax Collection","04-SUPPLIES","Supplies And Services","04H","Grants and subscriptions","5957","Bailiff Fees","70090913","201709",26/11/2016 00:00:00,385,"24230","Debt Collection Agencies","REDACTED DATA","EQUITA LIMITED","",,""
"London Borough of Redbridge","http://opendatacommunities.org/doc/london-borough-council/redbridge","9BNONBVO","Outside the BVACOP Objective Structure","9CNONBVO","Outside the BVACOP Objective Structure","REV","Revenue","R5132","Repairs and Maintenance - Other","02-PREMISES","Premises","02A","Repairs, alteration and maintenance of buildings","3038","Service Repairs","60327355","201708",17/11/2016 00:00:00,580.83,"1230","Access Equipment","REDACTED DATA","INTROLAND LTD","1569740","http://opencorporates.com/companies/gb/1569740","358393419"
"London Borough of Redbridge","http://opendatacommunities.org/doc/london-borough-council/redbridge","9BNONBVO","Outside the BVACOP Objective Structure","9CNONBVO","Outside the BVACOP Objective Structure","REV","Revenue","R7702","Vehicle Workshop","04-SUPPLIES","Supplies And Services","04A","Equipment, furniture and materials","5510","Materials","657998","201708",21/11/2016 00:00:00,71.66,"20390","Commercial Vehicle Servicing, Repairs, Parts and Accessories","REDACTED DATA","HARRIS COMMERCIAL REPAIRS LTD","1154158","http://opencorporates.com/companies/gb/1154158",""
"London Borough of Redbridge","http://opendatacommunities.org/doc/london-borough-council/redbridge","9BNONBVO","Outside the BVACOP Objective Structure","9CNONBVO","Outside the BVACOP Objective Structure","REV","Revenue","R7702","Vehicle Workshop","04-SUPPLIES","Supplies And Services","04A","Equipment, furniture and materials","5510","Materials","657998","201708",21/11/2016 00:00:00,12.7,"20390","Commercial Vehicle Servicing, Repairs, Parts and Accessories","REDACTED DATA","HARRIS COMMERCIAL REPAIRS LTD","1154158","http://opencorporates.com/companies/gb/1154158",""
"London Borough of Redbridge","http://opendatacommunities.org/doc/london-borough-council/redbridge","9BNONBVO","Outside the BVACOP Objective Structure","9CNONBVO","Outside the BVACOP Objective Structure","REV","Revenue","R7702","Vehicle Workshop","04-SUPPLIES","Supplies And Services","04A","Equipment, furniture and materials","5510","Materials","657998","201708",21/11/2016 00:00:00,285.7,"20390","Commercial Vehicle Servicing, Repairs, Parts and Accessories","REDACTED DATA","HARRIS COMMERCIAL REPAIRS LTD","1154158","http://opencorporates.com/companies/gb/1154158",""
"London Borough of Redbridge","http://opendatacommunities.org/doc/london-borough-council/redbridge","9BNONBVO","Outside the BVACOP Objective Structure","9CNONBVO","Outside the BVACOP Objective Structure","REV","Revenue","R7702","Vehicle Workshop","04-SUPPLIES","Supplies And Services","04A","Equipment, furniture and materials","5510","Materials","657998","201708",21/11/2016 00:00:00,185.32,"20390","Commercial Vehicle Servicing, Repairs, Parts and Accessories","REDACTED DATA","HARRIS COMMERCIAL REPAIRS LTD","1154158","http://opencorporates.com/companies/gb/1154158",""
"London Borough of Redbridge","http://opendatacommunities.org/doc/london-borough-council/redbridge","9BNONBVO","Outside the BVACOP Objective Structure","9CNONBVO","Outside the BVACOP Objective Structure","REV","Revenue","R7702","Vehicle Workshop","04-SUPPLIES","Supplies And Services","04A","Equipment, furniture and materials","5510","Materials","657998","201708",21/11/2016 00:00:00,25.42,"20390","Commercial Vehicle Servicing, Repairs, Parts and Accessories","REDACTED DATA","HARRIS COMMERCIAL REPAIRS LTD","1154158","http://opencorporates.com/companies/gb/1154158",""
"London Borough of Redbridge","http://opendatacommunities.org/doc/london-borough-council/redbridge","6BADULTSOCIA","Adult Social Care","6COLDINCMENT","Older People (65 or over) incl. Older Mentally Ill","REV","Revenue","R4391","OP Home Care","05-THIRD","Third Party Payments","05A","Independent units within the council","6502","Agency Homecare (Payments To Independent Units)","90802666","201709",06/12/2016 00:00:00,696.89,"31230","Employment and Recruitment Agencies","REDACTED DATA","HOPE SUPER JOBS LTD","5081894","http://opencorporates.com/companies/gb/5081894","872555205"
"London Borough of Redbridge","http://opendatacommunities.org/doc/london-borough-council/redbridge","9BNONBVO","Outside the BVACOP Objective Structure","9CNONBVO","Outside the BVACOP Objective Structure","REV","Revenue","R7702","Vehicle Workshop","04-SUPPLIES","Supplies And Services","04A","Equipment, furniture and materials","5510","Materials","658214","201709",29/10/2016 00:00:00,580,"5640","Auto Electricians","REDACTED DATA","DD MOBILE AUTO ELECTRICAL","",,"589607678"
"London Borough of Redbridge","http://opendatacommunities.org/doc/london-borough-council/redbridge","1BOTHEROPI&E","Other Operating Income & Expenditure","1CTRADSURDEF","Trading Account Surpluses & Deficits","REV","Revenue","R9352","Legal Supplies & Services","04-SUPPLIES","Supplies And Services","04D","Printing, stationery and general office expenses","5705","Postage","60329721","201709",30/11/2016 00:00:00,584.5,"22620","Courier and Messenger Services","REDACTED DATA","ANGELS COURIER SERVICE LTD","2949091","http://opencorporates.com/companies/gb/2949091","648831896"
"London Borough of Redbridge","http://opendatacommunities.org/doc/london-borough-council/redbridge","4BMANGT&SUPP","Management & Support Services","4CHIGHRDROUT","Highways/Roads (Routine)","REV","Revenue","R7070","Reactive Maintenance","05-THIRD","Third Party Payments","05H","Private contractors","6915","Contractor Payments","3453726","201708",30/11/2016 00:00:00,579.32,"18632","Civil Engineers","REDACTED DATA","KENSON CONTRACTORS BENINGTON LTD","1314691","http://opencorporates.com/companies/gb/1314691","301629589"
"London Borough of Redbridge","http://opendatacommunities.org/doc/london-borough-council/redbridge","4BMANGT&SUPP","Management & Support Services","4CHIGHRDROUT","Highways/Roads (Routine)","REV","Revenue","R7058","Highways Improvements","05-THIRD","Third Party Payments","05H","Private contractors","6915","Contractor Payments","3455823","201709",21/12/2016 00:00:00,579.16,"18632","Civil Engineers","REDACTED DATA","KENSON CONTRACTORS BENINGTON LTD","1314691","http://opencorporates.com/companies/gb/1314691","301629589"
"London Borough of Redbridge","http://opendatacommunities.org/doc/london-borough-council/redbridge","4BMANGT&SUPP","Management & Support Services","4CHIGHRDROUT","Highways/Roads (Routine)","REV","Revenue","R7058","Highways Improvements","05-THIRD","Third Party Payments","05H","Private contractors","6915","Contractor Payments","3455825","201709",21/12/2016 00:00:00,579.16,"18632","Civil Engineers","REDACTED DATA","KENSON CONTRACTORS BENINGTON LTD","1314691","http://opencorporates.com/companies/gb/1314691","301629589"
"London Borough of Redbridge","http://opendatacommunities.org/doc/london-borough-council/redbridge","6BADULTSOCIA","Adult Social Care","6CADLEARNDIS","Adults Under 65 with Learning Disabilities","REV","Revenue","R4383","LD - External Day Care","05-THIRD","Third Party Payments","05H","Private contractors","6904","Day Centres","90803192","201709",24/08/2016 00:00:00,692.96,"17020","Charities and Voluntary Organisations","REDACTED DATA","VIBRANCE","7094318","http://opencorporates.com/companies/gb/7094318",""
"London Borough of Redbridge","http://opendatacommunities.org/doc/london-borough-council/redbridge","6BADULTSOCIA","Adult Social Care","6CADLEARNDIS","Adults Under 65 with Learning Disabilities","REV","Revenue","R4383","LD - External Day Care","05-THIRD","Third Party Payments","05H","Private contractors","6904","Day Centres","90808308","201709",16/11/2016 00:00:00,692.96,"17020","Charities and Voluntary Organisations","REDACTED DATA","VIBRANCE","7094318","http://opencorporates.com/companies/gb/7094318",""
"London Borough of Redbridge","http://opendatacommunities.org/doc/london-borough-council/redbridge","6BADULTSOCIA","Adult Social Care","6CADLEARNDIS","Adults Under 65 with Learning Disabilities","REV","Revenue","R4383","LD - External Day Care","05-THIRD","Third Party Payments","05H","Private contractors","6904","Day Centres","90805773","201709",16/11/2016 00:00:00,692.96,"17020","Charities and Voluntary Organisations","REDACTED DATA","VIBRANCE","7094318","http://opencorporates.com/companies/gb/7094318",""
"London Borough of Redbridge","http://opendatacommunities.org/doc/london-borough-council/redbridge","6BADULTSOCIA","Adult Social Care","6CADLEARNDIS","Adults Under 65 with Learning Disabilities","REV","Revenue","R4383","LD - External Day Care","05-THIRD","Third Party Payments","05H","Private contractors","6904","Day Centres","90805805","201709",16/11/2016 00:00:00,692.96,"17020","Charities and Voluntary Organisations","REDACTED DATA","VIBRANCE","7094318","http://opencorporates.com/companies/gb/7094318",""
"London Borough of Redbridge","http://opendatacommunities.org/doc/london-borough-council/redbridge","6BADULTSOCIA","Adult Social Care","6CADLEARNDIS","Adults Under 65 with Learning Disabilities","REV","Revenue","R4383","LD - External Day Care","05-THIRD","Third Party Payments","05H","Private contractors","6904","Day Centres","90805984","201709",14/12/2016 00:00:00,692.72,"17020","Charities and Voluntary Organisations","REDACTED DATA","VIBRANCE","7094318","http://opencorporates.com/companies/gb/7094318",""
"London Borough of Redbridge","http://opendatacommunities.org/doc/london-borough-council/redbridge","6BADULTSOCIA","Adult Social Care","6CADLEARNDIS","Adults Under 65 with Learning Disabilities","REV","Revenue","R4383","LD - External Day Care","05-THIRD","Third Party Payments","05H","Private contractors","6904","Day Centres","90803287","201709",20/09/2016 00:00:00,692.72,"17020","Charities and Voluntary Organisations","REDACTED DATA","VIBRANCE","7094318","http://opencorporates.com/companies/gb/7094318",""
"London Borough of Redbridge","http://opendatacommunities.org/doc/london-borough-council/redbridge","3BINDSCHFUND","Individual School Funds","3CDELSECOND","Delegated Individual Secondary School Budgets","REV","Revenue","S3187","MAYFIELD - Short Term Supply","01-EMPLOYEES","Employees","01A","Direct employee expenses","4","Agency Staff - Pay","60329783","201709",14/12/2016 00:00:00,576,"31230","Employment and Recruitment Agencies","REDACTED DATA","PROTOCOL EDUCATION LTD","2926583","http://opencorporates.com/companies/gb/2926583","779994039"
"London Borough of Redbridge","http://opendatacommunities.org/doc/london-borough-council/redbridge","3BLEACENTFND","LEA Centrally Held School Funds","3CNONSCH","Non Schools","REV","Revenue","R2215","SEN Student Transport","03-TRANSPORT","Transport","03A","Direct - transport costs","5207","School Support - Contractors (Children Services)","60328683","201709",01/12/2016 00:00:00,576,"76350","Taxis and Private Hire","REDACTED DATA","GOLDLINE CAR SERVICES LTD","4227707","http://opencorporates.com/companies/gb/4227707","7781980881"
"London Borough of Redbridge","http://opendatacommunities.org/doc/london-borough-council/redbridge","6BADULTSOCIA","Adult Social Care","6COLDINCMENT","Older People (65 or over) incl. Older Mentally Ill","REV","Revenue","R4385","OP Nursing","05-THIRD","Third Party Payments","05H","Private contractors","6902","Respite Care","90803573","201709",12/12/2016 00:00:00,922.59,"53350","Nursing Homes","REDACTED DATA","BUPA CARE HOMES(SEABROOKE MANOR)","",,"239731641"
"London Borough of Redbridge","http://opendatacommunities.org/doc/london-borough-council/redbridge","6BADULTSOCIA","Adult Social Care","6COLDINCMENT","Older People (65 or over) incl. Older Mentally Ill","REV","Revenue","R4385","OP Nursing","09-INCOME","Income","09C","Customer and Client Receipts","8558","Respite Care Charges","90803573","201709",12/12/2016 00:00:00,-232.01,"53350","Nursing Homes","REDACTED DATA","BUPA CARE HOMES(SEABROOKE MANOR)","",,"239731641"
"London Borough of Redbridge","http://opendatacommunities.org/doc/london-borough-council/redbridge","3BLEACENTFND","LEA Centrally Held School Funds","3CNONSCH","Non Schools","REV","Revenue","R2010","Spec Transport LEA","01-EMPLOYEES","Employees","01A","Direct employee expenses","4","Agency Staff - Pay","60329360","201709",01/12/2016 00:00:00,690.32,"31230","Employment and Recruitment Agencies","REDACTED DATA","HOPE SUPER JOBS LTD","5081894","http://opencorporates.com/companies/gb/5081894","872555205"
"London Borough of Redbridge","http://opendatacommunities.org/doc/london-borough-council/redbridge","6BADULTSOCIA","Adult Social Care","6COTHADSERV","Other Adult Services","REV","Revenue","R4389","CCG Older Person Home Care","05-THIRD","Third Party Payments","05A","Independent units within the council","6502","Agency Homecare (Payments To Independent Units)","90803046","201709",02/12/2016 00:00:00,690.1,"43419","Home Care Services","REDACTED DATA","HAVEN CARE LTD","6762521","http://opencorporates.com/companies/gb/6762521",""
"London Borough of Redbridge","http://opendatacommunities.org/doc/london-borough-council/redbridge","5BGFHOUSING","General Fund Housing","5CHOMELESS","Homelessness","REV","Revenue","R5630","HAC Temporary Accomodation","05-THIRD","Third Party Payments","05H","Private contractors","6912","Bed & Breakfast Charges","70090871","201709",20/11/2016 00:00:00,575,"47846","Letting Agents","REDACTED DATA","APOLONIA PROPERTY SERVICES LTD.T/A EXODUS HOUSING","8752373","http://opencorporates.com/companies/gb/8752373","195211609"
"London Borough of Redbridge","http://opendatacommunities.org/doc/london-borough-council/redbridge","6BADULTSOCIA","Adult Social Care","6CADLEARNDIS","Adults Under 65 with Learning Disabilities","REV","Revenue","R4394","LD - Homecare","05-THIRD","Third Party Payments","05A","Independent units within the council","6502","Agency Homecare (Payments To Independent Units)","90805562","201709",14/12/2016 00:00:00,689.49,"31230","Employment and Recruitment Agencies","REDACTED DATA","HOPE SUPER JOBS LTD","5081894","http://opencorporates.com/companies/gb/5081894","872555205"
"London Borough of Redbridge","http://opendatacommunities.org/doc/london-borough-council/redbridge","4BMANGT&SUPP","Management & Support Services","4CHIGHRDSTR","Highways/Roads (Structural)","REV","Revenue","R7092","Footway Crossing Works","05-THIRD","Third Party Payments","05H","Private contractors","6915","Contractor Payments","3455924","201709",20/12/2016 00:00:00,574.2,"18632","Civil Engineers","REDACTED DATA","KENSON CONTRACTORS BENINGTON LTD","1314691","http://opencorporates.com/companies/gb/1314691","301629589"
"London Borough of Redbridge","http://opendatacommunities.org/doc/london-borough-council/redbridge","6BADULTSOCIA","Adult Social Care","6CADLEARNDIS","Adults Under 65 with Learning Disabilities","REV","Revenue","R4383","LD - External Day Care","05-THIRD","Third Party Payments","05H","Private contractors","6904","Day Centres","90803195","201709",29/11/2016 00:00:00,687.7,"17020","Charities and Voluntary Organisations","REDACTED DATA","ELHAP","",,""
"London Borough of Redbridge","http://opendatacommunities.org/doc/london-borough-council/redbridge","6BADULTSOCIA","Adult Social Care","6CADLEARNDIS","Adults Under 65 with Learning Disabilities","REV","Revenue","R4383","LD - External Day Care","05-THIRD","Third Party Payments","05H","Private contractors","6904","Day Centres","90805856","201709",16/12/2016 00:00:00,687.7,"17020","Charities and Voluntary Organisations","REDACTED DATA","ELHAP","",,""
"London Borough of Redbridge","http://opendatacommunities.org/doc/london-borough-council/redbridge","6BADULTSOCIA","Adult Social Care","6CADLEARNDIS","Adults Under 65 with Learning Disabilities","REV","Revenue","R4383","LD - External Day Care","05-THIRD","Third Party Payments","05H","Private contractors","6904","Day Centres","90803213","201709",09/12/2016 00:00:00,687.7,"17020","Charities and Voluntary Organisations","REDACTED DATA","ELHAP","",,""
"London Borough of Redbridge","http://opendatacommunities.org/doc/london-borough-council/redbridge","6BADULTSOCIA","Adult Social Care","6CADLEARNDIS","Adults Under 65 with Learning Disabilities","REV","Revenue","R4383","LD - External Day Care","05-THIRD","Third Party Payments","05H","Private contractors","6904","Day Centres","90803204","201709",02/12/2016 00:00:00,687.7,"17020","Charities and Voluntary Organisations","REDACTED DATA","ELHAP","",,""
"London Borough of Redbridge","http://opendatacommunities.org/doc/london-borough-council/redbridge","6BADULTSOCIA","Adult Social Care","6CADMENHLTH","Adults Under 65 with Mental Health Needs","REV","Revenue","R4213","MH Direct Payments","06-TRANSFER","Transfer Payments","06B","Social Services Clients","7053","Direct Payments","3455349","201709",12/12/2016 00:00:00,487.2,"90005","Home Care Services DP","REDACTED DATA","REDACTED DATA","",,""
"London Borough of Redbridge","http://opendatacommunities.org/doc/london-borough-council/redbridge","6BADULTSOCIA","Adult Social Care","6CADMENHLTH","Adults Under 65 with Mental Health Needs","REV","Revenue","R4213","MH Direct Payments","06-TRANSFER","Transfer Payments","06B","Social Services Clients","7053","Direct Payments","3455349","201709",12/12/2016 00:00:00,200,"90005","Home Care Services DP","REDACTED DATA","REDACTED DATA","",,""
"London Borough of Redbridge","http://opendatacommunities.org/doc/london-borough-council/redbridge","4BMANGT&SUPP","Management & Support Services","4CHIGHRDSTR","Highways/Roads (Structural)","REV","Revenue","R7092","Footway Crossing Works","05-THIRD","Third Party Payments","05H","Private contractors","6915","Contractor Payments","3454443","201708",22/11/2016 00:00:00,572.4,"18632","Civil Engineers","REDACTED DATA","KENSON CONTRACTORS BENINGTON LTD","1314691","http://opencorporates.com/companies/gb/1314691","301629589"
"London Borough of Redbridge","http://opendatacommunities.org/doc/london-borough-council/redbridge","9BNONBVO","Outside the BVACOP Objective Structure","9CNONBVO","Outside the BVACOP Objective Structure","REV","Revenue","R5132","Repairs and Maintenance - Other","02-PREMISES","Premises","02A","Repairs, alteration and maintenance of buildings","3038","Service Repairs","60327361","201708",17/11/2016 00:00:00,572.13,"1230","Access Equipment","REDACTED DATA","INTROLAND LTD","1569740","http://opencorporates.com/companies/gb/1569740","358393419"
"London Borough of Redbridge","http://opendatacommunities.org/doc/london-borough-council/redbridge","4BMANGT&SUPP","Management & Support Services","4CHIGHRDSTR","Highways/Roads (Structural)","REV","Revenue","R7092","Footway Crossing Works","05-THIRD","Third Party Payments","05H","Private contractors","6915","Contractor Payments","3454384","201708",22/11/2016 00:00:00,571.05,"18632","Civil Engineers","REDACTED DATA","KENSON CONTRACTORS BENINGTON LTD","1314691","http://opencorporates.com/companies/gb/1314691","301629589"
"London Borough of Redbridge","http://opendatacommunities.org/doc/london-borough-council/redbridge","5BGFHOUSING","General Fund Housing","5CHOMELESS","Homelessness","REV","Revenue","R5630","HAC Temporary Accomodation","05-THIRD","Third Party Payments","05H","Private contractors","6912","Bed & Breakfast Charges","70090844","201709",30/10/2016 00:00:00,571,"44100","Hotels","REDACTED DATA","THE COURTNEY HOTEL LONDON LTD","6874974","http://opencorporates.com/companies/gb/6874974","719040943"
"London Borough of Redbridge","http://opendatacommunities.org/doc/london-borough-council/redbridge","6BPUBHEALTH","Public Health","6CSEXHEALTH","Sexual Health","REV","Revenue","R4804","STI Testing & Treatment","05-THIRD","Third Party Payments","05D","Health authorities","6703","Hospital Trusts","70091018","201709",01/07/2016 00:00:00,685,"43860","Hospitals","REDACTED DATA","ROYAL FREE LONDON NHS FOUNDATION TRUST","",,"654946987"
"London Borough of Redbridge","http://opendatacommunities.org/doc/london-borough-council/redbridge","5BGFHOUSING","General Fund Housing","5CHOMELESS","Homelessness","REV","Revenue","R5622","The Foyer","02-PREMISES","Premises","02A","Repairs, alteration and maintenance of buildings","3027","Miscellaneous Maintenance","60329825","201709",16/12/2016 00:00:00,570,"30580","Electricians and Electrical Contractors","REDACTED DATA","EVANS & SHEA LTD","9365711","http://opencorporates.com/companies/gb/9365711","212776513"
"London Borough of Redbridge","http://opendatacommunities.org/doc/london-borough-council/redbridge","5BGFHOUSING","General Fund Housing","5CHOMELESS","Homelessness","REV","Revenue","R5630","HAC Temporary Accomodation","05-THIRD","Third Party Payments","05H","Private contractors","6912","Bed & Breakfast Charges","3455804","201709",31/05/2016 00:00:00,570,"47846","Letting Agents","REDACTED DATA","FINEFAIR CONSULTANCY  LTD(NIGHTLY LETS)","4661895","http://opencorporates.com/companies/gb/4661895","809945391"
"London Borough of Redbridge","http://opendatacommunities.org/doc/london-borough-council/redbridge","6BSOCIALSERV","Social Services","6CCHILLOOKED","Children Looked After","REV","Revenue","R2177","Public Law Outline","04-SUPPLIES","Supplies And Services","04H","Grants and subscriptions","5954","Professional Fees","60328732","201709",30/11/2016 00:00:00,570,"6700","Barristers","REDACTED DATA","LAURA HARRINGTON","2844568689","http://opencorporates.com/companies/gb/2844568689",""
"London Borough of Redbridge","http://opendatacommunities.org/doc/london-borough-council/redbridge","3BINDSCHFUND","Individual School Funds","3CDELSECOND","Delegated Individual Secondary School Budgets","REV","Revenue","S3187","MAYFIELD - Short Term Supply","01-EMPLOYEES","Employees","01A","Direct employee expenses","4","Agency Staff - Pay","60327515","201708",18/11/2016 00:00:00,570,"31230","Employment and Recruitment Agencies","REDACTED DATA","REMEDY RECRUITMENT GROUP LTD","4651426","http://opencorporates.com/companies/gb/4651426","820791924"
"London Borough of Redbridge","http://opendatacommunities.org/doc/london-borough-council/redbridge","3BINDSCHFUND","Individual School Funds","3CDELSECOND","Delegated Individual Secondary School Budgets","REV","Revenue","S2013","TRINITY : Repairs and Maintenance Upper Site","02-PREMISES","Premises","02A","Repairs, alteration and maintenance of buildings","3056","Schools ONLY - Minor Maintenance","60326839","201709",31/10/2016 00:00:00,569.82,"11040","Builders","REDACTED DATA","M & G CONSTRUCTION LTD.","1918880","http://opencorporates.com/companies/gb/1918880","406392853"
"London Borough of Redbridge","http://opendatacommunities.org/doc/london-borough-council/redbridge","3BINDSCHFUND","Individual School Funds","3CDELSECOND","Delegated Individual Secondary School Budgets","REV","Revenue","S3187","MAYFIELD - Short Term Supply","01-EMPLOYEES","Employees","01A","Direct employee expenses","4","Agency Staff - Pay","60328303","201709",23/11/2016 00:00:00,567,"31230","Employment and Recruitment Agencies","REDACTED DATA","PROTOCOL EDUCATION LTD","2926583","http://opencorporates.com/companies/gb/2926583","779994039"
"London Borough of Redbridge","http://opendatacommunities.org/doc/london-borough-council/redbridge","4BMANGT&SUPP","Management & Support Services","4CHIGHRDSTR","Highways/Roads (Structural)","REV","Revenue","R7092","Footway Crossing Works","05-THIRD","Third Party Payments","05H","Private contractors","6915","Contractor Payments","3454428","201708",22/11/2016 00:00:00,567,"18632","Civil Engineers","REDACTED DATA","KENSON CONTRACTORS BENINGTON LTD","1314691","http://opencorporates.com/companies/gb/1314691","301629589"
"London Borough of Redbridge","http://opendatacommunities.org/doc/london-borough-council/redbridge","6BADULTSOCIA","Adult Social Care","6CADLEARNDIS","Adults Under 65 with Learning Disabilities","REV","Revenue","R4383","LD - External Day Care","05-THIRD","Third Party Payments","05H","Private contractors","6904","Day Centres","90803243","201709",10/11/2016 00:00:00,680,"24200","Day Centres","REDACTED DATA","EASTWAY CARE LTD","",,""
"London Borough of Redbridge","http://opendatacommunities.org/doc/london-borough-council/redbridge","6BADULTSOCIA","Adult Social Care","6CADLEARNDIS","Adults Under 65 with Learning Disabilities","REV","Revenue","R4383","LD - External Day Care","05-THIRD","Third Party Payments","05H","Private contractors","6904","Day Centres","90803236","201709",10/11/2016 00:00:00,680,"24200","Day Centres","REDACTED DATA","EASTWAY CARE LTD","",,""
"London Borough of Redbridge","http://opendatacommunities.org/doc/london-borough-council/redbridge","6BADULTSOCIA","Adult Social Care","6CADLEARNDIS","Adults Under 65 with Learning Disabilities","REV","Revenue","R4383","LD - External Day Care","05-THIRD","Third Party Payments","05H","Private contractors","6904","Day Centres","90803245","201709",10/11/2016 00:00:00,680,"24200","Day Centres","REDACTED DATA","EASTWAY CARE LTD","",,""
"London Borough of Redbridge","http://opendatacommunities.org/doc/london-borough-council/redbridge","6BADULTSOCIA","Adult Social Care","6CADLEARNDIS","Adults Under 65 with Learning Disabilities","REV","Revenue","R4394","LD - Homecare","05-THIRD","Third Party Payments","05A","Independent units within the council","6502","Agency Homecare (Payments To Independent Units)","90799121","201709",09/12/2016 00:00:00,679.97,"79980","Training Services","REDACTED DATA","ASK CARE LTD","5656634","http://opencorporates.com/companies/gb/5656634",""
"London Borough of Redbridge","http://opendatacommunities.org/doc/london-borough-council/redbridge","6BADULTSOCIA","Adult Social Care","6CADLEARNDIS","Adults Under 65 with Learning Disabilities","REV","Revenue","R4394","LD - Homecare","05-THIRD","Third Party Payments","05A","Independent units within the council","6502","Agency Homecare (Payments To Independent Units)","90799102","201709",20/11/2016 00:00:00,679.97,"79980","Training Services","REDACTED DATA","ASK CARE LTD","5656634","http://opencorporates.com/companies/gb/5656634",""
"London Borough of Redbridge","http://opendatacommunities.org/doc/london-borough-council/redbridge","6BADULTSOCIA","Adult Social Care","6CADLEARNDIS","Adults Under 65 with Learning Disabilities","REV","Revenue","R4394","LD - Homecare","05-THIRD","Third Party Payments","05A","Independent units within the council","6502","Agency Homecare (Payments To Independent Units)","90799101","201709",20/11/2016 00:00:00,679.97,"79980","Training Services","REDACTED DATA","ASK CARE LTD","5656634","http://opencorporates.com/companies/gb/5656634",""
"London Borough of Redbridge","http://opendatacommunities.org/doc/london-borough-council/redbridge","1BOTHEROPI&E","Other Operating Income & Expenditure","1CTRADSURDEF","Trading Account Surpluses & Deficits","REV","Revenue","R9148","Contracts Holding Account","02-PREMISES","Premises","02I","Grounds maintenance costs","4753","Trees / Recreational","60327927","201708",06/09/2016 00:00:00,565,"91569","Nurserymen - Trees, Shrubs and Bonsai","REDACTED DATA","PRINCIPAL TREES LTD","7035737","http://opencorporates.com/companies/gb/7035737","980080328"
"London Borough of Redbridge","http://opendatacommunities.org/doc/london-borough-council/redbridge","4BMANGT&SUPP","Management & Support Services","4CHIGHRDROUT","Highways/Roads (Routine)","REV","Revenue","R7070","Reactive Maintenance","05-THIRD","Third Party Payments","05H","Private contractors","6915","Contractor Payments","3455870","201709",20/12/2016 00:00:00,564.69,"18632","Civil Engineers","REDACTED DATA","KENSON CONTRACTORS BENINGTON LTD","1314691","http://opencorporates.com/companies/gb/1314691","301629589"
"London Borough of Redbridge","http://opendatacommunities.org/doc/london-borough-council/redbridge","4BMANGT&SUPP","Management & Support Services","4CHIGHRDSTR","Highways/Roads (Structural)","REV","Revenue","R7092","Footway Crossing Works","05-THIRD","Third Party Payments","05H","Private contractors","6915","Contractor Payments","3454407","201708",22/11/2016 00:00:00,564.3,"18632","Civil Engineers","REDACTED DATA","KENSON CONTRACTORS BENINGTON LTD","1314691","http://opencorporates.com/companies/gb/1314691","301629589"
"London Borough of Redbridge","http://opendatacommunities.org/doc/london-borough-council/redbridge","4BMANGT&SUPP","Management & Support Services","4CHIGHRDSTR","Highways/Roads (Structural)","REV","Revenue","R7092","Footway Crossing Works","05-THIRD","Third Party Payments","05H","Private contractors","6915","Contractor Payments","3454393","201708",22/11/2016 00:00:00,564.1,"18632","Civil Engineers","REDACTED DATA","KENSON CONTRACTORS BENINGTON LTD","1314691","http://opencorporates.com/companies/gb/1314691","301629589"
"London Borough of Redbridge","http://opendatacommunities.org/doc/london-borough-council/redbridge","9BNONBVO","Outside the BVACOP Objective Structure","9CNONBVO","Outside the BVACOP Objective Structure","REV","Revenue","R7702","Vehicle Workshop","04-SUPPLIES","Supplies And Services","04A","Equipment, furniture and materials","5510","Materials","658321","201709",30/11/2016 00:00:00,563.94,"81240","Tyre Mnfrs and Distributors","REDACTED DATA","ATS EUROMASTER LIMITED","4303731","http://opencorporates.com/companies/gb/4303731","813051180"
"London Borough of Redbridge","http://opendatacommunities.org/doc/london-borough-council/redbridge","6BPUBHEALTH","Public Health","6CSUBSTANCEM","Substance Misuse","REV","Revenue","R4815","Drug Misuse - Adults","05-THIRD","Third Party Payments","05G","Other establishments","6856","Pharmacies","3455741","201709",16/12/2016 00:00:00,676,"17440","Chemists - Dispensing","REDACTED DATA","LAVILLE LTD ( BRITANNIA PHARMACY-LOXFORD POLYCLINIC","2902747","http://opencorporates.com/companies/gb/2902747","649143818"
"London Borough of Redbridge","http://opendatacommunities.org/doc/london-borough-council/redbridge","3BLEACENTFND","LEA Centrally Held School Funds","3CFACILIMPRO","Facilitating School Improvement","REV","Revenue","R3830","Network Learning Community","01-EMPLOYEES","Employees","01B","Indirect employee expenses","2402","Internal Training","60328747","201709",07/12/2016 00:00:00,562.5,"79980","Training Services","REDACTED DATA","MM EDUCATION CONSULTANCY LTD","9749930","http://opencorporates.com/companies/gb/9749930","221667812"
"London Borough of Redbridge","http://opendatacommunities.org/doc/london-borough-council/redbridge","5BGFHOUSING","General Fund Housing","5CHOMELESS","Homelessness","REV","Revenue","R5629","HAC Assessment","04-SUPPLIES","Supplies And Services","04K","Miscellaneous expenses","6282","Prevention & Procurement","70091075","201709",22/11/2016 00:00:00,675,"61896","Property and Estate Management","REDACTED DATA","ZETA HOMES LTD","5380147","http://opencorporates.com/companies/gb/5380147",""
"London Borough of Redbridge","http://opendatacommunities.org/doc/london-borough-council/redbridge","5BGFHOUSING","General Fund Housing","5CHOMELESS","Homelessness","REV","Revenue","R5630","HAC Temporary Accomodation","05-THIRD","Third Party Payments","05H","Private contractors","6929","Nightly Let inclusive charges","70091142","201709",30/11/2016 00:00:00,675,"47846","Letting Agents","REDACTED DATA","WOODLAND PROPERTIES MANAGEMENT LTD","10277627","http://opencorporates.com/companies/gb/10277627",""
"London Borough of Redbridge","http://opendatacommunities.org/doc/london-borough-council/redbridge","6BADULTSOCIA","Adult Social Care","6COLDINCMENT","Older People (65 or over) incl. Older Mentally Ill","REV","Revenue","R4211","Older People Direct Payments","09-INCOME","Income","09C","Customer and Client Receipts","8545","Direct Payments Income","3455314","201709",12/12/2016 00:00:00,674.74,"90005","Home Care Services DP","REDACTED DATA","REDACTED DATA","",,""
"London Borough of Redbridge","http://opendatacommunities.org/doc/london-borough-council/redbridge","4BMANGT&SUPP","Management & Support Services","4CHIGHRDSTR","Highways/Roads (Structural)","REV","Revenue","R7092","Footway Crossing Works","05-THIRD","Third Party Payments","05H","Private contractors","6915","Contractor Payments","3454424","201708",22/11/2016 00:00:00,562.15,"18632","Civil Engineers","REDACTED DATA","KENSON CONTRACTORS BENINGTON LTD","1314691","http://opencorporates.com/companies/gb/1314691","301629589"
"London Borough of Redbridge","http://opendatacommunities.org/doc/london-borough-council/redbridge","6BADULTSOCIA","Adult Social Care","6CADLEARNDIS","Adults Under 65 with Learning Disabilities","REV","Revenue","R4394","LD - Homecare","05-THIRD","Third Party Payments","05A","Independent units within the council","6502","Agency Homecare (Payments To Independent Units)","90801926","201709",02/12/2016 00:00:00,674.45,"43419","Home Care Services","REDACTED DATA","CAREWATCH CARE SERVICES LTD","2949558","http://opencorporates.com/companies/gb/2949558","927457005"
"London Borough of Redbridge","http://opendatacommunities.org/doc/london-borough-council/redbridge","6BADULTSOCIA","Adult Social Care","6CADLEARNDIS","Adults Under 65 with Learning Disabilities","REV","Revenue","R4394","LD - Homecare","05-THIRD","Third Party Payments","05A","Independent units within the council","6502","Agency Homecare (Payments To Independent Units)","90802125","201709",12/12/2016 00:00:00,674.45,"43419","Home Care Services","REDACTED DATA","CAREWATCH CARE SERVICES LTD","2949558","http://opencorporates.com/companies/gb/2949558","927457005"
"London Borough of Redbridge","http://opendatacommunities.org/doc/london-borough-council/redbridge","6BADULTSOCIA","Adult Social Care","6CADLEARNDIS","Adults Under 65 with Learning Disabilities","REV","Revenue","R4394","LD - Homecare","05-THIRD","Third Party Payments","05A","Independent units within the council","6502","Agency Homecare (Payments To Independent Units)","90802025","201709",12/12/2016 00:00:00,674.45,"43419","Home Care Services","REDACTED DATA","CAREWATCH CARE SERVICES LTD","2949558","http://opencorporates.com/companies/gb/2949558","927457005"
"London Borough of Redbridge","http://opendatacommunities.org/doc/london-borough-council/redbridge","6BADULTSOCIA","Adult Social Care","6CADLEARNDIS","Adults Under 65 with Learning Disabilities","REV","Revenue","R4394","LD - Homecare","05-THIRD","Third Party Payments","05A","Independent units within the council","6502","Agency Homecare (Payments To Independent Units)","90807732","201709",22/12/2016 00:00:00,674.45,"43419","Home Care Services","REDACTED DATA","CAREWATCH CARE SERVICES LTD","2949558","http://opencorporates.com/companies/gb/2949558","927457005"
"London Borough of Redbridge","http://opendatacommunities.org/doc/london-borough-council/redbridge","9BNONBVO","Outside the BVACOP Objective Structure","9CNONBVO","Outside the BVACOP Objective Structure","REV","Revenue","R7702","Vehicle Workshop","04-SUPPLIES","Supplies And Services","04A","Equipment, furniture and materials","5510","Materials","658141","201709",29/11/2016 00:00:00,28.05,"20390","Commercial Vehicle Servicing, Repairs, Parts and Accessories","REDACTED DATA","S & B  COMMERCIALS PLC","1635078","http://opencorporates.com/companies/gb/1635078",""
"London Borough of Redbridge","http://opendatacommunities.org/doc/london-borough-council/redbridge","9BNONBVO","Outside the BVACOP Objective Structure","9CNONBVO","Outside the BVACOP Objective Structure","REV","Revenue","R7702","Vehicle Workshop","04-SUPPLIES","Supplies And Services","04A","Equipment, furniture and materials","5510","Materials","658141","201709",29/11/2016 00:00:00,56.1,"20390","Commercial Vehicle Servicing, Repairs, Parts and Accessories","REDACTED DATA","S & B  COMMERCIALS PLC","1635078","http://opencorporates.com/companies/gb/1635078",""
"London Borough of Redbridge","http://opendatacommunities.org/doc/london-borough-council/redbridge","9BNONBVO","Outside the BVACOP Objective Structure","9CNONBVO","Outside the BVACOP Objective Structure","REV","Revenue","R7702","Vehicle Workshop","04-SUPPLIES","Supplies And Services","04A","Equipment, furniture and materials","5510","Materials","658141","201709",29/11/2016 00:00:00,66,"20390","Commercial Vehicle Servicing, Repairs, Parts and Accessories","REDACTED DATA","S & B  COMMERCIALS PLC","1635078","http://opencorporates.com/companies/gb/1635078",""
"London Borough of Redbridge","http://opendatacommunities.org/doc/london-borough-council/redbridge","9BNONBVO","Outside the BVACOP Objective Structure","9CNONBVO","Outside the BVACOP Objective Structure","REV","Revenue","R7702","Vehicle Workshop","04-SUPPLIES","Supplies And Services","04A","Equipment, furniture and materials","5510","Materials","658141","201709",29/11/2016 00:00:00,9.1,"20390","Commercial Vehicle Servicing, Repairs, Parts and Accessories","REDACTED DATA","S & B  COMMERCIALS PLC","1635078","http://opencorporates.com/companies/gb/1635078",""
"London Borough of Redbridge","http://opendatacommunities.org/doc/london-borough-council/redbridge","9BNONBVO","Outside the BVACOP Objective Structure","9CNONBVO","Outside the BVACOP Objective Structure","REV","Revenue","R7702","Vehicle Workshop","04-SUPPLIES","Supplies And Services","04A","Equipment, furniture and materials","5510","Materials","658141","201709",29/11/2016 00:00:00,334.94,"20390","Commercial Vehicle Servicing, Repairs, Parts and Accessories","REDACTED DATA","S & B  COMMERCIALS PLC","1635078","http://opencorporates.com/companies/gb/1635078",""
"London Borough of Redbridge","http://opendatacommunities.org/doc/london-borough-council/redbridge","9BNONBVO","Outside the BVACOP Objective Structure","9CNONBVO","Outside the BVACOP Objective Structure","REV","Revenue","R7702","Vehicle Workshop","04-SUPPLIES","Supplies And Services","04A","Equipment, furniture and materials","5510","Materials","658141","201709",29/11/2016 00:00:00,53.3,"20390","Commercial Vehicle Servicing, Repairs, Parts and Accessories","REDACTED DATA","S & B  COMMERCIALS PLC","1635078","http://opencorporates.com/companies/gb/1635078",""
"London Borough of Redbridge","http://opendatacommunities.org/doc/london-borough-council/redbridge","9BNONBVO","Outside the BVACOP Objective Structure","9CNONBVO","Outside the BVACOP Objective Structure","REV","Revenue","R7702","Vehicle Workshop","04-SUPPLIES","Supplies And Services","04A","Equipment, furniture and materials","5510","Materials","658141","201709",29/11/2016 00:00:00,2.45,"20390","Commercial Vehicle Servicing, Repairs, Parts and Accessories","REDACTED DATA","S & B  COMMERCIALS PLC","1635078","http://opencorporates.com/companies/gb/1635078",""
"London Borough of Redbridge","http://opendatacommunities.org/doc/london-borough-council/redbridge","9BNONBVO","Outside the BVACOP Objective Structure","9CNONBVO","Outside the BVACOP Objective Structure","REV","Revenue","R7702","Vehicle Workshop","04-SUPPLIES","Supplies And Services","04A","Equipment, furniture and materials","5510","Materials","658141","201709",29/11/2016 00:00:00,10.9,"20390","Commercial Vehicle Servicing, Repairs, Parts and Accessories","REDACTED DATA","S & B  COMMERCIALS PLC","1635078","http://opencorporates.com/companies/gb/1635078",""
"London Borough of Redbridge","http://opendatacommunities.org/doc/london-borough-council/redbridge","9BNONBVO","Outside the BVACOP Objective Structure","9CNONBVO","Outside the BVACOP Objective Structure","REV","Revenue","R0095","Insurance Contribution","07-SUPPORT","Support Services","07A","Finance","7150","Support Services - Finance","70091058","201709",11/08/2016 00:00:00,560,"20703","Computer Systems and Software","REDACTED DATA","JC APPLICATIONS DEVELOPMENT LTD","7000813","http://opencorporates.com/companies/gb/7000813","591905907"
"London Borough of Redbridge","http://opendatacommunities.org/doc/london-borough-council/redbridge","3BINDSCHFUND","Individual School Funds","3CDELSECOND","Delegated Individual Secondary School Budgets","REV","Revenue","S3041","MAYFIELD -  Cleaning Materials","02-PREMISES","Premises","02H","Cleaning and domestic supplies","4620","Cleaning Contract Payments","60328798","201709",25/11/2016 00:00:00,559.65,"31230","Employment and Recruitment Agencies","REDACTED DATA","REED SPECIALIST RECRUITMENT  LTD","6903140","http://opencorporates.com/companies/gb/6903140","835515525"
"London Borough of Redbridge","http://opendatacommunities.org/doc/london-borough-council/redbridge","3BINDSCHFUND","Individual School Funds","3CDELSECOND","Delegated Individual Secondary School Budgets","REV","Revenue","S2051","TRINITY : Capitation: Technology","04-SUPPLIES","Supplies And Services","04A","Equipment, furniture and materials","5501","Equipment Provision","60328948","201709",16/11/2016 00:00:00,559.12,"20690","Computer Support and Services","REDACTED DATA","TECHNOLOGY SUPPLIES LTD","2285483","http://opencorporates.com/companies/gb/2285483","421026803"
"London Borough of Redbridge","http://opendatacommunities.org/doc/london-borough-council/redbridge","4BTRANSPORT","Transport Planning, Policy & Strategy","4CMANGT&SUPP","Management & Support Services","REV","Revenue","R7006","Lighting sched 2 Cartledge","05-THIRD","Third Party Payments","05H","Private contractors","6915","Contractor Payments","3454454","201708",24/11/2016 00:00:00,558.03,"21555","Construction Contractors - General","REDACTED DATA","SKANSKA CONSTRUCTION UK LTD","191408","http://opencorporates.com/companies/gb/191408","378403142"
"London Borough of Redbridge","http://opendatacommunities.org/doc/london-borough-council/redbridge","9BNONBVO","Outside the BVACOP Objective Structure","9CNONBVO","Outside the BVACOP Objective Structure","BAL","Balance Sheet","B0142","Local Safeguarding Children Board","99-NONBV","Capital, Balance Sheet and Control","50Q","Other Balances & Reserves","9910","Personal Account - Debtor","60328196","201709",29/11/2016 00:00:00,558,"48583","Local Government","REDACTED DATA","LONDON BOROUGH OF HAVERING","",,"246347944"
"London Borough of Redbridge","http://opendatacommunities.org/doc/london-borough-council/redbridge","6BSOCIALSERV","Social Services","6CCHILLOOKED","Children Looked After","REV","Revenue","R2117","SEN and CD Care and Support Packages Social Care","06-TRANSFER","Transfer Payments","06B","Social Services Clients","7050","Agency Homecare","60329064","201709",05/12/2016 00:00:00,667,"43419","Home Care Services","REDACTED DATA","CARE AVENUES LIMITED","",,""
"London Borough of Redbridge","http://opendatacommunities.org/doc/london-borough-council/redbridge","4BMANGT&SUPP","Management & Support Services","4CHIGHRDSTR","Highways/Roads (Structural)","REV","Revenue","R7092","Footway Crossing Works","05-THIRD","Third Party Payments","05H","Private contractors","6915","Contractor Payments","3455948","201709",20/12/2016 00:00:00,555.66,"18632","Civil Engineers","REDACTED DATA","KENSON CONTRACTORS BENINGTON LTD","1314691","http://opencorporates.com/companies/gb/1314691","301629589"
"London Borough of Redbridge","http://opendatacommunities.org/doc/london-borough-council/redbridge","1BOTHEROPI&E","Other Operating Income & Expenditure","1CTRADSURDEF","Trading Account Surpluses & Deficits","REV","Revenue","R9607","Ley Street Depot","02-PREMISES","Premises","02A","Repairs, alteration and maintenance of buildings","3037","Service Contracts","3455261","201709",21/11/2016 00:00:00,554.67,"2880","Air Conditioning Equipment and Systems","REDACTED DATA","EMS ENGINEERING MAINTENANCE SERVICES LIMITED","2002804","http://opencorporates.com/companies/gb/2002804","434851250"
"London Borough of Redbridge","http://opendatacommunities.org/doc/london-borough-council/redbridge","3BINDSCHFUND","Individual School Funds","3CDELPRIMARY","Delegated Individual Primary School Budgets","REV","Revenue","S2709","Winston : CURRICULUM ENRICHMENTS","04-SUPPLIES","Supplies And Services","04A","Equipment, furniture and materials","5502","Equipment Purchase","60329587","201709",29/11/2016 00:00:00,664.96,"17020","Charities and Voluntary Organisations","REDACTED DATA","HEALTHY LIVING PROJECTS LTD","4108124","http://opencorporates.com/companies/gb/4108124",""
"London Borough of Redbridge","http://opendatacommunities.org/doc/london-borough-council/redbridge","4BMANGT&SUPP","Management & Support Services","4CHIGHRDSTR","Highways/Roads (Structural)","REV","Revenue","R7077","Bridges","05-THIRD","Third Party Payments","05H","Private contractors","6915","Contractor Payments","60329688","201709",11/11/2016 00:00:00,553.54,"65400","Road Surfacing Contractors","REDACTED DATA","NETWORK RAIL","2904587","http://opencorporates.com/companies/gb/2904587","798650956"
"London Borough of Redbridge","http://opendatacommunities.org/doc/london-borough-council/redbridge","6BSOCIALSERV","Social Services","6CCHILLOOKED","Children Looked After","REV","Revenue","R2117","SEN and CD Care and Support Packages Social Care","06-TRANSFER","Transfer Payments","06B","Social Services Clients","7050","Agency Homecare","60330088","201709",17/12/2016 00:00:00,664,"31230","Employment and Recruitment Agencies","REDACTED DATA","SHARED CARE SERVICES LTD","4704680","http://opencorporates.com/companies/gb/4704680",""
"London Borough of Redbridge","http://opendatacommunities.org/doc/london-borough-council/redbridge","6BSOCIALSERV","Social Services","6CCHILLOOKED","Children Looked After","REV","Revenue","R2117","SEN and CD Care and Support Packages Social Care","06-TRANSFER","Transfer Payments","06B","Social Services Clients","7050","Agency Homecare","60330087","201709",17/12/2016 00:00:00,664,"31230","Employment and Recruitment Agencies","REDACTED DATA","SHARED CARE SERVICES LTD","4704680","http://opencorporates.com/companies/gb/4704680",""
"London Borough of Redbridge","http://opendatacommunities.org/doc/london-borough-council/redbridge","6BADULTSOCIA","Adult Social Care","6COLDINCMENT","Older People (65 or over) incl. Older Mentally Ill","REV","Revenue","R4378","OP Residential","05-THIRD","Third Party Payments","05F","Voluntary associations","6802","Residential Homes","90803799","201709",01/12/2016 00:00:00,2058.4,"53350","Nursing Homes","REDACTED DATA","JEWISH CARE (MERIT  HOUSE)","2447900","http://opencorporates.com/companies/gb/2447900","587033133"
"London Borough of Redbridge","http://opendatacommunities.org/doc/london-borough-council/redbridge","6BADULTSOCIA","Adult Social Care","6COLDINCMENT","Older People (65 or over) incl. Older Mentally Ill","REV","Revenue","R4378","OP Residential","09-INCOME","Income","09C","Customer and Client Receipts","8555","Accommodation Charges","90803799","201709",01/12/2016 00:00:00,-1394.76,"53350","Nursing Homes","REDACTED DATA","JEWISH CARE (MERIT  HOUSE)","2447900","http://opencorporates.com/companies/gb/2447900","587033133"
"London Borough of Redbridge","http://opendatacommunities.org/doc/london-borough-council/redbridge","9BNONBVO","Outside the BVACOP Objective Structure","9CNONBVO","Outside the BVACOP Objective Structure","REV","Revenue","R7710","Insurance Repair Costs","04-SUPPLIES","Supplies And Services","04A","Equipment, furniture and materials","5510","Materials","658272","201709",09/12/2016 00:00:00,128,"13330","Car Body Repairs","REDACTED DATA","BARKING PANELCRAFT","",,""
"London Borough of Redbridge","http://opendatacommunities.org/doc/london-borough-council/redbridge","9BNONBVO","Outside the BVACOP Objective Structure","9CNONBVO","Outside the BVACOP Objective Structure","REV","Revenue","R7710","Insurance Repair Costs","04-SUPPLIES","Supplies And Services","04A","Equipment, furniture and materials","5510","Materials","658272","201709",09/12/2016 00:00:00,390,"13330","Car Body Repairs","REDACTED DATA","BARKING PANELCRAFT","",,""
"London Borough of Redbridge","http://opendatacommunities.org/doc/london-borough-council/redbridge","9BNONBVO","Outside the BVACOP Objective Structure","9CNONBVO","Outside the BVACOP Objective Structure","REV","Revenue","R7710","Insurance Repair Costs","04-SUPPLIES","Supplies And Services","04A","Equipment, furniture and materials","5510","Materials","658272","201709",09/12/2016 00:00:00,35,"13330","Car Body Repairs","REDACTED DATA","BARKING PANELCRAFT","",,""
"London Borough of Redbridge","http://opendatacommunities.org/doc/london-borough-council/redbridge","6BSOCIALSERV","Social Services","6CCHILLOOKED","Children Looked After","REV","Revenue","R2158","CSW Service","05-THIRD","Third Party Payments","05H","Private contractors","6920","Investigations","60327990","201709",01/12/2016 00:00:00,663.1,"18668","Claims Investigators","REDACTED DATA","KEITH RUDD","83/UA40504","http://opencorporates.com/companies/gb/83/UA40504",""
"London Borough of Redbridge","http://opendatacommunities.org/doc/london-borough-council/redbridge","4BMANGT&SUPP","Management & Support Services","4CHIGHRDROUT","Highways/Roads (Routine)","REV","Revenue","R7070","Reactive Maintenance","05-THIRD","Third Party Payments","05H","Private contractors","6915","Contractor Payments","3453998","201708",22/11/2016 00:00:00,551.91,"18632","Civil Engineers","REDACTED DATA","KENSON CONTRACTORS BENINGTON LTD","1314691","http://opencorporates.com/companies/gb/1314691","301629589"
"London Borough of Redbridge","http://opendatacommunities.org/doc/london-borough-council/redbridge","4BMANGT&SUPP","Management & Support Services","4CHIGHRDSTR","Highways/Roads (Structural)","REV","Revenue","R7092","Footway Crossing Works","05-THIRD","Third Party Payments","05H","Private contractors","6915","Contractor Payments","3454380","201708",22/11/2016 00:00:00,550.8,"18632","Civil Engineers","REDACTED DATA","KENSON CONTRACTORS BENINGTON LTD","1314691","http://opencorporates.com/companies/gb/1314691","301629589"
"London Borough of Redbridge","http://opendatacommunities.org/doc/london-borough-council/redbridge","1BOTHEROPI&E","Other Operating Income & Expenditure","1CTRADSURDEF","Trading Account Surpluses & Deficits","REV","Revenue","R9252","IT Services","04-SUPPLIES","Supplies And Services","04F","Communications and computing","5852","Computer Equipment - Repairs & Maintenance","60329094","201709",08/12/2016 00:00:00,550,"74150","Storage and Shelving Systems Mnfrs","REDACTED DATA","2bm  LTD (DATA CENTRE SOLUTIONS)","4555159","http://opencorporates.com/companies/gb/4555159","804712551"
"London Borough of Redbridge","http://opendatacommunities.org/doc/london-borough-council/redbridge","3BINDSCHFUND","Individual School Funds","3CDELSECOND","Delegated Individual Secondary School Budgets","REV","Revenue","S2073","TRINITY : Trips general","04-SUPPLIES","Supplies And Services","04K","Miscellaneous expenses","6221","Educational Visits","60327873","201708",23/11/2016 00:00:00,660,"29340","Educational Equipment and Supplies","REDACTED DATA","THE PIXL CLUB LTD","7321607","http://opencorporates.com/companies/gb/7321607","940623341"
"London Borough of Redbridge","http://opendatacommunities.org/doc/london-borough-council/redbridge","3BINDSCHFUND","Individual School Funds","3CDELSECOND","Delegated Individual Secondary School Budgets","REV","Revenue","S3536","KING SOLOMON-  Building Repairs & Maintenance","02-PREMISES","Premises","02A","Repairs, alteration and maintenance of buildings","3056","Schools ONLY - Minor Maintenance","60327289","201708",24/11/2016 00:00:00,550,"50275","Mechanical Engineers","REDACTED DATA","REAM CONTRACTS LTD","6246918","http://opencorporates.com/companies/gb/6246918","919210929"
"London Borough of Redbridge","http://opendatacommunities.org/doc/london-borough-council/redbridge","6BPUBHEALTH","Public Health","6CSEXHEALTH","Sexual Health","REV","Revenue","R4805","Contraception","05-THIRD","Third Party Payments","05D","Health authorities","6702","General Practitioners","3453531","201708",14/10/2016 00:00:00,550,"26710","Doctors","REDACTED DATA","ILFORD LANE SURGERY- DR MP SAHU & CHIDI OKORIE","",,""
"London Borough of Redbridge","http://opendatacommunities.org/doc/london-borough-council/redbridge","1BOTHEROPI&E","Other Operating Income & Expenditure","1CTRADSURDEF","Trading Account Surpluses & Deficits","REV","Revenue","R9560","Facilities Management","02-PREMISES","Premises","02A","Repairs, alteration and maintenance of buildings","3037","Service Contracts","60329655","201709",31/07/2016 00:00:00,549.9,"83610","Waste Paper Merchants and Collectors","REDACTED DATA","RESTORE SHRED LTD","7691189","http://opencorporates.com/companies/gb/7691189","120308176"
"London Borough of Redbridge","http://opendatacommunities.org/doc/london-borough-council/redbridge","4BMANGT&SUPP","Management & Support Services","4CHIGHRDROUT","Highways/Roads (Routine)","REV","Revenue","R7070","Reactive Maintenance","05-THIRD","Third Party Payments","05H","Private contractors","6915","Contractor Payments","3453879","201708",22/11/2016 00:00:00,549.02,"18632","Civil Engineers","REDACTED DATA","KENSON CONTRACTORS BENINGTON LTD","1314691","http://opencorporates.com/companies/gb/1314691","301629589"
"London Borough of Redbridge","http://opendatacommunities.org/doc/london-borough-council/redbridge","4BMANGT&SUPP","Management & Support Services","4CHIGHRDSTR","Highways/Roads (Structural)","REV","Revenue","R7092","Footway Crossing Works","05-THIRD","Third Party Payments","05H","Private contractors","6915","Contractor Payments","3454399","201708",22/11/2016 00:00:00,549,"18632","Civil Engineers","REDACTED DATA","KENSON CONTRACTORS BENINGTON LTD","1314691","http://opencorporates.com/companies/gb/1314691","301629589"
"London Borough of Redbridge","http://opendatacommunities.org/doc/london-borough-council/redbridge","9BNONBVO","Outside the BVACOP Objective Structure","9CNONBVO","Outside the BVACOP Objective Structure","REV","Revenue","R7751","Catering Service","04-SUPPLIES","Supplies And Services","04B","Catering","5601","Catering Provisions (Food & Drink)","60327450","201708",15/11/2016 00:00:00,375.77,"16250","Catering Food and Drink Suppliers","REDACTED DATA","THOMAS RIDLEY & SONS","",,"102350826"
"London Borough of Redbridge","http://opendatacommunities.org/doc/london-borough-council/redbridge","9BNONBVO","Outside the BVACOP Objective Structure","9CNONBVO","Outside the BVACOP Objective Structure","REV","Revenue","R7751","Catering Service","04-SUPPLIES","Supplies And Services","04B","Catering","5601","Catering Provisions (Food & Drink)","60327450","201708",15/11/2016 00:00:00,235.85,"16250","Catering Food and Drink Suppliers","REDACTED DATA","THOMAS RIDLEY & SONS","",,"102350826"
"London Borough of Redbridge","http://opendatacommunities.org/doc/london-borough-council/redbridge","9BNONBVO","Outside the BVACOP Objective Structure","9CNONBVO","Outside the BVACOP Objective Structure","REV","Revenue","R7702","Vehicle Workshop","04-SUPPLIES","Supplies And Services","04A","Equipment, furniture and materials","5504","Equipment Repairs & Maintenance","658190","201709",01/12/2016 00:00:00,548.9,"2860","Air Compressors","REDACTED DATA","AIR LINE SYSTEMS LTD","",,"662157438"
"London Borough of Redbridge","http://opendatacommunities.org/doc/london-borough-council/redbridge","4BMANGT&SUPP","Management & Support Services","4CHIGHRDSTR","Highways/Roads (Structural)","REV","Revenue","R7092","Footway Crossing Works","05-THIRD","Third Party Payments","05H","Private contractors","6915","Contractor Payments","3454346","201708",22/11/2016 00:00:00,548.1,"18632","Civil Engineers","REDACTED DATA","KENSON CONTRACTORS BENINGTON LTD","1314691","http://opencorporates.com/companies/gb/1314691","301629589"
"London Borough of Redbridge","http://opendatacommunities.org/doc/london-borough-council/redbridge","3BINDSCHFUND","Individual School Funds","3CDELPRIMARY","Delegated Individual Primary School Budgets","REV","Revenue","S2730","Winston : BUY BACK NON CURRICULUM SUPPORT SERVICE","07-SUPPORT","Support Services","07C","Human Resources","7190","Support Services - Human Resources","60329620","201709",01/12/2016 00:00:00,548,"12100","Business and Management Consultants","REDACTED DATA","JUDICIUM CONSULTING LTD","3926056","http://opencorporates.com/companies/gb/3926056","756274605"
"London Borough of Redbridge","http://opendatacommunities.org/doc/london-borough-council/redbridge","3BINDSCHFUND","Individual School Funds","3CDELPRIMARY","Delegated Individual Primary School Budgets","REV","Revenue","S2730","Winston : BUY BACK NON CURRICULUM SUPPORT SERVICE","07-SUPPORT","Support Services","07C","Human Resources","7190","Support Services - Human Resources","60327555","201708",14/11/2016 00:00:00,548,"12100","Business and Management Consultants","REDACTED DATA","JUDICIUM CONSULTING LTD","3926056","http://opencorporates.com/companies/gb/3926056","756274605"
"London Borough of Redbridge","http://opendatacommunities.org/doc/london-borough-council/redbridge","9BNONBVO","Outside the BVACOP Objective Structure","9CNONBVO","Outside the BVACOP Objective Structure","REV","Revenue","R7702","Vehicle Workshop","04-SUPPLIES","Supplies And Services","04A","Equipment, furniture and materials","5510","Materials","658071","201709",29/11/2016 00:00:00,547.95,"20390","Commercial Vehicle Servicing, Repairs, Parts and Accessories","REDACTED DATA","S & B  COMMERCIALS PLC","1635078","http://opencorporates.com/companies/gb/1635078",""
"London Borough of Redbridge","http://opendatacommunities.org/doc/london-borough-council/redbridge","6BPUBHEALTH","Public Health","6CSUBSTANCEM","Substance Misuse","REV","Revenue","R4815","Drug Misuse - Adults","05-THIRD","Third Party Payments","05G","Other establishments","6856","Pharmacies","3455753","201709",16/12/2016 00:00:00,655,"17440","Chemists - Dispensing","REDACTED DATA","FLEMING NASH HEALTHCARE LTD T/A FAIRLOP PHARMACY","7540676","http://opencorporates.com/companies/gb/7540676","122444939"
"London Borough of Redbridge","http://opendatacommunities.org/doc/london-borough-council/redbridge","3BLEACENTFND","LEA Centrally Held School Funds","3CNONSCH","Non Schools","REV","Revenue","R2010","Spec Transport LEA","01-EMPLOYEES","Employees","01A","Direct employee expenses","4","Agency Staff - Pay","60328350","201709",22/11/2016 00:00:00,654.73,"31230","Employment and Recruitment Agencies","REDACTED DATA","HOPE SUPER JOBS LTD","5081894","http://opencorporates.com/companies/gb/5081894","872555205"
"London Borough of Redbridge","http://opendatacommunities.org/doc/london-borough-council/redbridge","9BNONBVO","Outside the BVACOP Objective Structure","9CNONBVO","Outside the BVACOP Objective Structure","BAL","Balance Sheet","B0179","Court Orders","99-NONBV","Capital, Balance Sheet and Control","50Q","Other Balances & Reserves","9910","Personal Account - Debtor","70090533","201708",28/11/2016 00:00:00,654.46,"48583","Local Government","REDACTED DATA","LONDON BOROUGH OF NEWHAM","",,"248481537"
"London Borough of Redbridge","http://opendatacommunities.org/doc/london-borough-council/redbridge","4BMANGT&SUPP","Management & Support Services","4CHIGHRDSTR","Highways/Roads (Structural)","REV","Revenue","R7092","Footway Crossing Works","05-THIRD","Third Party Payments","05H","Private contractors","6915","Contractor Payments","3455959","201709",20/12/2016 00:00:00,544.32,"18632","Civil Engineers","REDACTED DATA","KENSON CONTRACTORS BENINGTON LTD","1314691","http://opencorporates.com/companies/gb/1314691","301629589"
"London Borough of Redbridge","http://opendatacommunities.org/doc/london-borough-council/redbridge","4BMANGT&SUPP","Management & Support Services","4CHIGHRDSTR","Highways/Roads (Structural)","REV","Revenue","R7092","Footway Crossing Works","05-THIRD","Third Party Payments","05H","Private contractors","6915","Contractor Payments","3455912","201709",20/12/2016 00:00:00,543.6,"18632","Civil Engineers","REDACTED DATA","KENSON CONTRACTORS BENINGTON LTD","1314691","http://opencorporates.com/companies/gb/1314691","301629589"
"London Borough of Redbridge","http://opendatacommunities.org/doc/london-borough-council/redbridge","4BMANGT&SUPP","Management & Support Services","4CHIGHRDSTR","Highways/Roads (Structural)","REV","Revenue","R7092","Footway Crossing Works","05-THIRD","Third Party Payments","05H","Private contractors","6915","Contractor Payments","3455929","201709",20/12/2016 00:00:00,543.6,"18632","Civil Engineers","REDACTED DATA","KENSON CONTRACTORS BENINGTON LTD","1314691","http://opencorporates.com/companies/gb/1314691","301629589"
"London Borough of Redbridge","http://opendatacommunities.org/doc/london-borough-council/redbridge","9BNONBVO","Outside the BVACOP Objective Structure","9CNONBVO","Outside the BVACOP Objective Structure","CAP","Capital","C4286","Cleveland Infant School","99-NONBV","Capital, Balance Sheet and Control","50B","Capital - Contracted Works","9040","Initial Feasibility Study","60328225","201709",30/11/2016 00:00:00,543.5,"4422","Architectural Services","REDACTED DATA","ERMC LIMITED","4489340","http://opencorporates.com/companies/gb/4489340","787829846"
